Workbook

Sheet Inicio
O1: 6
D2: Indicadores Sistema Eléctrico CCAA | I2: www.ree.es
I3: Fecha de actualización: | K3: 2019-02-19

Sheet Cuadro mando
A3: Principales Indicadores Madrid 2018
B7: GENERACIÓN | H7: DEMANDA B.C.
A26: POTENCIA INSTALADA | H26: RED DE TRANSPORTE1
I45: (1) km líneas de la Red de Transporte

Sheet Generacion
A3: Generación Madrid 2018
B7: BALANCE (GWh) | H7: ESTRUCTURA DE LA GENERACIÓN
B8: Balance | D8: =generacion_bruta!Q137 -> Madrid | E8: España | F8: % del total
B9: Hidráulica | D9: =generacion_bruta!Q139 -> 122.874118 | E9: =generacion_bruta!V139 -> 34100.07269 | F9: =IF(OR(E9=0,D9=0),"-",D9*100/E9) -> 0.3603338887
B10: Turbinación bombeo | D10: =generacion_bruta!Q140 -> 0 | E10: =generacion_bruta!V140 -> 2009.377188 | F10: =IF(OR(E10=0,D10=0),"-",D10*100/E10) -> -
B11: Nuclear | D11: =generacion_bruta!Q141 -> 0 | E11: =generacion_bruta!V141 -> 53197.61588 | F11: -
B12: Carbón | D12: =generacion_bruta!Q142 -> 0 | E12: =generacion_bruta!V142 -> 37273.61983 | F12: -
B13: Fuel / gas | D13: =generacion_bruta!Q143 -> 0 | E13: =generacion_bruta!V143 -> 6683.169861 | F13: -
B14: Ciclo combinado | D14: =generacion_bruta!Q144 -> 0 | E14: =generacion_bruta!V144 -> 30044.63553 | F14: -
B15: Hidroeólica | D15: =generacion_bruta!Q145 -> 0 | E15: =generacion_bruta!V145 -> 23.655544 | F15: -
B16: Eólica | D16: =generacion_bruta!Q146 -> 0 | E16: =generacion_bruta!V146 -> 49526.05593 | F16: -
B17: Solar fotovoltaica | D17: =generacion_bruta!Q147 -> 85.078797 | E17: =generacion_bruta!V147 -> 7746.683917 | F17: 1.098260855
B18: Solar térmica | D18: =generacion_bruta!Q148 -> 0 | E18: =generacion_bruta!V148 -> 4424.328609 | F18: -
B19: Otras renovables | D19: =generacion_bruta!Q149 -> 151.292257 | E19: =generacion_bruta!V149 -> 3556.382213 | F19: 4.25410566
B20: Cogeneración | D20: =generacion_bruta!Q150 -> 728.44823 | E20: =generacion_bruta!V150 -> 29009.74686 | F20: 2.511046489
B21: Residuos no renovables | D21: =generacion_bruta!Q151 -> 81.5095215 | E21: =generacion_bruta!V151 -> 2436.79207 | F21: 3.344951853
B22: Residuos renovables | D22: =generacion_bruta!Q152 -> 81.5095215 | E22: =generacion_bruta!V152 -> 874.075245 | F22: 9.325229374
B23: Generación neta | D23: =generacion_bruta!Q153 -> 1250.712445 | E23: =generacion_bruta!V153 -> 260906.2114 | F23: =IF(OR(E23=0,D23=0),"-",D23*100/E23) -> 0.4793724298
B24: Consumos en bombeo | D24: =generacion_bruta!Q154 -> 0 | E24: =generacion_bruta!V154 -> -3200.710075 | F24: =IF(OR(E24=0,D24=0),"-",D24*100/E24) -> -
B25: Saldo Intercambios | D25: =generacion_bruta!Q155 -> 27373.66473 | E25: =generacion_bruta!V155 -> 11102.31115 | F25: -
B26: Demanda B.C | D26: =generacion_bruta!Q156 -> 28624.37718 | E26: =generacion_bruta!V156 -> 268807.8125 | F26: =IF(OR(E26=0,D26=0),"-",D26*100/E26) -> 10.64864035
H28: GENERACIÓN RENOVABLE Y NO RENOVABLE
B29: EVOLUCIÓN DE LA GENERACIÓN NETA

Sheet Potencia
A3: Potencia Madrid 2018
B7: BALANCE DE POTENCIA INSTALADA (MW) | H7: VARIACIONES DE LA POTENCIA INSTALADA
D9: =Potencias!Q102 -> Madrid | E9: España | F9: % del total
B10: Bombeo puro | D10: =Potencias!Q103 -> 0 | E10: =Potencias!V103 -> 3328.89 | F10: =IF(OR(E10=0,D10=0),"-",IF(D10*100/E10>200,"-",D10*100/E10)) -> -
B11: Hidráulica | D11: =Potencias!Q104 -> 108.5166 | E11: =Potencias!V104 -> 17050.92863 | F11: =IF(OR(E11=0,D11=0,),"-",IF(D11*100/E11>200,"-",D11*100/E11)) -> 0.636426334
B12: Nuclear | D12: =Potencias!Q105 -> 0 | E12: =Potencias!V105 -> 7117.29 | F12: =IF(OR(E12=0,D12=0),"-",IF(D12*100/E12>200,"-",D12*100/E12)) -> -
B13: Carbón | D13: =Potencias!Q106 -> 0 | E13: =Potencias!V106 -> 10030.285 | F13: -
B14: Fuel / gas | D14: =Potencias!Q107 -> 0 | E14: =Potencias!V107 -> 2490.06 | F14: -
B15: Ciclo combinado | D15: =Potencias!Q108 -> 0 | E15: =Potencias!V108 -> 26284.01 | F15: -
B16: Hidroeólica | D16: =Potencias!Q109 -> 0 | E16: =Potencias!V109 -> 11.39 | F16: -
B17: Eólica | D17: =Potencias!Q110 -> 0 | E17: =Potencias!V110 -> 23466.4535 | F17: -
B18: Solar fotovoltaica | D18: =Potencias!Q111 -> 63.698096 | E18: =Potencias!V111 -> 4706.744468 | F18: 1.353336609
B19: Solar térmica | D19: =Potencias!Q112 -> 0 | E19: =Potencias!V112 -> 2304.113 | F19: -
B20: Otras renovables | D20: =Potencias!Q113 -> 42.584 | E20: =Potencias!V113 -> 864.315 | F20: 4.926907435
B21: Cogeneración | D21: =Potencias!Q114 -> 211.0619 | E21: =Potencias!V114 -> 5746.2824 | F21: 3.673016488
B22: Residuos renovables | D22: =Potencias!Q115 -> 16.15 | E22: =Potencias!V115 -> 161.5255 | F22: 9.998421302
B23: Residuos no renovables | D23: =Potencias!Q116 -> 16.15 | E23: =Potencias!V116 -> 490.8615 | F23: 3.290133775
B24: Total 2018 | D24: =Potencias!Q117 -> 458.160596 | E24: =Potencias!V117 -> 104053.149 | F24: 0.440314013
B25: Total 2017 | D25: =Potencias!Q97 -> 459.090181 | E25: =Potencias!V97 -> 104114.3933
B26: Δ 2018/2017 | D26: =IF(D25="-","-",(D24/D25-1)) -> -0.002024841825 | E26: =IF(E25="-","-",(E24/E25-1)) -> -0.0005882406654
B28: EVOLUCIÓN DE LA POTENCIA INSTALADA (MW) | H28: ESTRUCTURA DE LA POTENCIA INSTALADA
B46: Fuente: Comisión Nacional de los Mercados y la Competencia (CNMC) hasta 2014 en: hidráulica (no UGH), eólica, solar, otras renovables y cogeneración y residuos

Sheet Demanda
A3: Demanda Madrid 2018
B7: EVOLUCIÓN DE LA DEMANDA | H7: VARIACIÓN DE LA DEMANDA
B26: GENERACIÓN NETA C.A. vs. DEMANDA C.A. | H26: % DEMANDA C.A. vs. DEMANDA NACIONAL

Sheet Red_de_transporte
A3: Red de transporte Madrid 2018
B7: RED DE TRANSPORTE | H7: VARIACIONES DE LA RdT
B11: AÑO 2018 | D11: =datos_RdT!Q72 -> Madrid | E11: España | F11: % del total
B12: km circuitos 400 kV | D12: =datos_RdT!Q73 -> 942.1000257 | E12: =datos_RdT!V73 -> 21729.9284 | F12: =D12*100/E12 -> 4.335495305
B13: km circuitos 220 kV | D13: =datos_RdT!Q74 -> 1177.38 | E13: =datos_RdT!V74 -> 19728.46184 | F13: =D13*100/E13 -> 5.967925981
B14: km circuitos <220 kV | D14: =datos_RdT!Q75 -> 0 | E14: =datos_RdT!V75 -> 2748.66 | F14: 0
B15: km circuitos | D15: =datos_RdT!Q76 -> 2119.480026 | E15: =datos_RdT!V76 -> 44207.05024 | F15: 4.794438928
B16: Posiciones 400 kV | D16: =datos_RdT!Q78 -> 104 | E16: =datos_RdT!V78 -> 1506 | F16: =D16*100/E16 -> 6.905710491
B17: Posiciones 220 kV | D17: =datos_RdT!Q79 -> 523 | E17: =datos_RdT!V79 -> 3349 | F17: =D17*100/E17 -> 15.61660197
B18: Posiciones <220 kV | D18: =datos_RdT!Q80 -> 0 | E18: =datos_RdT!V80 -> 1015 | F18: 0
B19: Posiciones | D19: =datos_RdT!Q81 -> 627 | E19: =datos_RdT!V81 -> 5870 | F19: 10.68143101
B20: Transformadores (MVA) | D20: =datos_RdT!Q83 -> 11548.4 | E20: =datos_RdT!V83 -> 88846.475 | F20: 12.99815215
B22: Incluye los activos de la red de transporte del resto de empresas.
B26: EVOLUCIÓN DE LA RdT | H26: % km LÍNEAS C.A. vs. KILÓMETROS TOTALES

Sheet AVISO LEGAL

Sheet generacion_bruta (hidden)
B1: 2013 | C1: 39580.98873 | D1: 10271.44317 | E1: 10297.99838 | F1: 5821.400124 | G1: 26410.55343 | H1: 8887.233953 | I1: 4414.546398 | J1: 12079.35524 | K1: 13829.44977 | L1: 47599.65529 | M1: 212.071911 | N1: 4940.487385 | O1: 19715.81687 | P1: 1736.463865 | Q1: 30777.24325 | R1: 217.332497 | S1: 8570.607921 | T1: 4809.406227 | U1: 16686.15388 | V1: 266858.2083 | W1: =V1-F1-H1-M1-R1 -> 251720.1698 | X1: =F1+H1+M1+R1 -> 15138.03849 | AA1: Andalucía | AB1: Aragón | AC1: Asturias, Principado de | AD1: Cantabria | AE1: Castilla - La Mancha | AF1: Castilla y León | AG1: Cataluña | AH1: Comunitat Valenciana | AI1: Extremadura | AJ1: Galicia
B2: CCAA | C2: Andalucía | D2: Aragón | E2: Asturias | F2: Baleares | G2: C. Valenciana | H2: Canarias | I2: Cantabria | J2: Castilla-La Mancha | K2: Castilla y León | L2: Cataluña | M2: Ceuta | N2: Extremadura | O2: Galicia | P2: La Rioja | Q2: Madrid | R2: Melilla | S2: Murcia | T2: Navarra | U2: País Vasco | V2: España | W2: PENINSULAR | X2: NO PENINSULAR | AA2: 309.2577937 | AB2: 260.211643 | AC2: 35.5589626 | AD2: 575.401949 | AE2: 102.59608 | AF2: 710.7745102 | AG2: 287.2659669 | AH2: 822.868819 | AI2: 7.15772564 | AJ2: 90.7962937
B4: Hidráulica | C4: 1285.805093 | D4: 4251.768675 | E4: 2158.721231 | F4: 0 | G4: 475.478923 | H4: 3.031283 | I4: 341.321716 | J4: 912.320903 | K4: 8286.240227 | L4: 5394.714236 | M4: 0 | N4: 2828.102937 | O4: 9642.679908 | P4: 180.607162 | Q4: 165.745656 | R4: 0 | S4: 134.077043 | T4: 757.543275 | U4: 567.278546 | V4: =SUM(C4:U4) -> 37385.43681 | W4: =V4-F4-H4-M4-R4 -> 37382.40553 | X4: =F4+H4+M4+R4 -> 3.031283
B5: Turbinación bombeo | C5: 332.6293827 | D5: 292.337205 | E5: 53.9984088 | F5: 0 | G5: 1116.192629 | H5: 0 | I5: 537.83828 | J5: 113.22974 | K5: 485.5478034 | L5: 245.1489343 | M5: 0 | N5: 33.4582688 | O5: 79.296532 | P5: 0 | Q5: 0 | R5: 0 | S5: 0 | T5: 0 | U5: 0 | V5: =SUM(C5:U5) -> 3289.677184 | W5: =V5-F5-H5-M5-R5 -> 3289.677184 | X5: =F5+H5+M5+R5 -> 0
B6: Nuclear | C6: 0 | D6: 0 | E6: 0 | F6: 0 | G6: 7995.42812 | H6: 0 | I6: 0 | J6: 7464.878815 | K6: -20.569584 | L6: 23694.3217 | M6: 0 | N6: 15076.72907 | O6: 0 | P6: 0 | Q6: 0 | R6: 0 | S6: 0 | T6: 0 | U6: 0 | V6: =SUM(C6:U6) -> 54210.78812 | W6: =V6-F6-H6-M6-R6 -> 54210.78812 | X6: 0
B7: Carbón | C7: 9268.648912 | D7: 3423.252459 | E7: 8537.418327 | F7: 2350.640404 | G7: 0 | H7: 0 | I7: 0 | J7: 776.982152 | K7: 5688.99129 | L7: 0 | M7: 0 | N7: 0 | O7: 9395.604172 | P7: 0 | Q7: 0 | R7: 0 | S7: 0 | T7: 0 | U7: 0 | V7: 39441.53772 | W7: 37090.89731 | X7: 2350.640404
B8: Fuel / gas | C8: 0 | D8: 0 | E8: 0 | F8: 1259.760825 | G8: 0.021424 | H8: 4899.196915 | I8: 0 | J8: 0 | K8: 0 | L8: -2.034139 | M8: 201.964935 | N8: 0 | O8: 0 | P8: 0 | Q8: 0 | R8: 201.55068 | S8: 0 | T8: 0 | U8: 0 | V8: 6560.46064 | W8: -2.012715 | X8: 6562.473355
B9: Ciclo combinado | C9: 5764.074056 | D9: 77.079622 | E9: 293.976219 | F9: 407.330728 | G9: 3916.996691 | H9: 2946.150371 | I9: 0 | J9: 1095.947422 | K9: 0 | L9: 5649.607503 | M9: 0 | N9: 0 | O9: 1154.598364 | P9: 380.973377 | Q9: 0 | R9: 0 | S9: 2310.098912 | T9: 353.509929 | U9: 3129.69521 | V9: =SUM(C9:U9) -> 27480.0384 | W9: =V9-F9-H9-M9-R9 -> 24126.5573 | X9: =F9+H9+M9+R9 -> 3353.481099
B10: Hidroeólica | C10: 0 | D10: 0 | E10: 0 | F10: 0 | G10: 0 | H10: 0 | I10: 0 | J10: 0 | K10: 0 | L10: 0 | M10: 0 | N10: 0 | O10: 0 | P10: 0 | Q10: 0 | R10: 0 | S10: 0 | T10: 0 | U10: 0 | V10: =SUM(C10:U10) -> 0 | W10: =V10-F10-H10-M10-R10 -> 0 | X10: =F10+H10+M10+R10 -> 0
B11: Eólica | C11: 6986.811481 | D11: 5009.608408 | E11: 1140.592288 | F11: 6.159468 | G11: 2529.880116 | H11: 362.733485 | I11: 74.550424 | J11: 8657.478624 | K11: 12749.66811 | L11: 3194.726668 | M11: 0 | N11: 0 | O11: 9497.931287 | P11: 1078.385075 | Q11: 0 | R11: 0 | S11: 543.819978 | T11: 2524.694876 | U11: 356.35345 | V11: =SUM(C11:U11) -> 54713.39374 | W11: =V11-F11-H11-M11-R11 -> 54344.50078 | X11: =F11+H11+M11+R11 -> 368.892953
B12: Solar fotovoltaica | C12: 1586.421055 | D12: 309.133006 | E12: 0.738135 | F12: 122.112852 | G12: 559.959884 | H12: 286.703317 | I12: 2.067143 | J12: 1702.318688 | K12: 851.219154 | L12: 431.391836 | M12: 0 | N12: 1110.447569 | O12: 20.475629 | P12: 130.107387 | Q12: 92.17406 | R12: 0.082323 | S12: 798.846065 | T12: 295.461062 | U12: 27.615431 | V12: =SUM(C12:U12) -> 8327.274596 | W12: 7918.376104 | X12: 408.898492
B13: Solar termoeléctrica | C13: 1987.787339 | D13: 0 | E13: 0 | F13: 0 | G13: 9.833162 | H13: 0 | I13: 0 | J13: 678.244937 | K13: 0 | L13: 73.81801 | M13: 0 | N13: 1648.82012 | O13: 0 | P13: 0 | Q13: 0 | R13: 0 | S13: 43.023967 | T13: 0 | U13: 0 | V13: =SUM(C13:U13) -> 4441.527535 | W13: 4441.527535 | X13: 0
B14: Otras renovables | C14: 1791.354686 | D14: 53.85382 | E14: 562.901315 | F14: 0.505693 | G14: 43.083803 | H14: 8.502588 | I14: 81.926784 | J14: 234.164975 | K14: 181.366081 | L14: 355.943909 | M14: 0 | N14: 122.21902 | O14: 225.803422 | P14: 11.889307 | Q14: 259.099419 | R14: 0 | S14: 36.905731 | T14: 303.593267 | U14: 61.171619 | V14: 4334.285439 | W14: 4325.277158 | X14: 9.008281
B15: Cogeneración | C15: 5617.652001 | D15: 3283.678132 | E15: 373.718186 | F15: 25.720822 | G15: 1802.855249 | H15: 0 | I15: 1219.72415 | J15: 1150.53805 | K15: 2971.210302 | L15: 5916.309649 | M15: 0 | N15: 57.850705 | O15: 2444.745145 | P15: 149.740855 | Q15: 1086.329052 | R15: 0 | S15: 1977.674374 | T15: 981.567399 | U15: 1776.350518 | V15: 30835.66459 | W15: 30809.94377 | X15: 25.720822
B16: Residuos no renovables | C16: 0 | D16: 174.358101 | E16: 486.3384 | F16: 113.066595 | G16: 274.061352 | H16: 0 | I16: 0 | J16: 0 | K16: 0 | L16: 37.6908435 | M16: 0 | N16: 0 | O16: 185.605094 | P16: 0 | Q16: 13.5031815 | R16: 4.0188985 | S16: 0 | T16: 0 | U16: 328.593563
B17: Residuos renovables | C17: 0 | D17: 0 | E17: 0 | F17: 113.066595 | G17: 0 | H17: 0 | I17: 0 | J17: 0 | K17: 0 | L17: 37.6908435 | M17: 0 | N17: 0 | O17: 185.599275 | P17: 0 | Q17: 13.5031815 | R17: 4.0188985 | S17: 0 | T17: 0 | U17: 201.860709
B18: Generación neta | C18: 34621.18401 | D18: 16875.06943 | E18: 13608.40251 | F18: 4398.363982 | G18: 18723.79135 | H18: 8506.317959 | I18: 2257.428497 | J18: 22786.10431 | K18: 31193.67338 | L18: 45029.32999 | M18: 201.964935 | N18: 20877.62769 | O18: 32832.33883 | P18: 1931.703163 | Q18: 1630.35455 | R18: 209.6708 | S18: 5844.44607 | T18: 5216.369808 | U18: 6448.919046 | V18: =SUM(V4:V17) -> 271020.0848 | W18: 257703.7671 | X18: 13316.31768
B19: Consumos en bombeo | C19: -478.113175 | D19: -367.894372 | E19: -77.286096 | F19: 0 | G19: -1518.666956 | H19: 0 | I19: -762.32974 | J19: -186.0701388 | K19: -1729.745 | L19: -341.581207 | M19: 0 | N19: -57.9631 | O19: -436.126307 | P19: 0 | Q19: 0 | R19: 0 | S19: 0 | T19: 0 | U19: 0 | V19: =SUM(C19:U19) -> -5955.776092 | W19: -5955.776092 | X19: 0
B20: Saldo Intercambios | C20: 3927.759415 | D20: -6403.434694 | E20: -3117.617399 | F20: 1268.5086 | G20: 8623.685528 | H20: 0 | I20: 2892.042836 | J20: -10970.41155 | K20: -15818.31497 | L20: 1498.967266 | M20: 0 | N20: -15968.10176 | O20: -12525.21546 | P20: -232.825232 | Q20: 27965.82232 | R20: 0 | S20: 2456.329603 | T20: -439.785081 | U20: 10110.45813 | V20: -6732.132457 | W20: -8000.641057 | X20: 1268.5086
B21: Demanda B.C | C21: 38070.83025 | D21: 10103.74036 | E21: 10413.49901 | F21: 5666.872582 | G21: 25828.80993 | H21: 8506.317959 | I21: 4387.141593 | J21: 11629.62262 | K21: 13645.61341 | L21: 46186.71605 | M21: 201.964935 | N21: 4851.562823 | O21: 19870.99706 | P21: 1698.877931 | Q21: 29596.17687 | R21: 209.6708 | S21: 8300.775673 | T21: 4776.584727 | U21: 16559.37718 | V21: =SUM(V18:V20) -> 258332.1762 | W21: 243747.3499 | X21: 14584.82628
B22: Δ2013/2012 | C22: =(C21/C1-1) -> -0.03815363207 | D22: =(D21/D1-1) -> -0.01632709311 | E22: 0.01121583338 | F22: -0.02654473816 | G22: -0.02202693342 | H22: -0.0428610292 | I22: -0.006207841651 | J22: -0.03723150899 | K22: -0.01329310768 | L22: -0.0296838124 | M22: -0.04765824928 | N22: -0.01799914767 | O22: 0.007870847707 | P22: -0.0216451 | Q22: -0.03837466443 | R22: -0.03525334272 | S22: -0.03148344324 | T22: -0.00682443912 | U22: =(U21/U1-1) -> -0.007597718917 | V22: -0.03194967142 | W22: =(W21/W1-1) -> -0.03167334532 | X22: =(X21/X1-1) -> -0.03654451067
B23: Renovable | C23: =C4+C10+C11+C12+C13+C14+C17 -> 13638.17965 | D23: =D4+D10+D11+D12+D13+D14+D17 -> 9624.363909 | E23: 3862.952969 | F23: 241.844608 | G23: 3618.235888 | H23: 660.970673 | I23: 499.866067 | J23: 12184.52813 | K23: 22068.49357 | L23: 9488.285502 | M23: 0 | N23: 5709.589646 | O23: 19572.48952 | P23: 1400.988931 | Q23: 530.5223165 | R23: 4.1012215 | S23: 1556.672784 | T23: 3881.29248 | U23: 1214.279755 | V23: =SUM(C23:U23) -> 109757.6576 | W23: =V23-F23-H23-M23-R23 -> 108850.7411 | X23: =F23+H23+M23+R23 -> 906.9165025
B24: No renovable | C24: =C5+C6+C7+C8+C9+C15+C16 -> 20983.00435 | D24: =D5+D6+D7+D8+D9+D15+D16 -> 7250.705519 | E24: 9745.449541 | F24: 4156.519374 | G24: 15105.55547 | H24: 7845.347286 | I24: 1757.56243 | J24: 10601.57618 | K24: 9125.179811 | L24: 35541.04449 | M24: 201.964935 | N24: 15168.03804 | O24: 13259.84931 | P24: 530.714232 | Q24: 1099.832234 | R24: 205.5695785 | S24: 4287.773286 | T24: 1335.077328 | U24: 5234.639291 | V24: 163435.4027 | W24: =V24-F24-H24-M24-R24 -> 151026.0015 | X24: 12409.40117
B25: % Renovable s/total | C25: =(C23)/C$18 -> 0.3939258591 | D25: =(D23)/D$18 -> 0.5703303296 | E25: 0.2838652786 | F25: 0.05498512833 | G25: 0.1932426943 | H25: 0.07770349947 | I25: 0.2214316279 | J25: 0.5347350281 | K25: 0.7074669693 | L25: 0.2107134506 | M25: 0 | N25: 0.2734788517 | O25: 0.5961344887 | P25: 0.725260981 | Q25: 0.3254030337 | R25: 0.01956028927 | S25: 0.2663507825 | T25: 0.7440600691 | U25: 0.1882919829 | V25: =(V23)/V$18 -> 0.4049797922 | W25: 0.4223870778 | X25: 0.06810565237
B26: % No renovable s/total | C26: =(C24)/C$18 -> 0.6060741409 | D26: =(D24)/D$18 -> 0.4296696704 | E26: 0.7161347214 | F26: 0.9450148717 | G26: 0.8067573057 | H26: 0.9222965005 | I26: 0.7785683721 | J26: 0.4652649719 | K26: 0.2925330307 | L26: 0.7892865494 | M26: 1 | N26: 0.7265211483 | O26: 0.4038655113 | P26: 0.274739019 | Q26: 0.6745969663 | R26: 0.9804397107 | S26: 0.7336492175 | T26: 0.2559399309 | U26: 0.8117080171 | V26: =(V24)/V$18 -> 0.6030379734 | W26: 0.5860449896 | X26: 0.9318943476
B28: 2014
B29: CCAA | C29: Andalucía | D29: Aragón | E29: Asturias | F29: Baleares | G29: C. Valenciana | H29: Canarias | I29: Cantabria | J29: Castilla-La Mancha | K29: Castilla y León | L29: Cataluña | M29: Ceuta | N29: Extremadura | O29: Galicia | P29: La Rioja | Q29: Madrid | R29: Melilla | S29: Murcia | T29: Navarra | U29: País Vasco | V29: España | W29: PENINSULAR | X29: NO PENINSULAR
B31: Hidráulica | C31: 933.9973379 | D31: 4070.716808 | E31: 1877.444508 | F31: 0 | G31: 605.144702 | H31: 3.461056 | I31: 256.267406 | J31: 1006.208552 | K31: 10677.65992 | L31: 5231.032116 | M31: 0 | N31: 3081.055859 | O31: 9853.78446 | P31: 168.339304 | Q31: 202.371409 | R31: 0 | S31: 131.422704 | T31: 656.487852 | U31: 426.591221 | V31: =SUM(C31:U31) -> 39181.98522 | W31: =V31-F31-H31-M31-R31 -> 39178.52416 | X31: =F31+H31+M31+R31 -> 3.461056
B32: Turbinación bombeo | C32: 340.4861921 | D32: 327.190469 | E32: 53.9156891 | F32: 0 | G32: 1170.074173 | H32: 0 | I32: 606.802956 | J32: 61.01868 | K32: 497.2400575 | L32: 269.0966327 | M32: 0 | N32: 43.36111472 | O32: 46.8100626 | P32: 0 | Q32: 0 | R32: 0 | S32: 0 | T32: 0 | U32: 0 | V32: =SUM(C32:U32) -> 3415.996027 | W32: =V32-F32-H32-M32-R32 -> 3415.996027 | X32: =F32+H32+M32+R32 -> 0
B33: Nuclear | C33: 0 | D33: 0 | E33: 0 | F33: 0 | G33: 9108.22974 | H33: 0 | I33: 0 | J33: 7770.076699 | K33: -18.700043 | L33: 22742.17905 | M33: 0 | N33: 15179.49589 | O33: 0 | P33: 0 | Q33: 0 | R33: 0 | S33: 0 | T33: 0 | U33: 0 | V33: =SUM(C33:U33) -> 54781.28133 | W33: =V33-F33-H33-M33-R33 -> 54781.28133 | X33: 0
B34: Carbón | C34: 9495.383069 | D34: 4601.910773 | E34: 8544.933344 | F34: 2187.777726 | G34: 0 | H34: 0 | I34: 0 | J34: 873.04718 | K34: 7980.045263 | L34: 0 | M34: 0 | N34: 0 | O34: 9562.959142 | P34: 0 | Q34: 0 | R34: 0 | S34: 0 | T34: 0 | U34: 0 | V34: 43246.0565 | W34: 41058.27877 | X34: 2187.777726
B35: Fuel / gas | C35: 0 | D35: 0 | E35: 0 | F35: 1259.865536 | G35: 0.015772 | H35: 4569.714158 | I35: 0 | J35: 0 | K35: 0 | L35: -0.835503 | M35: 212.245157 | N35: 0 | O35: 0 | P35: 0 | Q35: 0 | R35: 200.816768 | S35: 0 | T35: 0 | U35: 0 | V35: 6241.821888 | W35: -0.819731 | X35: 6242.641619
B36: Ciclo combinado | C36: 4355.821885 | D36: 198.612013 | E36: 288.721822 | F36: 419.63312 | G36: 3997.406 | H36: 3240.591696 | I36: 0 | J36: 1035.669191 | K36: 0 | L36: 4988.739342 | M36: 0 | N36: 0 | O36: 503.034344 | P36: 148.391791 | Q36: 0 | R36: 0 | S36: 2302.778108 | T36: 360.406157 | U36: 2940.927972 | V36: =SUM(C36:U36) -> 24780.73344 | W36: =V36-F36-H36-M36-R36 -> 21120.50863 | X36: =F36+H36+M36+R36 -> 3660.224816
B37: Hidroeólica | C37: 0 | D37: 0 | E37: 0 | F37: 0 | G37: 0 | H37: 0.728837 | I37: 0 | J37: 0 | K37: 0 | L37: 0 | M37: 0 | N37: 0 | O37: 0 | P37: 0 | Q37: 0 | R37: 0 | S37: 0 | T37: 0 | U37: 0 | V37: =SUM(C37:U37) -> 0.728837 | W37: =V37-F37-H37-M37-R37 -> 0 | X37: =F37+H37+M37+R37 -> 0.728837
B38: Eólica | C38: 6450.405666 | D38: 4447.307945 | E38: 1140.608134 | F38: 5.839578 | G38: 2521.666185 | H38: 389.528806 | I38: 76.30895 | J38: 8390.570682 | K38: 12330.56182 | L38: 2867.133966 | M38: 0 | N38: 0 | O38: 8316.470118 | P38: 947.718085 | Q38: 0 | R38: 0 | S38: 512.017404 | T38: 2292.013138 | U38: 343.88037 | V38: =SUM(C38:U38) -> 51032.03085 | W38: =V38-F38-H38-M38-R38 -> 50636.66246 | X38: =F38+H38+M38+R38 -> 395.368384
B39: Solar fotovoltaica | C39: 1574.610331 | D39: 297.537986 | E39: 0.666843 | F39: 122.765689 | G39: 544.652081 | H39: 282.285689 | I39: 2.218715 | J39: 1689.43118 | K39: 843.251057 | L39: 413.376301 | M39: 0 | N39: 1071.204459 | O39: 19.502751 | P39: 128.873369 | Q39: 93.257066 | R39: 0.083833 | S39: 797.074869 | T39: 297.778193 | U39: 29.355719 | V39: =SUM(C39:U39) -> 8207.926131 | W39: 7802.79092 | X39: 405.135211
B40: Solar termoeléctrica | C40: 2124.235754 | D40: 0 | E40: 0 | F40: 0 | G40: 93.85092 | H40: 0 | I40: 0 | J40: 734.252687 | K40: 0 | L40: 65.812195 | M40: 0 | N40: 1899.40041 | O40: 0 | P40: 0 | Q40: 0 | R40: 0 | S40: 41.36296 | T40: 0 | U40: 0 | V40: 4958.914926 | W40: 4958.914926 | X40: 0
B41: Otras renovables | C41: 1484.732993 | D41: 44.075335 | E41: 515.564688 | F41: 1.945659 | G41: 38.98415 | H41: 8.806584 | I41: 85.795958 | J41: 227.923774 | K41: 249.127088 | L41: 170.078909 | M41: 0 | N41: 194.085691 | O41: 219.273733 | P41: 7.290583 | Q41: 204.880629 | R41: 0 | S41: 33.307627 | T41: 306.316933 | U41: 24.125383 | V41: 3816.315717 | W41: 3805.563474 | X41: 10.752243
B42: Cogeneración | C42: 5179.178695 | D42: 2382.822831 | E42: 337.791081 | F42: 25.222584 | G42: 1397.853211 | H42: 0 | I42: 831.901583 | J42: 718.730339 | K42: 1682.016098 | L42: 4591.081684 | M42: 0 | N42: 34.766437 | O42: 2151.936167 | P42: 56.949525 | Q42: 736.528251 | R42: 0 | S42: 1512.313104 | T42: 710.155483 | U42: 1803.996809 | V42: 24153.24388 | W42: 24128.0213 | X42: 25.222584
B43: Residuos no renovables | C43: 0 | D43: 305.025949 | E43: 441.638479 | F43: 128.0843295 | G43: 395.679765 | H43: 0 | I43: 0 | J43: 0 | K43: 0 | L43: 97.869537 | M43: 0 | N43: 0 | O43: 177.707178 | P43: 0 | Q43: 32.410415 | R43: 4.449157 | S43: 0 | T43: 0 | U43: 383.012234
B44: Residuos renovables | C44: 0 | D44: 0 | E44: 0 | F44: 128.0843295 | G44: 0 | H44: 0 | I44: 0 | J44: 0 | K44: 0 | L44: 97.869537 | M44: 0 | N44: 0 | O44: 177.705808 | P44: 0 | Q44: 32.410415 | R44: 4.449157 | S44: 0 | T44: 0 | U44: 237.552326
B45: Generación neta | C45: 31938.85192 | D45: 16675.20011 | E45: 13201.28459 | F45: 4279.218551 | G45: 19873.5567 | H45: 8495.116826 | I45: 1859.295568 | J45: 22506.92896 | K45: 34241.20126 | L45: 41533.43377 | M45: 212.245157 | N45: 21503.36986 | O45: 31029.18376 | P45: 1457.562657 | Q45: 1301.858185 | R45: 209.798915 | S45: 5330.276776 | T45: 4623.157756 | U45: 6189.442034 | V45: =SUM(V31:V44) -> 263817.0347 | W45: 250620.6553 | X45: 13196.37945
B46: Consumos en bombeo | C46: -492.779935 | D46: -443.065487 | E46: -78.996821 | F46: 0 | G46: -1574.859955 | H46: 0 | I46: -854.983244 | J46: -131.8589256 | K46: -1107.752459 | L46: -367.452015 | M46: 0 | N46: -72.2704 | O46: -261.749618 | P46: 0 | Q46: 0 | R46: 0 | S46: 0 | T46: 0 | U46: 0 | V46: =SUM(C46:U46) -> -5385.76886 | W46: -5385.76886 | X46: 0
B47: Saldo Intercambios | C47: 5997.304559 | D47: -6143.801954 | E47: -2797.14079 | F47: 1298.258934 | G47: 7524.506808 | H47: 0 | I47: 3320.107306 | J47: -10768.52955 | K47: -19602.37979 | L47: 4399.03406 | M47: 0 | N47: -16807.29257 | O47: -11010.994 | P47: 228.095478 | Q47: 27060.08167 | R47: 0 | S47: 3123.632276 | T47: 157.976093 | U47: 10615.01744 | V47: -3406.124022 | W47: -4704.382956 | X47: 1298.258934
B48: Demanda B.C | C48: 37443.37655 | D48: 10088.33267 | E48: 10325.14698 | F48: 5577.477485 | G48: 25823.20355 | H48: 8495.116826 | I48: 4324.41963 | J48: 11606.54049 | K48: 13531.06902 | L48: 45565.01581 | M48: 212.245157 | N48: 4623.806886 | O48: 19756.44015 | P48: 1685.658135 | Q48: 28361.93986 | R48: 209.798915 | S48: 8453.909052 | T48: 4781.133849 | U48: 16804.45947 | V48: 257669.0905 | W48: 243174.4521 | X48: 14494.63838
B49: =CONCATENATE("Δ",B28,"/",B28-1) -> Δ2014/2013 | C49: =(C48/C21-1) -> -0.01648121922 | D49: -0.001524949518 | E49: -0.0084843757 | F49: -0.01577503212 | G49: -0.0002170588973 | H49: -0.001316801588 | I49: -0.01429677198 | J49: -0.001984770315 | K49: -0.008394227918 | L49: -0.01346058545 | M49: 0.05090102398 | N49: -0.0469448599 | O49: -0.005765030946 | P49: -0.007781486685 | Q49: -0.04170258261 | R49: 0.0006110292897 | S49: 0.01844808064 | T49: 0.0009523796311 | U49: 0.01480021232 | V49: =(V48/V21-1) -> -0.002566795021 | W49: -0.00235037571 | X49: -0.00618367962
B50: Renovable | C50: =C31+C37+C38+C39+C40+C41+C44 -> 12567.98208 | D50: =D31+D37+D38+D39+D40+D41+D44 -> 8859.638074 | E50: 3534.284173 | F50: 258.6352555 | G50: 3804.298038 | H50: 684.810972 | I50: 420.591029 | J50: 12048.38688 | K50: 24100.59989 | L50: 8845.303024 | M50: 0 | N50: 6245.746419 | O50: 18586.73687 | P50: 1252.221341 | Q50: 532.919519 | R50: 4.53299 | S50: 1515.185564 | T50: 3552.596116 | U50: 1061.505019 | V50: =SUM(C50:U50) -> 107875.9732 | W50: =V50-F50-H50-M50-R50 -> 106927.994 | X50: =F50+H50+M50+R50 -> 947.9792175
B51: No renovable | C51: =C32+C33+C34+C35+C36+C42+C43 -> 19370.86984 | D51: =D32+D33+D34+D35+D36+D42+D43 -> 7815.562035 | E51: 9667.000415 | F51: 4020.583296 | G51: 16069.25866 | H51: 7810.305854 | I51: 1438.704539 | J51: 10458.54209 | K51: 10140.60138 | L51: 32688.13074 | M51: 212.245157 | N51: 15257.62344 | O51: 12442.44689 | P51: 205.341316 | Q51: 768.938666 | R51: 205.265925 | S51: 3815.091212 | T51: 1070.56164 | U51: 5127.937015 | V51: =SUM(C51:U51) -> 158585.0101 | W51: =V51-F51-H51-M51-R51 -> 146336.6099 | X51: 12248.40023
B52: % Renovable s/total | C52: =(C50)/C$45 -> 0.3935013729 | D52: =(D50)/D$45 -> 0.5313062522 | E52: 0.2677227469 | F52: 0.06043983321 | G52: 0.1914251231 | H52: 0.08061230776 | I52: 0.2262098809 | J52: 0.5353190075 | K52: 0.7038479667 | L52: 0.2129682577 | M52: 0 | N52: 0.2904543083 | O52: 0.5990082437 | P52: 0.8591200762 | Q52: 0.4093529734 | R52: 0.02160635578 | S52: 0.2842602041 | T52: 0.7684349753 | U52: 0.1715025382 | V52: =(V50)/V$45 -> 0.4089045021 | W52: 0.4266527589 | X52: 0.07183631095
B53: % No renovable s/total | C53: =(C51)/C$45 -> 0.6064986271 | D53: =(D51)/D$45 -> 0.4686937478 | E53: 0.7322772531 | F53: 0.9395601668 | G53: 0.8085748769 | H53: 0.9193876922 | I53: 0.7737901191 | J53: 0.4646809925 | K53: 0.2961520333 | L53: 0.7870317423 | M53: 1 | N53: 0.7095456917 | O53: 0.4009917563 | P53: 0.1408799238 | Q53: 0.5906470266 | R53: 0.9783936442 | S53: 0.7157397959 | T53: 0.2315650247 | U53: 0.8284974618 | V53: =(V51)/V$45 -> 0.6011174004 | W53: 0.5838968449 | X53: 0.9281636891
B55: 2015
B56: CCAA | C56: Andalucía | D56: Aragón | E56: Asturias | F56: Baleares | G56: C. Valenciana | H56: Canarias | I56: Cantabria | J56: Castilla-La Mancha | K56: Castilla y León | L56: Cataluña | M56: Ceuta | N56: Extremadura | O56: Galicia | P56: La Rioja | Q56: Madrid | R56: Melilla | S56: Murcia | T56: Navarra | U56: País Vasco | V56: España | W56: PENINSULAR | X56: NO PENINSULAR
B58: Hidráulica | C58: 695.1913112 | D58: 3179.519348 | E58: 1612.155268 | F58: 0 | G58: 605.015281 | H58: 3.568393 | I58: 283.778622 | J58: 700.914375 | K58: 7746.905099 | L58: 4392.8551 | M58: 0 | N58: 1581.01433 | O58: 6249.440489 | P58: 145.037935 | Q58: 131.5322 | R58: 0 | S58: 112.23754 | T58: 519.85268 | U58: 423.561992 | V58: =SUM(C58:U58) -> 28382.57996 | W58: =V58-F58-H58-M58-R58 -> 28379.01157 | X58: =F58+H58+M58+R58 -> 3.568393
B59: Turbinación bombeo | C59: 263.7823678 | D59: 281.952085 | E59: 26.8631636 | F59: 0 | G59: 1018.291565 | H59: 0 | I59: 477.330023 | J59: 31.737669 | K59: 413.8450527 | L59: 321.1057216 | M59: 0 | N59: 27.01948198 | O59: 33.4386584 | P59: 0 | Q59: 0 | R59: 0 | S59: 0 | T59: 0 | U59: 0 | V59: =SUM(C59:U59) -> 2895.365788 | W59: =V59-F59-H59-M59-R59 -> 2895.365788 | X59: =F59+H59+M59+R59 -> 0
B60: Nuclear | C60: 0 | D60: 0 | E60: 0 | F60: 0 | G60: 7415.431102 | H60: 0 | I60: 0 | J60: 7913.818669 | K60: -18.785206 | L60: 23291.82894 | M60: 0 | N60: 16059.5098 | O60: 0 | P60: 0 | Q60: 0 | R60: 0 | S60: 0 | T60: 0 | U60: 0 | V60: 54661.80331 | W60: =V60-F60-H60-M60-R60 -> 54661.80331 | X60: 0
B61: Carbón | C61: 12688.68989 | D61: 4392.922854 | E61: 12468.45371 | F61: 1861.683087 | G61: 0 | H61: 0 | I61: 0 | J61: 894.92856 | K61: 9268.889547 | L61: 0 | M61: 0 | N61: 0 | O61: 11040.90995 | P61: 0 | Q61: 0 | R61: 0 | S61: 0 | T61: 0 | U61: 0 | V61: 52616.4776 | W61: 50754.79451 | X61: 1861.683087
B62: Fuel / gas | C62: 0 | D62: 0 | E62: 0 | F62: 1322.15176 | G62: 0.016618 | H62: 4753.09336 | I62: 0 | J62: 0 | K62: 0 | L62: 0 | M62: 204.02309 | N62: 0 | O62: 0 | P62: 0 | Q62: 0 | R62: 204.5286 | S62: 0 | T62: 0 | U62: 0 | V62: 6483.813428 | W62: =V62-F62-H62-M62-R62 -> 0.016618 | X62: =F62+H62+M62+R62 -> 6483.79681
B63: Ciclo combinado | C63: 5573.449916 | D63: 166.155911 | E63: 358.279196 | F63: 804.686986 | G63: 4842.225671 | H63: 3188.056789 | I63: 0 | J63: 1280.68657 | K63: 0 | L63: 6776.885398 | M63: 0 | N63: 0 | O63: 319.281472 | P63: 575.945451 | Q63: 0 | R63: 0 | S63: 2008.743804 | T63: 717.481873 | U63: 2415.410298 | V63: 29027.28934 | W63: =V63-F63-H63-M63-R63 -> 25034.54556 | X63: =F63+H63+M63+R63 -> 3992.743775
B64: Hidroeólica | C64: 0 | D64: 0 | E64: 0 | F64: 0 | G64: 0 | H64: 8.207424 | I64: 0 | J64: 0 | K64: 0 | L64: 0 | M64: 0 | N64: 0 | O64: 0 | P64: 0 | Q64: 0 | R64: 0 | S64: 0 | T64: 0 | U64: 0 | V64: 8.207424 | W64: =V64-F64-H64-M64-R64 -> 0 | X64: =F64+H64+M64+R64 -> 8.207424
B65: Eólica | C65: 6363.837098 | D65: 4363.433561 | E65: 1036.999255 | F65: 5.318228 | G65: 2195.993566 | H65: 396.687143 | I65: 70.740945 | J65: 7286.716406 | K65: 11138.02588 | L65: 2608.782257 | M65: 0 | N65: 0 | O65: 8444.754153 | P65: 934.741484 | Q65: 0 | R65: 0 | S65: 426.210419 | T65: 2503.691572 | U65: 341.95555 | V65: =SUM(C65:U65) -> 48117.88752 | W65: =V65-F65-H65-M65-R65 -> 47715.88215 | X65: =F65+H65+M65+R65 -> 402.005371
B66: Solar fotovoltaica | C66: 1570.622775 | D66: 304.311882 | E66: 0.651736 | F66: 122.619803 | G66: 523.083168 | H66: 275.546605 | I66: 2.05531 | J66: 1722.910268 | K66: 847.266542 | L66: 421.096957 | M66: 0 | N66: 1111.128994 | O66: 20.758184 | P66: 132.187662 | Q66: 93.788112 | R66: 0.07996 | S66: 762.396862 | T66: 304.335307 | U66: 28.720778 | V66: 8243.560905 | W66: 7845.314537 | X66: 398.246368
B67: Solar termoeléctrica | C67: 2110.236508 | D67: 0 | E67: 0 | F67: 0 | G67: 89.976464 | H67: 0 | I67: 0 | J67: 735.486298 | K67: 0 | L67: 75.591874 | M67: 0 | N67: 2037.844843 | O67: 0 | P67: 0 | Q67: 0 | R67: 0 | S67: 36.099527 | T67: 0 | U67: 0 | V67: 5085.235514 | W67: 5085.235514 | X67: 0
B68: Otras renovables | C68: 1329.586502 | D68: 58.113015 | E68: 238.102697 | F68: 1.971549 | G68: 40.643071 | H68: 8.053625 | I68: 85.075816 | J68: 252.17613 | K68: 251.814604 | L68: 175.036771 | M68: 0 | N68: 228.699561 | O68: 235.937514 | P68: 6.55353 | Q68: 156.870739 | R68: 0 | S68: 39.185057 | T68: 310.219029 | U68: 14.552711 | V68: 3432.591921 | W68: 3422.566747 | X68: 10.025174
B69: Cogeneración | C69: 5143.328505 | D69: 2442.232774 | E69: 347.805937 | F69: 31.549727 | G69: 1531.552624 | H69: 0 | I69: 716.346056 | J69: 767.378364 | K69: 1800.117346 | L69: 4678.238694 | M69: 0 | N69: 40.250959 | O69: 2629.349461 | P69: 76.115417 | Q69: 694.046949 | R69: 0 | S69: 1458.475687 | T69: 758.20467 | U69: 2085.884596 | V69: 25200.87777 | W69: 25169.32804 | X69: 31.549727
B70: Residuos no renovables | C70: 0 | D70: 404.302174 | E70: 720.741036 | F70: 151.0977295 | G70: 365.328105 | H70: 0 | I70: 33.14212 | J70: 0 | K70: 0 | L70: 136.54451 | M70: 0 | N70: 0 | O70: 187.9840255 | P70: 0 | Q70: 62.844877 | R70: 4.296498 | S70: 0 | T70: 0 | U70: 413.8278935
B71: Residuos renovables | C71: 0 | D71: 0 | E71: 0 | F71: 151.0977295 | G71: 0 | H71: 0 | I71: 33.14212 | J71: 0 | K71: 0 | L71: 136.54451 | M71: 0 | N71: 0 | O71: 187.9840255 | P71: 0 | Q71: 62.844877 | R71: 4.296498 | S71: 0 | T71: 0 | U71: 242.1399425
B72: Generación neta | C72: 35738.72487 | D72: 15592.9436 | E72: 16810.052 | F72: 4452.176599 | G72: 18627.55724 | H72: 8633.213339 | I72: 1701.611012 | J72: 21586.75331 | K72: 31448.07886 | L72: 43014.51073 | M72: 204.02309 | N72: 21085.46797 | O72: 29349.83793 | P72: 1870.581479 | Q72: 1201.927754 | R72: 213.201556 | S72: 4843.348896 | T72: 5113.785131 | U72: 5966.053761 | V72: =SUM(C72:U72) -> 267453.8491 | W72: 253951.2346 | X72: 13502.61458
B73: Consumos en bombeo | C73: -381.995167 | D73: -402.655158 | E73: -41.476484 | F73: 0 | G73: -1382.261101 | H73: 0 | I73: -687.886179 | J73: -46.26100061 | K73: -855.200483 | L73: -433.787466 | M73: 0 | N73: -44.75897 | O73: -235.969422 | P73: 0 | Q73: 0 | R73: 0 | S73: 0 | T73: 0 | U73: 0 | V73: =SUM(C73:U73) -> -4512.251431 | W73: -4512.251431 | X73: 0
B74: Saldo Intercambios | C74: 3182.750362 | D74: -4892.455363 | E74: -6279.547751 | F74: 1335.792544 | G74: 9423.605945 | H74: 0 | I74: 3235.767672 | J74: -9995.480721 | K74: -16758.83451 | L74: 3989.204134 | M74: 0 | N74: -16222.17903 | O74: -9396.078717 | P74: -150.529544 | Q74: 27584.40764 | R74: 0 | S74: 4059.84572 | T74: -270.25732 | U74: 11020.82576 | V74: -133.163171 | W74: -1468.955715 | X74: 1335.792544
B75: Demanda B.C | C75: 38539.48007 | D75: 10297.83308 | E75: 10489.02777 | F75: 5787.969143 | G75: 26668.90208 | H75: 8633.213339 | I75: 4249.492505 | J75: 11545.01159 | K75: 13834.04387 | L75: 46569.9274 | M75: 204.02309 | N75: 4818.529973 | O75: 19717.78979 | P75: 1720.051935 | Q75: 28786.3354 | R75: 213.201556 | S75: 8903.194616 | T75: 4843.527811 | U75: 16986.87952 | V75: 262808.4345 | W75: =V75-F75-H75-M75-R75 -> 247970.0274 | X75: 14838.40713
B76: =CONCATENATE("Δ",B55,"/",B55-1) -> Δ2015/2014 | C76: =(C75/C48-1) -> 0.02927362915 | D76: 0.02076660454 | E76: 0.01587200573 | F76: 0.03773958005 | G76: 0.03274955895 | H76: 0.01625598751 | I76: -0.01732651579 | J76: -0.005301226589 | K76: 0.02239105119 | L76: 0.02205445485 | M76: -0.03873853762 | N76: 0.04211315304 | O76: -0.001956342272 | P76: 0.02040378134 | Q76: 0.01496355828 | R76: 0.01621858245 | S76: 0.0531453037 | T76: 0.01305003457 | U76: 0.01085545455 | V76: 0.01994552022 | W76: 0.01972072012 | X76: 0.02371695905
B77: Renovable | C77: =C58+C64+C65+C66+C67+C68+C71 -> 12069.47419 | D77: =D58+D64+D65+D66+D67+D68+D71 -> 7905.377806 | E77: 2887.908956 | F77: 281.0073095 | G77: 3454.71155 | H77: 692.06319 | I77: 474.792813 | J77: 10698.20348 | K77: 19984.01212 | L77: 7809.907469 | M77: 0 | N77: 4958.687728 | O77: 15138.87437 | P77: 1218.520611 | Q77: 445.035928 | R77: 4.376458 | S77: 1376.129405 | T77: 3638.098588 | U77: 1050.930974 | V77: =SUM(C77:U77) -> 94088.11295 | W77: =V77-F77-H77-M77-R77 -> 93110.66599 | X77: =F77+H77+M77+R77 -> 977.4469575
B78: No renovable | C78: =C59+C60+C61+C62+C63+C69+C70 -> 23669.25068 | D78: =D59+D60+D61+D62+D63+D69+D70 -> 7687.565798 | E78: 13922.14305 | F78: 4171.16929 | G78: 15172.84569 | H78: 7941.150149 | I78: 1226.818199 | J78: 10888.54983 | K78: 11464.06674 | L78: 35204.60326 | M78: 204.02309 | N78: 16126.78024 | O78: 14210.96356 | P78: 652.060868 | Q78: 756.891826 | R78: 208.825098 | S78: 3467.219491 | T78: 1475.686543 | U78: 4915.122788 | V78: 173365.7362 | W78: =V78-F78-H78-M78-R78 -> 160840.5686 | X78: =F78+H78+M78+R78 -> 12525.16763
B79: % Renovable s/total | C79: =(C77)/C$72 -> 0.3377141808 | D79: =(D77)/D$72 -> 0.5069843133 | E79: 0.171796551 | F79: 0.06311683808 | G79: 0.1854624042 | H79: 0.08016287364 | I79: 0.2790254704 | J79: 0.4955911305 | K79: 0.6354605065 | L79: 0.1815644846 | M79: 0 | N79: 0.2351708643 | O79: =(O77)/O$72 -> 0.515807767 | P79: 0.6514127423 | Q79: 0.3702684513 | R79: 0.02052732673 | S79: 0.2841276634 | T79: 0.7114296934 | U79: 0.1761517773 | V79: 0.3517919568 | W79: 0.3666478179 | X79: 0.07238945846
B80: % No renovable s/total | C80: =(C78)/C$72 -> 0.6622858192 | D80: =(D78)/D$72 -> 0.4930156867 | E80: 0.828203449 | F80: 0.9368831619 | G80: 0.8145375958 | H80: 0.9198371264 | I80: 0.7209745296 | J80: 0.5044088695 | K80: 0.3645394935 | L80: 0.8184355154 | M80: 1 | N80: 0.7648291357 | O80: 0.484192233 | P80: 0.3485872577 | Q80: 0.6297315487 | R80: 0.9794726733 | S80: 0.7158723366 | T80: 0.2885703066 | U80: 0.8238482227 | V80: 0.6482080432 | W80: 0.6333521821 | X80: 0.9276105415
B82: 2016
B83: CCAA | C83: Andalucía | D83: Aragón | E83: Asturias | F83: Baleares | G83: C. Valenciana | H83: Canarias | I83: Cantabria | J83: Castilla-La Mancha | K83: Castilla y León | L83: Cataluña | M83: Ceuta | N83: Extremadura | O83: Galicia | P83: La Rioja | Q83: Madrid | R83: Melilla | S83: Murcia | T83: Navarra | U83: País Vasco | V83: España | W83: PENINSULAR | X83: NO PENINSULAR
B85: Hidráulica | C85: 688.9614169 | D85: 3112.00622 | E85: 1959.932986 | F85: 0 | G85: 589.237496 | H85: 3.453961 | I85: 254.004685 | J85: 731.944331 | K85: 11510.86864 | L85: 3938.974561 | M85: 0 | N85: 2476.422267 | O85: 9567.971255 | P85: 153.743187 | Q85: 154.125421 | R85: 0 | S85: 104.181638 | T85: 486.575821 | U85: 382.48444 | V85: =SUM(C85:U85) -> 36114.88833 | W85: =V85-F85-H85-M85-R85 -> 36111.43437 | X85: =F85+H85+M85+R85 -> 3.453961
B86: Turbinación bombeo | C86: 258.1047681 | D86: 317.108091 | E86: 25.5490438 | F86: 0 | G86: 1403.096403 | H86: 0 | I86: 428.064668 | J86: 45.31706 | K86: 356.1963241 | L86: 223.8100497 | M86: 0 | N86: 49.88669062 | O86: 27.195812 | P86: 0 | Q86: 0 | R86: 0 | S86: 0 | T86: 0 | U86: 0 | V86: =SUM(C86:U86) -> 3134.32891 | W86: =V86-F86-H86-M86-R86 -> 3134.32891 | X86: =F86+H86+M86+R86 -> 0
B87: Nuclear | C87: 0 | D87: 0 | E87: 0 | F87: 0 | G87: 9178.2569 | H87: 0 | I87: 0 | J87: 7992.498721 | K87: -18.877775 | L87: 23715.51364 | M87: 0 | N87: 15154.29057 | O87: 0 | P87: 0 | Q87: 0 | R87: 0 | S87: 0 | T87: 0 | U87: 0 | V87: 56021.68206 | W87: 56021.68206 | X87: 0
B88: Carbón | C88: 8282.932813 | D88: 3239.79042 | E88: 7553.129593 | F88: 2302.867971 | G88: 0 | H88: 0 | I88: 0 | J88: -2.005081 | K88: 6493.993332 | L88: 0 | M88: 0 | N88: 0 | O88: 9443.068703 | P88: 0 | Q88: 0 | R88: 0 | S88: 0 | T88: 0 | U88: 0 | V88: 37313.77775 | W88: 35010.90978 | X88: 2302.867971
B89: Fuel / gas | C89: 0 | D89: 0 | E89: 0 | F89: 1311.111904 | G89: 0.000235 | H89: 5034.34517 | I89: 0 | J89: 0 | K89: 0 | L89: 0 | M89: 210.680936 | N89: 0 | O89: 0 | P89: 0 | Q89: 0 | R89: 198.505785 | S89: 0 | T89: 0 | U89: 0 | V89: 6754.64403 | W89: 0.0002349999995 | X89: 6754.643795
B90: Ciclo combinado | C90: 6137.774454 | D90: 170.928206 | E90: 352.873535 | F90: 535.082095 | G90: 4674.465902 | H90: 3008.333741 | I90: 0 | J90: 1258.162343 | K90: 0 | L90: 6936.893769 | M90: 0 | N90: 0 | O90: 653.86488 | P90: 1002.173895 | Q90: 0 | R90: 0 | S90: 1074.530733 | T90: 1280.526645 | U90: 1920.871896 | V90: 29006.48209 | W90: 25463.06626 | X90: 3543.415836
B91: Hidroeólica | C91: 0 | D91: 0 | E91: 0 | F91: 0 | G91: 0 | H91: 17.891936 | I91: 0 | J91: 0 | K91: 0 | L91: 0 | M91: 0 | N91: 0 | O91: 0 | P91: 0 | Q91: 0 | R91: 0 | S91: 0 | T91: 0 | U91: 0 | V91: =SUM(C91:U91) -> 17.891936 | W91: 0 | X91: 17.891936
B92: Eólica | C92: 7060.264593 | D92: 4352.07361 | E92: 897.969269 | F92: 5.416058 | G92: 2224.688286 | H92: 393.080583 | I92: 70.502809 | J92: 7680.537222 | K92: 10939.94373 | L92: 2683.93762 | M92: 0 | N92: 0 | O92: 7218.889259 | P92: 933.709781 | Q92: 0 | R92: 0 | S92: 457.421152 | T92: 2445.808267 | U92: 332.418067 | V92: 47696.66031 | W92: 47298.16367 | X92: 398.496641
B93: Solar fotovoltaica | C93: 1525.641019 | D93: 295.281298 | E93: 0.58737 | F93: 120.50753 | G93: 514.058208 | H93: 277.661343 | I93: 2.095262 | J93: 1624.757124 | K93: 829.742434 | L93: 413.598756 | M93: 0 | N93: 1061.735134 | O93: 20.147258 | P93: 131.425654 | Q93: 88.527027 | R93: 0.0801 | S93: 747.019136 | T93: 294.940998 | U93: 29.661534 | V93: 7977.467185 | W93: 7579.218212 | X93: 398.248973
B94: Solar termoeléctrica | C94: 2194.631009 | D94: 0 | E94: 0 | F94: 0 | G94: 70.150953 | H94: 0 | I94: 0 | J94: 721.879998 | K94: 0 | L94: 70.319427 | M94: 0 | N94: 1973.457652 | O94: 0 | P94: 0 | Q94: 0 | R94: 0 | S94: 40.762663 | T94: 0 | U94: 0 | V94: 5071.201702 | W94: 5071.201702 | X94: 0
B95: Otras renovables | C95: 1368.231827 | D95: 53.330302 | E95: 245.265981 | F95: 1.309715 | G95: 38.907042 | H95: 9.335775 | I95: 76.573037 | J95: 238.410359 | K95: 247.161356 | L95: 174.026238 | M95: 0 | N95: 235.610537 | O95: 232.034116 | P95: 7.593838 | Q95: 137.921649 | R95: 0 | S95: 55.348953 | T95: 273.716822 | U95: 30.887281 | V95: 3425.664828 | W95: 3415.019338 | X95: 10.64549
B96: Cogeneración | C96: 5102.267592 | D96: 2498.912457 | E96: 369.745856 | F96: 34.701317 | G96: 1579.402809 | H96: 0 | I96: 831.309878 | J96: 988.741079 | K96: 1857.265954 | L96: 4689.191184 | M96: 0 | N96: 50.701283 | O96: 2801.991938 | P96: 65.604554 | Q96: 709.28833 | R96: 0 | S96: 1446.650791 | T96: 850.040002 | U96: 2032.828535 | V96: 25908.64356 | W96: 25873.94224 | X96: 34.701317
B97: Residuos no renovables | C97: 181.57978 | D97: 366.541587 | E97: 707.87569 | F97: 130.8050665 | G97: 344.800935 | H97: 0 | I97: 39.0922205 | J97: 0 | K97: 0 | L97: 136.458882 | M97: 0 | N97: 0 | O97: 169.1174265 | P97: 0 | Q97: 67.762207 | R97: 4.8500525 | S97: 0 | T97: 0 | U97: 458.0799175 | V97: =SUM(C97:U97) -> 2606.963765 | W97: =V97-F97-H97-M97-R97 -> 2471.308646 | X97: =F97+H97+M97+R97 -> 135.655119
B98: Residuos renovables | C98: 0 | D98: 0 | E98: 0 | F98: 130.8050665 | G98: 0 | H98: 0 | I98: 39.0922205 | J98: 0 | K98: 0 | L98: 134.043918 | M98: 0 | N98: 0 | O98: 169.1174265 | P98: 0 | Q98: 67.762207 | R98: 4.8500525 | S98: 0 | T98: 0 | U98: 239.7241385 | V98: =SUM(C98:U98) -> 785.3950295 | W98: =V98-F98-H98-M98-R98 -> 649.7399105 | X98: =F98+H98+M98+R98 -> 135.655119
B99: Generación neta | C99: 32800.38927 | D99: 14405.97219 | E99: 12112.92932 | F99: 4572.606723 | G99: 20617.06517 | H99: 8744.102509 | I99: 1740.73478 | J99: 21280.24316 | K99: 32216.294 | L99: 43116.76805 | M99: 210.680936 | N99: 21002.10414 | O99: 30303.39807 | P99: 2294.250909 | Q99: 1225.386841 | R99: 208.28599 | S99: 3925.915066 | T99: 5631.608555 | U99: 5426.955809 | V99: =SUM(C99:U99) -> 261835.6915 | W99: 248100.0153 | X99: 13735.67616
B100: Consumos en bombeo | C100: -370.585741 | D100: -425.494509 | E100: -38.75029 | F100: 0 | G100: -1830.034618 | H100: 0 | I100: -614.63017 | J100: -65.81258467 | K100: -920.199487 | L100: -303.602328 | M100: 0 | N100: -85.22237 | O100: -173.25297 | P100: 0 | Q100: 0 | R100: 0 | S100: 0 | T100: 0 | U100: 0 | V100: =SUM(C100:U100) -> -4827.585068 | W100: -4827.585068 | X100: 0
B101: Saldo Intercambios | C101: 7060.606797 | D101: -3545.737962 | E101: -1548.534664 | F101: 1250.583968 | G101: 7997.213819 | H101: 0 | I101: 3078.945329 | J101: -9526.472186 | K101: -17298.01001 | L101: 4015.063827 | M101: 0 | N101: -15964.53404 | O101: -10169.32934 | P101: -566.820404 | Q101: 27661.33191 | R101: 0 | S101: 5111.457609 | T101: -682.951774 | U101: 10785.23081 | V101: 7658.043687 | W101: 6407.459719 | X101: 1250.583968
B102: Demanda B.C | C102: 39490.41033 | D102: 10434.73972 | E102: 10525.64437 | F102: 5823.190691 | G102: 26784.24437 | H102: 8744.102509 | I102: 4205.049939 | J102: 11687.95839 | K102: 13998.0845 | L102: 46828.22955 | M102: 210.680936 | N102: 4952.347727 | O102: 19960.81576 | P102: 1727.430505 | Q102: 28886.71875 | R102: 208.28599 | S102: 9037.372675 | T102: 4948.656781 | U102: 16212.18662 | V102: 264666.1501 | W102: 249679.89 | X102: 14986.26013
B103: =CONCATENATE("Δ",B82,"/",B82-1) -> Δ2016/2015 | C103: =(C102/C75-1) -> 0.02467418503 | D103: 0.01329470345 | E103: 0.00349094328 | F103: 0.006085303347 | G103: 0.004324973359 | H103: 0.01284448393 | I103: -0.01045832319 | J103: 0.01238169376 | K103: 0.01185774915 | L103: 0.005546543906 | M103: 0.03263280641 | N103: 0.02777148939 | O103: 0.01232521361 | P103: 0.004289736751 | Q103: 0.003487187709 | R103: -0.02305595743 | S103: 0.01507077682 | T103: 0.02170504106 | U103: -0.04560536843 | V103: 0.007068706045 | W103: 0.006895440509 | X103: 0.009964209549
B104: Renovable | C104: =C85+C91+C92+C93+C94+C95+C98 -> 12837.72986 | D104: =D85+D91+D92+D93+D94+D95+D98 -> 7812.69143 | E104: 3103.755606 | F104: 258.0383695 | G104: 3437.041985 | H104: 701.423598 | I104: 442.2680135 | J104: 10997.52903 | K104: 23527.71616 | L104: 7414.90052 | M104: 0 | N104: 5747.22559 | O104: 17208.15931 | P104: 1226.47246 | Q104: 448.336304 | R104: 4.9301525 | S104: 1404.733542 | T104: 3501.041908 | U104: 1015.17546 | V104: =SUM(C104:U104) -> 101089.1693 | W104: =V104-F104-H104-M104-R104 -> 100124.7772 | X104: =F104+H104+M104+R104 -> 964.39212
B105: No renovable | C105: =C86+C87+C88+C89+C90+C96+C97 -> 19962.65941 | D105: =D86+D87+D88+D89+D90+D96+D97 -> 6593.280761 | E105: 9009.173718 | F105: 4314.568353 | G105: 17180.02318 | H105: 8042.678911 | I105: 1298.466766 | J105: 10282.71412 | K105: 8688.577835 | L105: 35701.86753 | M105: 210.680936 | N105: 15254.87855 | O105: 13095.23876 | P105: 1067.778449 | Q105: 777.050537 | R105: 203.3558375 | S105: 2521.181524 | T105: 2130.566647 | U105: 4411.780349 | V105: =SUM(C105:U105) -> 160746.5222 | W105: =V105-F105-H105-M105-R105 -> 147975.2381 | X105: =F105+H105+M105+R105 -> 12771.28404
B106: % Renovable s/total | C106: =(C104)/C$99 -> 0.3913895582 | D106: =(D104)/D$99 -> 0.5423230953 | E106: 0.2562349307 | F106: 0.0564313498 | G106: 0.1667085959 | H106: 0.08021676293 | I106: 0.2540697288 | J106: 0.5167952712 | K106: 0.7303048626 | L106: 0.1719725493 | M106: 0 | N106: 0.2736499902 | O106: 0.5678623655 | P106: 0.5345851472 | Q106: 0.365873281 | R106: 0.02367011099 | S106: 0.3578104769 | T106: 0.6216770704 | U106: 0.1870616781 | V106: 0.3860786463 | W106: 0.4035661871 | X106: 0.07021074965
B107: % No renovable s/total | C107: =(C105)/C$99 -> 0.6086104418 | D107: =(D105)/D$99 -> 0.4576769047 | E107: 0.7437650693 | F107: 0.9435686502 | G107: 0.8332914041 | H107: 0.9197832371 | I107: 0.7459302712 | J107: 0.4832047288 | K107: 0.2696951374 | L107: 0.8280274507 | M107: 1 | N107: 0.7263500098 | O107: 0.4321376345 | P107: 0.4654148528 | Q107: 0.634126719 | R107: 0.976329889 | S107: 0.6421895231 | T107: 0.3783229296 | U107: 0.8129383219 | V107: 0.6139213537 | W107: 0.5964338129 | X107: 0.9297892504
B109: 2017
B110: CCAA | C110: Andalucía | D110: Aragón | E110: Asturias | F110: Baleares | G110: C. Valenciana | H110: Canarias | I110: Cantabria | J110: Castilla-La Mancha | K110: Castilla y León | L110: Cataluña | M110: Ceuta | N110: Extremadura | O110: Galicia | P110: La Rioja | Q110: Madrid | R110: Melilla | S110: Murcia | T110: Navarra | U110: País Vasco | V110: España | W110: PENINSULAR | X110: NO PENINSULAR
B112: Hidráulica | C112: 550.2314459 | D112: 2497.165478 | E112: 977.8708534 | F112: 0 | G112: 374.359758 | H112: 3.271979 | I112: 173.810458 | J112: 410.077844 | K112: 4174.578473 | L112: 3698.470829 | M112: 0 | N112: 1354.338195 | O112: 3263.525791 | P112: 85.742903 | Q112: 139.123233 | R112: 0 | S112: 74.543739 | T112: 378.351356 | U112: 295.156415 | V112: =SUM(C112:U112) -> 18450.61875 | W112: =V112-F112-H112-M112-R112 -> 18447.34677 | X112: =F112+H112+M112+R112 -> 3.271979
B113: Turbinación bombeo | C113: 146.5207041 | D113: 148.841847 | E113: 12.6857136 | F113: 0 | G113: 1011.231914 | H113: 0 | I113: 400.084015 | J113: 41.51776 | K113: 331.8299105 | L113: 113.5452056 | M113: 0 | N113: 19.64006648 | O113: 23.067282 | P113: 0 | Q113: 0 | R113: 0 | S113: 0 | T113: 0 | U113: 0 | V113: =SUM(C113:U113) -> 2248.964418 | W113: =V113-F113-H113-M113-R113 -> 2248.964418 | X113: =F113+H113+M113+R113 -> 0
B114: Nuclear | C114: 0 | D114: 0 | E114: 0 | F114: 0 | G114: 7032.257222 | H114: 0 | I114: 0 | J114: 7971.229695 | K114: -15.182118 | L114: 24216.32143 | M114: 0 | N114: 16334.72481 | O114: 0 | P114: 0 | Q114: 0 | R114: 0 | S114: 0 | T114: 0 | U114: 0 | V114: 55539.35105 | W114: 55539.35105 | X114: 0
B115: Carbón | C115: 10521.00026 | D115: 4656.304505 | E115: 10089.22572 | F115: 2597.531837 | G115: 0 | H115: 0 | I115: 0 | J115: 0 | K115: 6355.672881 | L115: 0 | M115: 0 | N115: 0 | O115: 10799.68519 | P115: 0 | Q115: 0 | R115: 0 | S115: 0 | T115: 0 | U115: 0 | V115: 45019.42039 | W115: 42421.88856 | X115: 2597.531837
B116: Fuel / gas | C116: 0 | D116: 0 | E116: 0 | F116: 1367.258599 | G116: -1e-06 | H116: 5231.063784 | I116: 0 | J116: 0 | K116: 0 | L116: 0 | M116: 202.86083 | N116: 0 | O116: 0 | P116: 0 | Q116: 0 | R116: 200.394237 | S116: 0 | T116: 0 | U116: 0 | V116: 7001.577449 | W116: -9.999993722e-07 | X116: 7001.57745
B117: Ciclo combinado | C117: 7717.749048 | D117: 1084.813768 | E117: 682.784322 | F117: 420.429356 | G117: 4147.845521 | H117: 2997.376948 | I117: 0 | J117: 1658.072074 | K117: 0 | L117: 7884.719391 | M117: 0 | N117: 0 | O117: 1749.810253 | P117: 1677.087614 | Q117: 0 | R117: 0 | S117: 3399.956766 | T117: 1398.280178 | U117: 2246.861844 | V117: 37065.78708 | W117: 33647.98078 | X117: 3417.806304
B118: Hidroeólica | C118: 0 | D118: 0 | E118: 0 | F118: 0 | G118: 0 | H118: 20.233057 | I118: 0 | J118: 0 | K118: 0 | L118: 0 | M118: 0 | N118: 0 | O118: 0 | P118: 0 | Q118: 0 | R118: 0 | S118: 0 | T118: 0 | U118: 0 | V118: 20.233057 | W118: 0 | X118: 20.233057
B119: Eólica | C119: 7192.010033 | D119: 4596.617816 | E119: 925.019839 | F119: 2.924276 | G119: 2175.513937 | H119: 395.925333 | I119: 65.882128 | J119: 7507.167263 | K119: 10993.18594 | L119: 2825.124234 | M119: 0 | N119: 0 | O119: 6903.686065 | P119: 976.650522 | Q119: 0 | R119: 0 | S119: 434.662 | T119: 2584.936596 | U119: 327.649582 | V119: =SUM(C119:U119) -> 47906.95556 | W119: 47508.10595 | X119: 398.849609
B120: Solar fotovoltaica | C120: 1583.617103 | D120: 311.369912 | E120: 0.613652 | F120: 123.336995 | G120: 543.781423 | H120: 273.626665 | I120: 1.944193 | J120: 1744.799365 | K120: 899.500534 | L120: 420.80479 | M120: 0 | N120: 1119.601173 | O120: 20.858727 | P120: 139.538906 | Q120: 91.954119 | R120: 0.076869 | S120: 774.62702 | T120: 316.454587 | U120: 31.24666 | V120: 8397.752693 | W120: 8000.712164 | X120: 397.040529
B121: Solar termoeléctrica | C121: 2319.75783 | D121: 0 | E121: 0 | F121: 0 | G121: 98.827683 | H121: 0 | I121: 0 | J121: 742.678029 | K121: 0 | L121: 87.196205 | M121: 0 | N121: 2056.386426 | O121: 0 | P121: 0 | Q121: 0 | R121: 0 | S121: 43.106292 | T121: 0 | U121: 0 | V121: 5347.952465 | W121: 5347.952465 | X121: 0
B122: Otras renovables | C122: 1388.831569 | D122: 57.833376 | E122: 271.442845 | F122: 1.626741 | G122: 32.437815 | H122: 9.565259 | I122: 83.494891 | J122: 265.550596 | K122: 263.332669 | L122: 186.638216 | M122: 0 | N122: 233.859795 | O122: 252.515625 | P122: 9.515459 | Q122: 149.862472 | R122: 0 | S122: 53.861952 | T122: 305.447179 | U122: 44.531423 | V122: 3610.347882 | W122: 3599.155882 | X122: 11.192
B123: Cogeneración | C123: 5274.34151 | D123: 2967.791461 | E123: 391.827487 | F123: 36.244234 | G123: 1590.939932 | H123: 0 | I123: 1165.282101 | J123: 1088.139556 | K123: 2333.008699 | L123: 5086.733789 | M123: 0 | N123: 53.094291 | O123: 2831.012412 | P123: 74.725204 | Q123: 704.246175 | R123: 0 | S123: 1688.402847 | T123: 902.923911 | U123: 2023.093094 | V123: 28211.8067 | W123: 28175.56247 | X123: 36.244234
B124: Residuos no renovables | C124: 298.960653 | D124: 413.402689 | E124: 734.209557 | F124: 143.878668 | G124: 53.73962 | H124: 0 | I124: 36.8432765 | J124: 0 | K124: 0 | L124: 145.2090725 | M124: 0 | N124: 0 | O124: 178.464568 | P124: 0 | Q124: 70.7030845 | R124: 4.976986 | S124: 0 | T124: 0 | U124: 527.5963405 | V124: =SUM(C124:U124) -> 2607.984515 | W124: =V124-F124-H124-M124-R124 -> 2459.128861 | X124: =F124+H124+M124+R124 -> 148.855654
B125: Residuos renovables | C125: 0 | D125: 0 | E125: 0 | F125: 143.878668 | G125: 0 | H125: 0 | I125: 36.8432765 | J125: 0 | K125: 0 | L125: 141.3955805 | M125: 0 | N125: 0 | O125: 178.464568 | P125: 0 | Q125: 70.7030845 | R125: 4.976986 | S125: 0 | T125: 0 | U125: 300.7439235 | V125: =SUM(C125:U125) -> 877.006087 | W125: =V125-F125-H125-M125-R125 -> 728.150433 | X125: =F125+H125+M125+R125 -> 148.855654
B126: Generación neta | C126: 36993.02016 | D126: 16734.14085 | E126: 14085.67999 | F126: 4837.109374 | G126: 17060.93482 | H126: 8931.063025 | I126: 1964.184339 | J126: 21429.23218 | K126: 25335.92699 | L126: 44806.15875 | M126: 202.86083 | N126: 21171.64476 | O126: 26201.09048 | P126: 2963.260608 | Q126: 1226.592168 | R126: 210.425078 | S126: 6469.160616 | T126: 5886.393807 | U126: 5796.879282 | V126: =SUM(V112:V125) -> 262305.7581 | W126: =V126-F126-H126-M126-R126 -> 248124.2998 | X126: 14181.45831
B127: Consumos en bombeo | C127: -224.009543 | D127: -212.354739 | E127: -21.576768 | F127: 0 | G127: -1344.875346 | H127: 0 | I127: -591.899897 | J127: -65.74822666 | K127: -749.072524 | L127: -165.275819 | M127: 0 | N127: -36.97136 | O127: -195.796765 | P127: 0 | Q127: 0 | R127: 0 | S127: 0 | T127: 0 | U127: 0 | V127: -3607.580988 | W127: =V127-F127-H127-M127-R127 -> -3607.580988 | X127: 0
B128: Saldo Intercambios | C128: 3395.555074 | D128: -5856.014888 | E128: -3463.430224 | F128: 1179.306642 | G128: 11233.91109 | H128: 0 | I128: 2999.906663 | J128: -9648.445721 | K128: -10511.12154 | L128: 3158.985719 | M128: 0 | N128: -16112.35356 | O128: -6106.97978 | P128: -1259.140048 | Q128: 27361.65519 | R128: 0 | S128: 2905.333563 | T128: -833.777027 | U128: 10725.60238 | V128: 9168.993534 | W128: 7989.686892 | X128: 1179.306642
B129: Demanda B.C | C129: 40164.56569 | D129: 10665.77123 | E129: 10600.67299 | F129: 6016.416016 | G129: 26949.97057 | H129: 8931.063025 | I129: 4372.191105 | J129: 11715.03823 | K129: 14075.73292 | L129: 47799.86865 | M129: 202.86083 | N129: 5022.31984 | O129: 19898.31394 | P129: 1704.12056 | Q129: 28588.24736 | R129: 210.425078 | S129: 9374.494179 | T129: 5052.61678 | U129: 16522.48166 | V129: =SUM(V126:V128) -> 267867.1706 | W129: 252506.4057 | X129: 15360.76495
B130: =CONCATENATE("Δ",B109,"/",B109-1) -> Δ2017/2016 | C130: =(C129/C102-1) -> 0.01707136881 | D130: 0.02214061023 | E130: 0.007128173854 | F130: 0.03318203632 | G130: 0.006187451089 | H130: 0.02138132711 | I130: 0.03974772438 | J130: 0.002316901559 | K130: 0.005547074674 | L130: 0.02074900357 | M130: -0.03711824216 | N130: 0.01412907915 | O130: -0.003131225785 | P130: -0.01349399871 | Q130: -0.01033247831 | R130: 0.01026995623 | S130: 0.03730304328 | T130: 0.0210077206 | U130: 0.01913961696 | V130: =(V129/V102-1) -> 0.01209455967 | W130: 0.01132055819 | X130: 0.02498987872
B131: Renovable | C131: =C112+C118+C119+C120+C121+C122+C125 -> 13034.44798 | D131: =D112+D118+D119+D120+D121+D122+D125 -> 7462.986582 | E131: 2174.947189 | F131: 271.76668 | G131: 3224.920616 | H131: 702.622293 | I131: 361.9749465 | J131: 10670.2731 | K131: 16330.59761 | L131: 7359.629855 | M131: 0 | N131: 4764.185589 | O131: 10619.05078 | P131: 1211.44779 | Q131: 451.6429085 | R131: 5.053855 | S131: 1380.801003 | T131: 3585.189718 | U131: 999.3280035 | V131: =SUM(C131:U131) -> 84610.8665 | W131: =V131-F131-H131-M131-R131 -> 83631.42367 | X131: =F131+H131+M131+R131 -> 979.442828
B132: No renovable | C132: =C113+C114+C115+C116+C117+C123+C124 -> 23958.57218 | D132: =D113+D114+D115+D116+D117+D123+D124 -> 9271.15427 | E132: 11910.7328 | F132: 4565.342694 | G132: 13836.01421 | H132: 8228.440732 | I132: 1602.209393 | J132: 10758.95908 | K132: 9005.329373 | L132: 37446.52889 | M132: 202.86083 | N132: 16407.45917 | O132: 15582.03971 | P132: 1751.812818 | Q132: 774.9492595 | R132: 205.371223 | S132: 5088.359613 | T132: 2301.204089 | U132: 4797.551279 | V132: 177694.8916 | W132: 164492.8761 | X132: 13202.01548
B133: % Renovable s/total | C133: =(C131)/C$126 -> 0.3523488465 | D133: =(D131)/D$126 -> 0.4459736922 | E133: 0.1544083915 | F133: 0.05618369547 | G133: 0.189023676 | H133: 0.07867174277 | I133: 0.1842876655 | J133: 0.4979307241 | K133: 0.6445628622 | L133: 0.1642548717 | M133: 0 | N133: 0.2250267111 | O133: 0.4052904127 | P133: 0.4088225608 | Q133: 0.368209516 | R133: 0.02401736071 | S133: 0.2134436112 | T133: 0.6090638574 | U133: 0.1723906873 | V133: =(V131)/V$126 -> 0.3225657992 | W133: =(W131)/W$126 -> 0.3370545478 | X133: 0.06906502891
B134: % No renovable s/total | C134: =(C132)/C$126 -> 0.6476511535 | D134: =(D132)/D$126 -> 0.5540263078 | E134: 0.8455916085 | F134: 0.9438163045 | G134: 0.810976324 | H134: 0.9213282572 | I134: 0.8157123345 | J134: 0.5020692759 | K134: 0.3554371378 | L134: 0.8357451283 | M134: 1 | N134: 0.7749732889 | O134: 0.5947095873 | P134: 0.5911774392 | Q134: 0.631790484 | R134: 0.9759826393 | S134: 0.7865563888 | T134: 0.3909361426 | U134: 0.8276093127 | V134: =(V132)/V$126 -> 0.6774342008 | W134: 0.6629454522 | X134: 0.9309349711
B136: 2018
B137: CCAA | C137: Andalucía | D137: Aragón | E137: Asturias | F137: Baleares | G137: C. Valenciana | H137: Canarias | I137: Cantabria | J137: Castilla-La Mancha | K137: Castilla y León | L137: Cataluña | M137: Ceuta | N137: Extremadura | O137: Galicia | P137: La Rioja | Q137: Madrid | R137: Melilla | S137: Murcia | T137: Navarra | U137: País Vasco | V137: España | W137: PENINSULAR | X137: NO PENINSULAR
B139: Hidráulica | C139: 755.3199102 | D139: 3879.093174 | E139: 2226.508122 | F139: 0 | G139: 417.198853 | H139: 3.275909 | I139: 318.084348 | J139: 770.151892 | K139: 8056.991406 | L139: 5371.444206 | M139: 0 | N139: 2304.348288 | O139: 8525.545242 | P139: 167.442092 | Q139: 122.874118 | R139: 0 | S139: 78.491163 | T139: 660.52081 | U139: 442.783162 | V139: =SUM(C139:U139) -> 34100.07269 | W139: =V139-F139-H139-M139-R139 -> 34096.79679 | X139: =F139+H139+M139+R139 -> 3.275909
B140: Turbinación bombeo | C140: 106.7211058 | D140: 133.918075 | E140: 7.5048505 | F140: 0 | G140: 966.365022 | H140: 0 | I140: 291.689151 | J140: 41.313352 | K140: 347.1152875 | L140: 54.37387522 | M140: 0 | N140: 23.68034678 | O140: 36.6961224 | P140: 0 | Q140: 0 | R140: 0 | S140: 0 | T140: 0 | U140: 0 | V140: =SUM(C140:U140) -> 2009.377188 | W140: =V140-F140-H140-M140-R140 -> 2009.377188 | X140: =F140+H140+M140+R140 -> 0
B141: Nuclear | C141: 0 | D141: 0 | E141: 0 | F141: 0 | G141: 8799.414139 | H141: 0 | I141: 0 | J141: 7714.455597 | K141: 0 | L141: 20999.31724 | M141: 0 | N141: 15684.42891 | O141: 0 | P141: 0 | Q141: 0 | R141: 0 | S141: 0 | T141: 0 | U141: 0 | V141: 53197.61588 | W141: 53197.61588 | X141: 0
B142: Carbón | C142: 10869.53648 | D142: 2941.437601 | E142: 7485.106744 | F142: 2391.849791 | G142: 0 | H142: 0 | I142: 0 | J142: 0 | K142: 3277.853239 | L142: 0 | M142: 0 | N142: 0 | O142: 10307.83597 | P142: 0 | Q142: 0 | R142: 0 | S142: 0 | T142: 0 | U142: 0 | V142: 37273.61983 | W142: 34881.77004 | X142: 2391.849791
B143: Fuel / gas | C143: 0 | D143: 0 | E143: 0 | F143: 1412.682684 | G143: -1e-06 | H143: 4860.950187 | I143: 0 | J143: 0 | K143: 0 | L143: 0 | M143: 207.356224 | N143: 0 | O143: 0 | P143: 0 | Q143: 0 | R143: 202.180767 | S143: 0 | T143: 0 | U143: 0 | V143: 6683.169861 | W143: -1.000000367e-06 | X143: 6683.169862
B144: Ciclo combinado | C144: 6264.827126 | D144: 59.868959 | E144: 586.410952 | F144: 590.529264 | G144: 4118.64044 | H144: 3051.021608 | I144: 0 | J144: 1401.751424 | K144: 0 | L144: 7136.762499 | M144: 0 | N144: 0 | O144: 809.916634 | P144: 1096.230726 | Q144: 0 | R144: 0 | S144: 2932.05029 | T144: 649.231852 | U144: 1347.393757 | V144: 30044.63553 | W144: 26403.08466 | X144: 3641.550872
B145: Hidroeólica | C145: 0 | D145: 0 | E145: 0 | F145: 0 | G145: 0 | H145: 23.655544 | I145: 0 | J145: 0 | K145: 0 | L145: 0 | M145: 0 | N145: 0 | O145: 0 | P145: 0 | Q145: 0 | R145: 0 | S145: 0 | T145: 0 | U145: 0 | V145: =SUM(C145:U145) -> 23.655544 | W145: 0 | X145: 23.655544
B146: Eólica | C146: 6250.778057 | D146: 4340.037015 | E146: 1113.986849 | F146: 3.757171 | G146: 2461.935328 | H146: 620.570704 | I146: 66.871954 | J146: 8065.106153 | K146: 11435.24241 | L146: 2709.2185 | M146: 0 | N146: 0 | O146: 8373.905551 | P146: 908.480873 | Q146: 0 | R146: 0 | S146: 496.015309 | T146: 2348.007765 | U146: 332.142297 | V146: =SUM(C146:U146) -> 49526.05593 | W146: 48901.72806 | X146: 624.327875
B147: Solar fotovoltaica | C147: 1469.590906 | D147: 288.208828 | E147: 0.481376 | F147: 112.251642 | G147: 525.948469 | H147: 271.613212 | I147: 1.805014 | J147: 1575.243729 | K147: 801.592108 | L147: 383.304377 | M147: 0 | N147: 1018.155917 | O147: 18.52141 | P147: 130.121369 | Q147: 85.078797 | R147: 0.074611 | S147: 740.954035 | T147: 295.662107 | U147: 28.07601 | V147: =SUM(C147:U147) -> 7746.683917 | W147: 7362.744452 | X147: 383.939465
B148: Solar termoeléctrica | C148: 1937.626047 | D148: 0 | E148: 0 | F148: 0 | G148: 87.712473 | H148: 0 | I148: 0 | J148: 650.078076 | K148: 0 | L148: 76.605625 | M148: 0 | N148: 1634.398669 | O148: 0 | P148: 0 | Q148: 0 | R148: 0 | S148: 37.907719 | T148: 0 | U148: 0 | V148: 4424.328609 | W148: 4424.328609 | X148: 0
B149: Otras renovables | C149: 1332.761617 | D149: 53.709086 | E149: 255.601423 | F149: 1.332595 | G149: 37.879639 | H149: 8.931597 | I149: 81.567729 | J149: 271.49264 | K149: 270.573217 | L149: 170.641641 | M149: 0 | N149: 243.7005 | O149: 263.039803 | P149: 8.378248 | Q149: 151.292257 | R149: 0 | S149: 48.662543 | T149: 304.972336 | U149: 51.845342 | V149: 3556.382213 | W149: 3546.118021 | X149: 10.264192
B150: Cogeneración | C150: 5198.436923 | D150: 3093.716136 | E150: 356.827179 | F150: 34.974446 | G150: 1642.051932 | H150: 0 | I150: 1379.623237 | J150: 1172.606 | K150: 2578.527874 | L150: 5315.227906 | M150: 0 | N150: 70.359119 | O150: 2625.412247 | P150: 81.983378 | Q150: 728.44823 | R150: 0 | S150: 1752.667718 | T150: 921.230799 | U150: 2057.653739 | V150: =SUM(C150:U150) -> 29009.74686 | W150: 28974.77242 | X150: 34.974446
B151: Residuos no renovables | C151: 75.41157 | D151: 409.02124 | E151: 768.884729 | F151: 135.7577445 | G151: 62.64631 | H151: 0 | I151: 36.4359725 | J151: 0 | K151: 0 | L151: 127.882683 | M151: 0 | N151: 0 | O151: 173.029153 | P151: 0 | Q151: 81.5095215 | R151: 5.346839 | S151: 0 | T151: 0 | U151: 560.8663075 | V151: 2436.79207 | W151: 2295.687487 | X151: 141.1045835
B152: Residuos renovables | C152: 0 | D152: 0 | E152: 0 | F152: 135.7577445 | G152: 0 | H152: 0 | I152: 36.4359725 | J152: 0 | K152: 0 | L152: 120.054013 | M152: 0 | N152: 0 | O152: 173.029153 | P152: 0 | Q152: 81.5095215 | R152: 5.346839 | S152: 0 | T152: 0 | U152: 321.9420015 | V152: 874.075245 | W152: 732.9706615 | X152: 141.1045835
B153: Generación neta | C153: 34261.00975 | D153: 15199.01011 | E153: 12801.31222 | F153: 4818.893082 | G153: 19119.7926 | H153: 8840.018761 | I153: 2212.513378 | J153: 21662.19886 | K153: 26767.89554 | L153: 42464.83257 | M153: 207.356224 | N153: 20979.07175 | O153: 31306.93129 | P153: 2392.636686 | Q153: 1250.712445 | R153: 212.949056 | S153: 6086.748777 | T153: 5179.625669 | U153: 5142.702616 | V153: =SUM(V139:V152) -> 260906.2114 | W153: =V153-F153-H153-M153-R153 -> 246826.9943 | X153: 14079.21712
B154: Consumos en bombeo | C154: -156.510372 | D154: -158.032501 | E154: -11.269875 | F154: 0 | G154: -1273.30752 | H154: 0 | I154: -429.393574 | J154: -61.38666792 | K154: -753.950741 | L154: -81.406798 | M154: 0 | N154: -42.187336 | O154: -233.26469 | P154: 0 | Q154: 0 | R154: 0 | S154: 0 | T154: 0 | U154: 0 | V154: =SUM(C154:U154) -> -3200.710075 | W154: =V154-F154-H154-M154-R154 -> -3200.710075 | X154: =F154+H154+M154+R154 -> 0
B155: Saldo Intercambios | C155: 6132.306092 | D155: -4310.407633 | E155: -2151.447773 | F155: 1233.358142 | G155: 9653.878198 | H155: 0 | I155: 2491.553357 | J155: -9852.736585 | K155: -11725.64982 | L155: 4939.075778 | M155: 0 | N155: -15882.24767 | O155: -11160.21608 | P155: -679.880856 | Q155: 27373.66473 | R155: 0 | S155: 3526.178338 | T155: -53.78284 | U155: 11568.66577 | V155: 11102.31115 | W155: 9868.953012 | X155: 1233.358142
B156: Demanda B.C | C156: 40236.80547 | D156: 10730.56998 | E156: 10638.59458 | F156: 6052.251224 | G156: 27500.36328 | H156: 8840.018761 | I156: 4274.673161 | J156: 11748.07561 | K156: 14288.29498 | L156: 47322.50155 | M156: 207.356224 | N156: 5054.636744 | O156: 19913.45052 | P156: 1712.75583 | Q156: 28624.37718 | R156: 212.949056 | S156: 9612.927115 | T156: 5125.842829 | U156: 16711.36838 | V156: =SUM(V153:V155) -> 268807.8125 | W156: 253495.2372 | X156: 15312.57527
B157: =CONCATENATE("Δ",B136,"/",B136-1) -> Δ2018/2017 | C157: =(C156/C129-1) -> 0.001798594825 | D157: 0.006075393296 | E157: 0.003577280803 | F157: 0.005956238383 | G157: 0.02042275737 | H157: -0.01019411281 | I157: -0.02230413577 | J157: 0.002820082622 | K157: 0.01510131417 | L157: -0.009986786858 | M157: 0.02215999018 | N157: 0.006434656698 | O157: 0.0007606965116 | P157: 0.005067288197 | Q157: 0.00126379965 | R157: 0.01199466349 | S157: 0.02543421879 | T157: 0.01449269798 | U157: 0.01143210347 | V157: 0.003511597981 | W157: 0.003916065008 | X157: -0.003137192982
B158: Renovable | C158: =C139+C145+C146+C147+C148+C149+C152 -> 11746.07654 | D158: =D139+D145+D146+D147+D148+D149+D152 -> 8561.048103 | E158: 3596.577771 | F158: 253.0991525 | G158: 3530.674762 | H158: 928.046966 | I158: 504.7650175 | J158: 11332.07249 | K158: 20564.39914 | L158: 8831.268362 | M158: 0 | N158: 5200.603374 | O158: 17354.04116 | P158: 1214.422582 | Q158: 440.7546935 | R158: 5.42145 | S158: 1402.030769 | T158: 3609.163018 | U158: 1176.788812 | V158: =V139+V145+V146+V147+V148+V149+V152 -> 100251.2542 | W158: =V158-F158-H158-M158-R158 -> 99064.68659 | X158: =F158+H158+M158+R158 -> 1186.567568
B159: No renovable | C159: =C140+C141+C142+C143+C144+C150+C151 -> 22514.93321 | D159: =D140+D141+D142+D143+D144+D150+D151 -> 6637.962011 | E159: 9204.734454 | F159: 4565.79393 | G159: 15589.11784 | H159: 7911.971795 | I159: 1707.74836 | J159: 10330.12637 | K159: 6203.4964 | L159: 33633.56421 | M159: 207.356224 | N159: 15778.46837 | O159: 13952.89013 | P159: 1178.214104 | Q159: 809.9577515 | R159: 207.527606 | S159: 4684.718008 | T159: 1570.462651 | U159: 3965.913804 | V159: =V140+V141+V142+V143+V144+V150+V151 -> 160654.9572 | W159: =V159-F159-H159-M159-R159 -> 147762.3077 | X159: =F159+H159+M159+R159 -> 12892.64955
B160: % Renovable s/total | C160: =(C158)/C$153 -> 0.3428409327 | D160: =(D158)/D$153 -> 0.5632635309 | E160: 0.2809538356 | F160: 0.05252225941 | G160: 0.1846607249 | H160: 0.1049824657 | I160: 0.2281410013 | J160: 0.5231266023 | K160: 0.7682486323 | L160: 0.2079666356 | M160: 0 | N160: 0.2478948276 | O160: 0.5543194572 | P160: 0.5075666478 | Q160: 0.3524029007 | R160: 0.025458906 | S160: 0.2303414878 | T160: 0.6967999714 | U160: 0.2288269224 | V160: =(V158)/V$153 -> 0.384242497 | W160: =(W158)/W$153 -> 0.4013527243 | X160: 0.08427795084
B161: % No renovable s/total | C161: =(C159)/C$153 -> 0.6571590673 | D161: =(D159)/D$153 -> 0.4367364691 | E161: 0.7190461644 | F161: 0.9474777406 | G161: 0.8153392751 | H161: 0.8950175343 | I161: 0.7718589987 | J161: 0.4768733977 | K161: 0.2317513677 | L161: 0.7920333644 | M161: 1 | N161: 0.7521051724 | O161: 0.4456805428 | P161: 0.4924333522 | Q161: 0.6475970993 | R161: 0.974541094 | S161: 0.7696585122 | T161: 0.3032000286 | U161: 0.7711730776 | V161: =(V159)/V$153 -> 0.615757503 | W161: =(W159)/W$153 -> 0.5986472757 | X161: 0.9157220492

Sheet Potencias (hidden)
B1: 2013 | C1: 15420.51916 | D1: 7258.95266 | E1: 4713.62893 | F1: 2234.68743 | G1: 7407.73026 | H1: 2902.39958 | I1: 822.76676 | J1: 8704.35292 | K1: 14187.76045 | L1: 12994.41251 | M1: 90.82 | N1: 5463.39649 | O1: 10838.32457 | P1: 1424.18043 | Q1: 538.44143 | R1: 78.3659 | S1: 4382.20428 | T1: 2814.53461 | U1: 2965.38921 | V1: =SUM(C1:U1) -> 105242.8676 | W1: =V1-F1-H1-M1-R1 -> 99936.59467 | X1: =F1+H1+M1+R1 -> 5306.27291
B2: CCAA | C2: Andalucía | D2: Aragón | E2: Asturias | F2: Baleares | G2: C. Valenciana | H2: Canarias | I2: Cantabria | J2: Castilla-La Mancha | K2: Castilla y León | L2: Cataluña | M2: Ceuta | N2: Extremadura | O2: Galicia | P2: La Rioja | Q2: Madrid | R2: Melilla | S2: Murcia | T2: Navarra | U2: País Vasco | V2: España | W2: PENINSULAR | X2: NO PENINSULAR
B3: Bombeo puro | C3: 582.88 | D3: 219.14 | E3: 0 | F3: 0 | G3: 633.95 | H3: 0 | I3: 360.6 | J3: 215 | K3: 0 | L3: 439.32 | M3: 0 | N3: 0 | O3: 0 | P3: 0 | Q3: 0 | R3: 0 | S3: 0 | T3: 0 | U3: 0 | V3: =SUM(C3:U3) -> 2450.89 | W3: =V3-F3-H3-M3-R3 -> 2450.89 | X3: =F3+H3+M3+R3 -> 0
B4: Hidráulica | C4: 600.561 | D4: 1329.017 | E4: 804.37 | F4: 0 | G4: 639.809 | H4: 1.263 | I4: 98.324 | J4: 651.258 | K4: 4394.9545 | L4: 1910.95825 | M4: 0 | N4: 2277.775 | O4: 3666.5772 | P4: 55.55073 | Q4: 103.751 | R4: 0 | S4: 35.628 | T4: 243.235 | U4: 172.8931 | V4: =SUM(C4:U4) -> 16985.92478 | W4: =V4-F4-H4-M4-R4 -> 16984.66178 | X4: =F4+H4+M4+R4 -> 1.263
B5: Nuclear | C5: 0 | D5: 0 | E5: 0 | F5: 0 | G5: 1063.94 | H5: 0 | I5: 0 | J5: 1003.41 | K5: 455.29 | L5: 3032.81 | M5: 0 | N5: 2017.13 | O5: 0 | P5: 0 | Q5: 0 | R5: 0 | S5: 0 | T5: 0 | U5: 0 | V5: 7572.58 | W5: =V5-F5-H5-M5-R5 -> 7572.58 | X5: =F5+H5+M5+R5 -> 0
B6: Carbón | C6: 1989.4 | D6: 1198.12 | E6: 2364.59 | F6: 468.4 | G6: 0 | H6: 0 | I6: 0 | J6: 502.64 | K6: 2595.23 | L6: 0 | M6: 0 | N6: 0 | O6: 1960.39 | P6: 0 | Q6: 0 | R6: 0 | S6: 0 | T6: 0 | U6: 0 | V6: 11571.79 | W6: 11103.39 | X6: 468.4
B7: Fuel / gas | C7: 0 | D7: 0 | E7: 0 | F7: 787.4 | G7: 0 | H7: 1536 | I7: 0 | J7: 0 | K7: 0 | L7: 505.52 | M7: 90.82 | N7: 0 | O7: 0 | P7: 0 | Q7: 0 | R7: 76.14 | S7: 0 | T7: 0 | U7: 0 | V7: 3382.55 | W7: 892.19 | X7: 2490.36
B8: Ciclo combinado | C8: 5951.72 | D8: 1869.68 | E8: 854.17 | F8: 857.95 | G8: 2853.54 | H8: 864.2 | I8: 0 | J8: 758.74 | K8: 0 | L8: 4174.08 | M8: 0 | N8: 0 | O8: 1246.98 | P8: 784.7 | Q8: 0 | R8: 0 | S8: 3263.71 | T8: 1222.32 | U8: 1968.07 | V8: 26633.88 | W8: 24911.73 | X8: 1722.15
B9: Hidroeólica | C9: 0 | D9: 0 | E9: 0 | F9: 0 | G9: 0 | H9: 0 | I9: 0 | J9: 0 | K9: 0 | L9: 0 | M9: 0 | N9: 0 | O9: 0 | P9: 0 | Q9: 0 | R9: 0 | S9: 0 | T9: 0 | U9: 0 | V9: 0 | W9: 0 | X9: 0
B10: Eólica | C10: 3324.497 | D10: 1797.05 | E10: 494.03 | F10: 3.6763 | G10: 1193.2446 | H10: 152.59 | I10: 35.307 | J10: 3799.9992 | K10: 5652.1845 | L10: 1283.51 | N10: 0 | O10: 3351.197 | P10: 448.18 | Q10: 0 | R10: 0 | S10: 263.286 | T10: 1016.63875 | U10: 193.85 | V10: =SUM(C10:U10) -> 23009.24035 | W10: 22852.97405 | X10: 156.2663
B11: Solar fotovoltaica | C11: 864.96854 | D11: 167.04606 | E11: 0.77793 | F11: 77.67493 | G11: 346.32708 | H11: 164.19108 | I11: 2.04606 | J11: 919.32851 | K11: 489.75649 | L11: 260.05445 | N11: 553.73834 | O11: 15.99383 | P11: 85.4707 | Q11: 65.18803 | R11: 0.0579 | S11: 439.12198 | T11: 161.11356 | U11: 25.56861 | V11: =SUM(C11:U11) -> 4638.42408 | W11: 4396.50017 | X11: 241.92391
B12: Solar térmica | C12: 997.2275 | D12: 0 | E12: 0 | F12: 0 | G12: 49.9 | H12: 0 | I12: 0 | J12: 349.4 | K12: 0 | L12: 22.5 | N12: 849 | O12: 0 | P12: 0 | Q12: 0 | R12: 0 | S12: 31.4 | T12: 0 | U12: 0 | V12: 2299.4275 | W12: 2299.4275 | X12: 0
B13: Otras renovables | C13: 290.903 | D13: 86.866 | E13: 86.569 | F13: 2.13 | G13: 26.089 | H13: 3.368 | I13: 12.862 | J13: 58.009 | K13: 27.52141 | L13: 74.775 | N13: 17.1 | O13: 65.939 | P13: 4.353 | Q13: 42.545 | R13: 0 | S13: 21.094 | T13: 46.362 | U13: 83.455 | V13: 949.94041 | W13: 944.44241 | X13: 5.498
B14: Cogeneración | C14: 931.648 | D14: 601.766 | E14: 156.069 | F14: 85.625 | G14: 650.6015 | H14: 33.268 | I14: 311.563 | J14: 458.467 | K14: 635.1665 | L14: 1319.5709 | N14: 19.4 | O14: 598.708 | P14: 46.316 | Q14: 326.5779 | R14: 2.168 | S14: 315.386 | T14: 172.7315 | U14: 513.9094 | V14: 7178.9417 | W14: 7057.8807 | X14: 121.061
B15: Residuos renovables
B16: Residuos no renovables
B17: =CONCATENATE("Potencia ",B1) -> Potencia 2013 | C17: =SUM(C3:C16) -> 15533.80504 | D17: =SUM(D3:D16) -> 7268.68506 | E17: 4760.57593 | F17: 2282.85623 | G17: 7457.40118 | H17: 2754.88008 | I17: 820.70206 | J17: 8716.25171 | K17: 14250.1034 | L17: 13023.0986 | M17: 90.82 | N17: 5734.14334 | O17: 10905.78503 | P17: 1424.57043 | Q17: 538.06193 | R17: 78.3659 | S17: 4369.62598 | T17: 2862.40081 | U17: 2957.74611 | V17: =SUM(C17:U17) -> 105829.8788 | W17: =V17-F17-H17-M17-R17 -> 100622.9566 | X17: 5206.92221
B18: % Potencia s/total | C18: 0.1433541909 | D18: 0.06967598797 | E18: 0.04662897053 | F18: 0.02127908891 | G18: 0.07051907968 | H18: 0.02797701438 | I18: 0.007901206991 | J18: 0.08405880619 | K18: 0.1308358254 | L18: 0.1246040375 | M18: 0.0008821996189 | N18: 0.05012428768 | O18: 0.1032714744 | P18: 0.01384680813 | Q18: 0.005062208965 | R18: 0.0007612240378 | S18: 0.04103682157 | T18: 0.02724593152 | U18: 0.03093483562 | V18: 1 | W18: 0.949100473 | X18: 0.05089952695
B19: =CONCATENATE("Δ",B1,"/",B1-1) -> Δ2013/2012 | C19: =C17/C1-1 -> 0.007346437485 | D19: =D17/D1-1 -> 0.001340744382 | E19: 0.00995984213 | F19: 0.02155505032 | G19: 0.00670528195 | H19: -0.05082673696 | I19: -0.002509459668 | J19: 0.001366993056 | K19: 0.004394136074 | L19: 0.002207571137 | M19: 0 | N19: 0.04955650766 | O19: 0.006224251688 | P19: 0.000273841707 | Q19: -0.000704812035 | R19: 0 | S19: -0.002870313476 | T19: 0.01700679033 | U19: -0.002577435695 | V19: 0.005577681923 | W19: 0.006867974062 | X19: -0.01872325485
B21: 2014
B22: CCAA | C22: Andalucía | D22: Aragón | E22: Asturias | F22: Baleares | G22: C. Valenciana | H22: Canarias | I22: Cantabria | J22: Castilla-La Mancha | K22: Castilla y León | L22: Cataluña | M22: Ceuta | N22: Extremadura | O22: Galicia | P22: La Rioja | Q22: Madrid | R22: Melilla | S22: Murcia | T22: Navarra | U22: País Vasco | V22: España | W22: PENINSULAR | X22: NO PENINSULAR
B23: Bombeo puro | C23: 582.88 | D23: 219.14 | E23: 0 | F23: 0 | G23: 633.95 | H23: 0 | I23: 360.6 | J23: 215 | K23: 0 | L23: 439.32 | M23: 0 | N23: 0 | O23: 0 | P23: 0 | Q23: 0 | R23: 0 | S23: 0 | T23: 0 | U23: 0 | V23: =SUM(C23:U23) -> 2450.89 | W23: =V23-F23-H23-M23-R23 -> 2450.89 | X23: =F23+H23+M23+R23 -> 0
B24: Hidráulica | C24: 600.561 | D24: 1329.017 | E24: 804.37 | F24: 0 | G24: 639.809 | H24: 1.263 | I24: 98.324 | J24: 651.258 | K24: 4394.9545 | L24: 1910.95825 | M24: 0 | N24: 2277.775 | O24: 3667.1972 | P24: 55.55073 | Q24: 109.361 | R24: 0 | S24: 35.628 | T24: 243.235 | U24: 172.8931 | V24: =SUM(C24:U24) -> 16992.15478 | W24: =V24-F24-H24-M24-R24 -> 16990.89178 | X24: =F24+H24+M24+R24 -> 1.263
B25: Nuclear | C25: 0 | D25: 0 | E25: 0 | F25: 0 | G25: 1063.94 | H25: 0 | I25: 0 | J25: 1003.41 | K25: 455.29 | L25: 3032.81 | M25: 0 | N25: 2017.13 | O25: 0 | P25: 0 | Q25: 0 | R25: 0 | S25: 0 | T25: 0 | U25: 0 | V25: =SUM(C25:U25) -> 7572.58 | W25: 7572.58 | X25: =F25+H25+M25+R25 -> 0
B26: Carbón | C26: 1989.4 | D26: 1055.77 | E26: 2364.59 | F26: 468.4 | G26: 0 | H26: 0 | I26: 0 | J26: 502.64 | K26: 2595.23 | L26: 0 | M26: 0 | N26: 0 | O26: 1960.39 | P26: 0 | Q26: 0 | R26: 0 | S26: 0 | T26: 0 | U26: 0 | V26: 10936.42 | W26: 10468.02 | X26: 468.4
B27: Fuel / gas | C27: 0 | D27: 0 | E27: 0 | F27: 787.4 | G27: 0 | H27: 1535.72 | I27: 0 | J27: 0 | K27: 0 | L27: 505.52 | M27: 90.82 | N27: 0 | O27: 0 | P27: 0 | Q27: 0 | R27: 76.14 | S27: 0 | T27: 0 | U27: 0 | V27: 2995.6 | W27: 505.52 | X27: 2490.08
B28: Ciclo combinado | C28: 5951.72 | D28: 1869.68 | E28: 854.17 | F28: 857.95 | G28: 2853.54 | H28: 864.2 | I28: 0 | J28: 758.74 | K28: 0 | L28: 4174.08 | M28: 0 | N28: 0 | O28: 1246.98 | P28: 784.7 | Q28: 0 | R28: 0 | S28: 3263.71 | T28: 1222.32 | U28: 1968.07 | V28: 26669.86 | W28: 24947.71 | X28: 1722.15
B29: Hidroeólica | C29: 0 | D29: 0 | E29: 0 | F29: 0 | G29: 0 | H29: 11.39 | I29: 0 | J29: 0 | K29: 0 | L29: 0 | M29: 0 | N29: 0 | O29: 0 | P29: 0 | Q29: 0 | R29: 0 | S29: 0 | T29: 0 | U29: 0 | V29: 11.39 | W29: 0 | X29: 11.39
B30: Eólica | C30: 3324.5075 | D30: 1815.51 | E30: 494.03 | F30: 3.6763 | G30: 1193.2446 | H30: 152.59 | I30: 35.307 | J30: 3799.9992 | K30: 5652.1845 | L30: 1283.51 | M30: 0 | N30: 0 | O30: 3351.197 | P30: 448.18 | Q30: 0 | R30: 0 | S30: 263.286 | T30: 1016.63875 | U30: 193.85 | V30: 23027.71085 | W30: 22871.44455 | X30: 156.2663
B31: Solar fotovoltaica | C31: 865.78927 | D31: 167.24526 | E31: 0.77793 | F31: 77.73383 | G31: 346.47007 | H31: 165.24328 | I31: 2.04726 | J31: 919.39996 | K31: 492.75971 | L31: 260.9468 | M31: 0 | N31: 553.73834 | O31: 16.19383 | P31: 85.4707 | Q31: 66.00003 | R31: 0.0579 | S31: 439.12328 | T31: 161.11356 | U31: 25.58861 | V31: 4645.69962 | W31: 4402.66461 | X31: 243.03501
B32: Solar térmica | C32: 997.2275 | D32: 0 | E32: 0 | F32: 0 | G32: 49.9 | H32: 0 | I32: 0 | J32: 349.4 | K32: 0 | L32: 22.5 | M32: 0 | N32: 849 | O32: 0 | P32: 0 | Q32: 0 | R32: 0 | S32: 31.4 | T32: 0 | U32: 0 | V32: 2299.4275 | W32: 2299.4275 | X32: 0
B33: Otras renovables | C33: 290.903 | D33: 86.866 | E33: 86.569 | F33: 2.13 | G33: 26.089 | H33: 3.368 | I33: 12.862 | J33: 58.009 | K33: 44.54541 | L33: 75.274 | M33: 0 | N33: 37.1 | O33: 65.939 | P33: 4.353 | Q33: 42.545 | R33: 0 | S33: 21.094 | T33: 46.362 | U33: 83.455 | V33: 987.46341 | W33: 981.96541 | X33: 5.498
B34: Cogeneración | C34: 931.6645 | D34: 598.829 | E34: 156.069 | F34: 85.625 | G34: 650.6015 | H34: 33.268 | I34: 311.563 | J34: 451.437 | K34: 637.2745 | L34: 1319.5709 | M34: 0 | N34: 19.4 | O34: 598.708 | P34: 46.316 | Q34: 326.5779 | R34: 2.168 | S34: 332.586 | T34: 172.7315 | U34: 494.4734 | V34: 7168.8632 | W34: 7047.8022 | X34: 121.061
B35: Residuos renovables
B36: Residuos no renovables
B37: =CONCATENATE("Potencia ",B21) -> Potencia 2014 | C37: =SUM(C23:C35) -> 15534.65277 | D37: 7142.05726 | E37: 4760.57593 | F37: 2282.91513 | G37: 7457.54417 | H37: 2767.04228 | I37: 820.70326 | J37: 8709.29316 | K37: 14272.23862 | L37: 13024.48995 | M37: 90.82 | N37: 5754.14334 | O37: 10906.60503 | P37: 1424.57043 | Q37: 544.48393 | R37: 78.3659 | S37: 4386.82728 | T37: 2862.40081 | U37: =SUM(U23:U35) -> 2938.33011 | V37: =SUM(C37:U37) -> 105758.0594 | W37: =V37-F37-H37-M37-R37 -> 100538.9161 | X37: 5219.14331
B38: % Potencia s/total | C38: =C37/$V37 -> 0.1468885952 | D38: =D37/$V37 -> 0.06753203778 | E38: 0.04501383591 | F38: 0.02158620481 | G38: 0.07051513819 | H38: 0.02616389046 | I38: 0.007760195913 | J38: 0.08235110603 | K38: 0.1349517825 | L38: 0.1231536398 | M38: 0.0008587525201 | N38: 0.05440855642 | O38: 0.1031278854 | P38: 0.0134700886 | Q38: 0.005148391842 | R38: 0.0007409922277 | S38: 0.04147983905 | T38: 0.02706555725 | U38: 0.0277835101 | V38: 1 | W38: =W37/$V37 -> 0.95065016 | X38: =X37/$V37 -> 0.04934984002
B39: =CONCATENATE("Δ",B21,"/",B21-1) -> Δ2014/2013 | C39: =(C37/C17-1) -> 5.457323546e-05 | D39: -0.01742100517 | E39: 0 | F39: 2.580101157e-05 | G39: 1.917424e-05 | H39: 0.004414783819 | I39: 1.462162773e-06 | J39: -0.0007983420203 | K39: 0.001553337501 | L39: 0.0001068370933 | M39: 0 | N39: 0.003487879325 | O39: 7.5189452e-05 | P39: 0 | Q39: 0.01193542907 | R39: 0 | S39: 0.003936561179 | T39: 0 | U39: -0.006564457962 | V39: -0.0006786312221 | W39: -0.0008352026499 | X39: 0.00234708711
B41: 2015
B42: CCAA | C42: Andalucía | D42: Aragón | E42: Asturias | F42: Baleares | G42: C. Valenciana | H42: Canarias | I42: Cantabria | J42: Castilla-La Mancha | K42: Castilla y León | L42: Cataluña | M42: Ceuta | N42: Extremadura | O42: Galicia | P42: La Rioja | Q42: Madrid | R42: Melilla | S42: Murcia | T42: Navarra | U42: País Vasco | V42: España | W42: PENINSULAR | X42: NO PENINSULAR
B43: Bombeo puro | C43: 582.88 | D43: 219.14 | E43: 0 | F43: 0 | G43: 1511.95 | H43: 0 | I43: 360.6 | J43: 215 | K43: 0 | L43: 439.32 | M43: 0 | N43: 0 | O43: 0 | P43: 0 | Q43: 0 | R43: 0 | S43: 0 | T43: 0 | U43: 0 | V43: =SUM(C43:U43) -> 3328.89 | W43: =V43-F43-H43-M43-R43 -> 3328.89 | X43: =F43+H43+M43+R43 -> 0
B44: Hidráulica | C44: 592.153 | D44: 1333.8325 | E44: 804.7518 | F44: 0 | G44: 639.784 | H44: 2.02 | I44: 98.417 | J44: 649.967 | K44: 4400.8609 | L44: 1913.3928 | M44: 0 | N44: 2277.8123 | O44: 3698.59569 | P44: 52.20554 | Q44: 108.5166 | R44: 0 | S44: 33.158 | T44: 254.763 | U44: 170.6765 | V44: =SUM(C44:U44) -> 17030.90663 | W44: 17028.88663 | X44: =F44+H44+M44+R44 -> 2.02
B45: Nuclear | C45: 0 | D45: 0 | E45: 0 | F45: 0 | G45: 1063.94 | H45: 0 | I45: 0 | J45: 1003.41 | K45: 455.29 | L45: 3032.81 | M45: 0 | N45: 2017.13 | O45: 0 | P45: 0 | Q45: 0 | R45: 0 | S45: 0 | T45: 0 | U45: 0 | V45: =SUM(C45:U45) -> 7572.58 | W45: 7572.58 | X45: =F45+H45+M45+R45 -> 0
B46: Carbón | C46: 1989.4 | D46: 1055.77 | E46: 2364.59 | F46: 468.4 | G46: 0 | H46: 0 | I46: 0 | J46: 502.64 | K46: 2595.23 | L46: 0 | M46: 0 | N46: 0 | O46: 1960.39 | P46: 0 | Q46: 0 | R46: 0 | S46: 0 | T46: 0 | U46: 0 | V46: 10936.42 | W46: 10468.02 | X46: 468.4
B47: Fuel / gas | C47: 0 | D47: 0 | E47: 0 | F47: 787.4 | G47: 0 | H47: 1535.7 | I47: 0 | J47: 0 | K47: 0 | L47: 0 | M47: 90.82 | N47: 0 | O47: 0 | P47: 0 | Q47: 0 | R47: 76.14 | S47: 0 | T47: 0 | U47: 0 | V47: 2490.06 | W47: -1.847411113e-13 | X47: 2490.06
B48: Ciclo combinado | C48: 5951.72 | D48: 1869.68 | E48: 854.17 | F48: 857.95 | G48: 2853.54 | H48: 864.2 | I48: 0 | J48: 758.74 | K48: 0 | L48: 4174.08 | M48: 0 | N48: 0 | O48: 1246.98 | P48: 784.7 | Q48: 0 | R48: 0 | S48: 3263.71 | T48: 1222.32 | U48: 1968.07 | V48: 26669.86 | W48: 24947.71 | X48: 1722.15
B49: Hidroeólica | C49: 0 | D49: 0 | E49: 0 | F49: 0 | G49: 0 | H49: 11.39 | I49: 0 | J49: 0 | K49: 0 | L49: 0 | M49: 0 | N49: 0 | O49: 0 | P49: 0 | Q49: 0 | R49: 0 | S49: 0 | T49: 0 | U49: 0 | V49: 11.39 | W49: 0 | X49: 11.39
B50: Eólica | C50: 3327.1805 | D50: 1907.97 | E50: 518.45 | F50: 3.6475 | G50: 1205.24 | H50: 152.055 | I50: 35.3105 | J50: 3846.7592 | K50: 5557.502 | L50: 1267.01 | M50: 0 | N50: 0 | O50: 3333.677 | P50: 448.12 | Q50: 0 | R50: 0 | S50: 262.776 | T50: 986.92375 | U50: 153.2862 | V50: 23005.90765 | W50: 22850.20515 | X50: 155.7025
B51: Solar fotovoltaica | C51: 875.175827 | D51: 168.56774 | E51: 0.7992 | F51: 78.83146 | G51: 348.233355 | H51: 167.26167 | I51: 2.119485 | J51: 923.40259 | K51: 494.63796 | L51: 266.123885 | M51: 0 | N51: 563.982984 | O51: 16.48934 | P51: 85.60418 | Q51: 63.368492 | R51: 0.0597 | S51: 438.890986 | T51: 160.72225 | U51: 26.88384 | V51: 4681.154944 | W51: 4435.002114 | X51: 246.15283
B52: Solar térmica | C52: 1000.023 | D52: 0 | E52: 0 | F52: 0 | G52: 49.9 | H52: 0 | I52: 0 | J52: 349.4 | K52: 0 | L52: 24.29 | M52: 0 | N52: 849.1 | O52: 0 | P52: 0 | Q52: 0 | R52: 0 | S52: 31.4 | T52: 0 | U52: 0 | V52: 2304.113 | W52: 2304.113 | X52: 0
B53: Otras renovables | C53: 232.26 | D53: 42.335 | E53: 86.71 | F53: 2.13 | G53: 14.043 | H53: 3.696 | I53: 12.862 | J53: 88.277 | K53: 60.58 | L53: 63.382 | M53: 0 | N53: 35.8 | O53: 64.221 | P53: 4.295 | Q53: 42.584 | R53: 0 | S53: 15.524 | T53: 49.011 | U53: 53.972 | V53: 871.682 | W53: 865.856 | X53: 5.826
B54: Cogeneración | C54: 903.4805 | D54: 493.732 | E54: 81.517 | F54: 10.487 | G54: 521.24261 | H54: 0 | I54: 295.5995 | J54: 391.477 | K54: 605.98 | L54: 1105.2655 | M54: 0 | N54: 18.077 | O54: 550.8756 | P54: 43.103 | Q54: 244.6449 | R54: 0 | S54: 326.806 | T54: 167.2925 | U54: 422.6919 | V54: 6182.27201 | W54: 6171.78501 | X54: 10.487
B55: Residuos renovables | C55: 0 | D55: 0 | E55: 0 | F55: 37.4 | G55: 0 | H55: 0 | I55: 4.967 | J55: 0 | K55: 0 | L55: 27.1745 | M55: 0 | N55: 0 | O55: 25 | P55: 0 | Q55: 14.9 | R55: 1.084 | S55: 0 | T55: 0 | U55: 49.75 | V55: 160.2755 | W55: 121.7915 | X55: 38.484
B56: Residuos no renovables | C56: 95.473 | D56: 49.9 | E56: 74.387 | F56: 37.4 | G56: 63.088 | H56: 0 | I56: 4.967 | J56: 0.68 | K56: 0 | L56: 32.3745 | M56: 0 | N56: 0 | O56: 40.68 | P56: 0 | Q56: 14.9 | R56: 1.084 | S56: 9.68 | T56: 0 | U56: 83.458 | V56: =SUM(C56:U56) -> 508.0715 | W56: 469.5875 | X56: 38.484
B57: =CONCATENATE("Potencia ",B41) -> Potencia 2015 | C57: =SUM(C43:C56) -> 15549.74583 | D57: =SUM(D43:D56) -> 7140.92724 | E57: 4785.375 | F57: 2283.64596 | G57: 8270.960965 | H57: 2736.32267 | I57: 814.842485 | J57: 8729.75279 | K57: 14170.08086 | L57: 12345.22318 | M57: 90.82 | N57: 5761.902284 | O57: 10936.90863 | P57: 1418.02772 | Q57: 488.913992 | R57: 78.3677 | S57: 4381.944986 | T57: 2841.0325 | U57: 2928.78844 | V57: =SUM(C57:U57) -> 105753.5832 | W57: =V57-F57-H57-M57-R57 -> 100564.4269 | X57: =F57+H57+M57+R57 -> 5189.15633
B58: % Potencia s/total | C58: =C57/$V57 -> 0.1470375315 | D58: =D57/$V57 -> 0.06752421073 | E58: 0.04525023979 | F58: 0.02159402916 | G58: 0.07820974677 | H58: 0.02587451495 | I58: 0.007705105209 | J58: 0.08254805675 | K58: 0.1339914963 | L58: 0.1167357437 | M58: 0.0008587888677 | N58: 0.05448422746 | O58: 0.1034187996 | P58: 0.01340879124 | Q58: 0.00462314351 | R58: 0.0007410406116 | S58: 0.04143542802 | T58: 0.02686464527 | U58: 0.02769446056 | V58: 1 | W58: =W57/$V57 -> 0.9509316264 | X58: =X57/$V57 -> 0.04906837358
B59: =CONCATENATE("Δ",B41,"/",B41-1) -> Δ2015/2014 | C59: =(C57/C37-1) -> 0.0009715735024 | D59: -0.0001582205181 | E59: 0.005209258368 | F59: 0.0003201301662 | G59: 0.1090730107 | H59: -0.01110196625 | I59: -0.007141162081 | J59: 0.002349172272 | K59: -0.007157795124 | L59: -0.05215304151 | M59: 0 | N59: 0.001348409927 | O59: 0.002778463135 | P59: -0.004592759938 | Q59: -0.1020598312 | R59: 2.296917409e-05 | S59: -0.001112944205 | T59: -0.00746517047 | U59: -0.003247310426 | V59: -4.232420704e-05 | W59: 0.0002537410885 | X59: -0.00574557513
B61: 2016 | G61: =G63-878 -> 633.95
B62: CCAA | C62: Andalucía | D62: Aragón | E62: Asturias | F62: Baleares | G62: C. Valenciana | H62: Canarias | I62: Cantabria | J62: Castilla-La Mancha | K62: Castilla y León | L62: Cataluña | M62: Ceuta | N62: Extremadura | O62: Galicia | P62: La Rioja | Q62: Madrid | R62: Melilla | S62: Murcia | T62: Navarra | U62: País Vasco | V62: España | W62: PENINSULAR | X62: NO PENINSULAR
B63: Bombeo puro | C63: 582.88 | D63: 219.14 | E63: 0 | F63: 0 | G63: 1511.95 | H63: 0 | I63: 360.6 | J63: 215 | K63: 0 | L63: 439.32 | M63: 0 | N63: 0 | O63: 0 | P63: 0 | Q63: 0 | R63: 0 | S63: 0 | T63: 0 | U63: 0 | V63: =SUM(C63:U63) -> 3328.89 | W63: =V63-F63-H63-M63-R63 -> 3328.89 | X63: =F63+H63+M63+R63 -> 0
B64: Hidráulica | C64: 592.683 | D64: 1333.8325 | E64: 804.7518 | F64: 0 | G64: 639.784 | H64: 2.02 | I64: 98.417 | J64: 650.242 | K64: 4400.8609 | L64: 1913.4378 | M64: 0 | N64: 2277.8123 | O64: 3701.37569 | P64: 52.20554 | Q64: 108.5166 | R64: 0 | S64: 33.203 | T64: 254.763 | U64: 170.6765 | V64: =SUM(C64:U64) -> 17034.58163 | W64: =V64-F64-H64-M64-R64 -> 17032.56163 | X64: =F64+H64+M64+R64 -> 2.02
B65: Nuclear | C65: 0 | D65: 0 | E65: 0 | F65: 0 | G65: 1063.94 | H65: 0 | I65: 0 | J65: 1003.41 | K65: 455.29 | L65: 3032.81 | M65: 0 | N65: 2017.13 | O65: 0 | P65: 0 | Q65: 0 | R65: 0 | S65: 0 | T65: 0 | U65: 0 | V65: =SUM(C65:U65) -> 7572.58 | W65: 7572.58 | X65: =F65+H65+M65+R65 -> 0
B66: Carbón | C66: 1989.4 | D66: 1055.77 | E66: 2073.42 | F66: 468.4 | G66: 0 | H66: 0 | I66: 0 | J66: 0 | K66: 2456.89 | L66: 0 | M66: 0 | N66: 0 | O66: 1960.39 | P66: 0 | Q66: 0 | R66: 0 | S66: 0 | T66: 0 | U66: 0 | V66: 10004.27 | W66: =V66-F66-H66-M66-R66 -> 9535.87 | X66: 468.4
B67: Fuel / gas | C67: 0 | D67: 0 | E67: 0 | F67: 787.4 | G67: 0 | H67: 1535.7 | I67: 0 | J67: 0 | K67: 0 | L67: 0 | M67: 90.82 | N67: 0 | O67: 0 | P67: 0 | Q67: 0 | R67: 76.14 | S67: 0 | T67: 0 | U67: 0 | V67: 2490.06 | W67: -1.847411113e-13 | X67: 2490.06
B68: Ciclo combinado | C68: 5951.72 | D68: 1869.68 | E68: 854.17 | F68: 857.95 | G68: 2853.54 | H68: 864.2 | I68: 0 | J68: 758.74 | K68: 0 | L68: 4174.08 | M68: 0 | N68: 0 | O68: 1246.98 | P68: 784.7 | Q68: 0 | R68: 0 | S68: 3263.71 | T68: 1222.32 | U68: 1968.07 | V68: 26669.86 | W68: 24947.71 | X68: 1722.15
B69: Hidroeólica | C69: 0 | D69: 0 | E69: 0 | F69: 0 | G69: 0 | H69: 11.39 | I69: 0 | J69: 0 | K69: 0 | L69: 0 | M69: 0 | N69: 0 | O69: 0 | P69: 0 | Q69: 0 | R69: 0 | S69: 0 | T69: 0 | U69: 0 | V69: 11.39 | W69: 0 | X69: 11.39
B70: Eólica | C70: 3327.1805 | D70: 1907.97 | E70: 518.45 | F70: 3.6475 | G70: 1205.24 | H70: 152.055 | I70: 35.3105 | J70: 3846.7592 | K70: 5591.002 | L70: 1268.81 | M70: 0 | N70: 0 | O70: 3336.077 | P70: 448.12 | Q70: 0 | R70: 0 | S70: 262.776 | T70: 995.15875 | U70: 153.3862 | V70: 23051.94265 | W70: 22896.24015 | X70: 155.7025
B71: Solar fotovoltaica | C71: 877.836447 | D71: 168.60274 | E71: 0.7992 | F71: 79.489215 | G71: 348.25408 | H71: 167.26667 | I71: 2.119485 | J71: 923.41945 | K71: 494.787605 | L71: 266.531985 | M71: 0 | N71: 563.982984 | O71: 16.66678 | P71: 85.60418 | Q71: 63.607282 | R71: 0.0597 | S71: 438.890986 | T71: 160.84009 | U71: 26.90984 | V71: 4685.668719 | W71: 4438.853134 | X71: 246.815585
B72: Solar térmica | C72: 1000.023 | D72: 0 | E72: 0 | F72: 0 | G72: 49.9 | H72: 0 | I72: 0 | J72: 349.4 | K72: 0 | L72: 24.29 | M72: 0 | N72: 849.1 | O72: 0 | P72: 0 | Q72: 0 | R72: 0 | S72: 31.4 | T72: 0 | U72: 0 | V72: 2304.113 | W72: 2304.113 | X72: 0
B73: Otras renovables | C73: 233.644 | D73: 42.335 | E73: 86.71 | F73: 2.13 | G73: 12.393 | H73: 3.696 | I73: 12.862 | J73: 88.277 | K73: 46.895 | L73: 63.707 | M73: 0 | N73: 35.8 | O73: 64.221 | P73: 3.78 | Q73: 42.584 | R73: 0 | S73: 15.472 | T73: 49.011 | U73: 53.972 | V73: 857.489 | W73: 851.663 | X73: 5.826
B74: Cogeneración | C74: 897.4405 | D74: 490.937 | E74: 74.906 | F74: 10.487 | G74: 501.85561 | H74: 0 | I74: 295.5995 | J74: 381.485 | K74: 596.421 | L74: 1061.6035 | M74: 0 | N74: 18.077 | O74: 516.5286 | P74: 41.713 | Q74: 212.0169 | R74: 0 | S74: 314.102 | T74: 160.2285 | U74: 420.3629 | V74: 5993.76401 | W74: 5983.27701 | X74: 10.487
B75: Residuos renovables | C75: 0 | D75: 0 | E75: 0 | F75: 37.4 | G75: 0 | H75: 0 | I75: 4.967 | J75: 0 | K75: 0 | L75: 27.1745 | M75: 0 | N75: 0 | O75: 25 | P75: 0 | Q75: 16.15 | R75: 1.084 | S75: 0 | T75: 0 | U75: 49.75 | V75: 161.5255 | W75: 123.0415 | X75: 38.484
B76: Residuos no renovables | C76: 83.541 | D76: 49.9 | E76: 74.387 | F76: 37.4 | G76: 63.088 | H76: 0 | I76: 4.967 | J76: 0.68 | K76: 0 | L76: 32.3745 | M76: 0 | N76: 0 | O76: 40.68 | P76: 0 | Q76: 16.15 | R76: 1.084 | S76: 9.68 | T76: 0 | U76: 83.458 | V76: 497.3895 | W76: 458.9055 | X76: 38.484
B77: =CONCATENATE("Potencia ",B61) -> Potencia 2016 | C77: =SUM(C63:C76) -> 15536.34845 | D77: =SUM(D63:D76) -> 7138.16724 | E77: 4487.594 | F77: 2284.303715 | G77: 8249.94469 | H77: 2736.32767 | I77: 814.842485 | J77: 8217.41265 | K77: 14042.14651 | L77: 12304.13928 | M77: 90.82 | N77: 5761.902284 | O77: 10907.91907 | P77: 1416.12272 | Q77: 459.024782 | R77: 78.3677 | S77: 4369.233986 | T77: 2842.32134 | U77: 2926.58544 | V77: =SUM(C77:U77) -> 104663.524 | W77: =V77-F77-H77-M77-R77 -> 99473.70492 | X77: =F77+H77+M77+R77 -> 5189.819085
B78: % Potencia s/total | C78: =C77/$V77 -> 0.1484409071 | D78: =D77/$V77 -> 0.06820109783 | E78: 0.04287638929 | F78: 0.0218252131 | G78: 0.07882349432 | H78: 0.02614404298 | I78: 0.007785353042 | J78: 0.07851266932 | K78: 0.1341646637 | L78: 0.1175590006 | M78: 0.0008677330604 | N78: 0.05505167477 | O78: 0.1042189165 | P78: 0.01353024116 | Q78: 0.004385718772 | R78: 0.000748758469 | S78: 0.04174552718 | T78: 0.02715675176 | U78: 0.02796184695 | V78: 1 | W78: =W77/$V77 -> 0.9504142524 | X78: =X77/$V77 -> 0.04958574761
B79: =CONCATENATE("Δ",B61,"/",B61-1) -> Δ2016/2015 | C79: =(C77/C57-1) -> -0.0008615819287 | D79: -0.0003865044282 | E79: -0.06222730716 | F79: 0.0002880284473 | G79: -0.002540971368 | H79: 1.827269881e-06 | I79: 0 | J79: -0.05868896317 | K79: -0.009028484471 | L79: -0.003327918773 | M79: 0 | N79: 0 | O79: -0.002650617371 | P79: -0.001343415205 | Q79: -0.0611338814 | R79: 0 | S79: -0.002900766678 | T79: 0.0004536519734 | U79: -0.0007521881642 | V79: -0.01030753939 | W79: -0.01084600205 | X79: 0.0001277192202
B81: 2017
B82: CCAA | C82: Andalucía | D82: Aragón | E82: Asturias | F82: Baleares | G82: C. Valenciana | H82: Canarias | I82: Cantabria | J82: Castilla-La Mancha | K82: Castilla y León | L82: Cataluña | M82: Ceuta | N82: Extremadura | O82: Galicia | P82: La Rioja | Q82: Madrid | R82: Melilla | S82: Murcia | T82: Navarra | U82: País Vasco | V82: España | W82: PENINSULAR | X82: NO PENINSULAR
B83: Bombeo puro | C83: 582.88 | D83: 219.14 | E83: 0 | F83: 0 | G83: 1511.95 | H83: 0 | I83: 360.6 | J83: 215 | K83: 0 | L83: 439.32 | M83: 0 | N83: 0 | O83: 0 | P83: 0 | Q83: 0 | R83: 0 | S83: 0 | T83: 0 | U83: 0 | V83: =SUM(C83:U83) -> 3328.89 | W83: =V83-F83-H83-M83-R83 -> 3328.89 | X83: =F83+H83+M83+R83 -> 0
B84: Hidráulica | C84: 589.574 | D84: 1333.7075 | E84: 804.7518 | F84: 0 | G84: 639.784 | H84: 2.02 | I84: 98.842 | J84: 650.242 | K84: 4401.1029 | L84: 1913.0778 | M84: 0 | N84: 2277.8123 | O84: 3701.57569 | P84: 52.20554 | Q84: 108.5166 | R84: 0 | S84: 33.593 | T84: 254.763 | U84: 170.6765 | V84: =SUM(C84:U84) -> 17032.24463 | W84: =V84-F84-H84-M84-R84 -> 17030.22463 | X84: =F84+H84+M84+R84 -> 2.02
B85: Nuclear | C85: 0 | D85: 0 | E85: 0 | F85: 0 | G85: 1063.94 | H85: 0 | I85: 0 | J85: 1003.41 | K85: 0 | L85: 3032.81 | M85: 0 | N85: 2017.13 | O85: 0 | P85: 0 | Q85: 0 | R85: 0 | S85: 0 | T85: 0 | U85: 0 | V85: =SUM(C85:U85) -> 7117.29 | W85: 7117.29 | X85: =F85+H85+M85+R85 -> 0
B86: Carbón | C86: 1989.4 | D86: 1055.77 | E86: 2073.42 | F86: 468.4 | G86: 0 | H86: 0 | I86: 0 | J86: 0 | K86: 2456.89 | L86: 0 | M86: 0 | N86: 0 | O86: 1960.39 | P86: 0 | Q86: 0 | R86: 0 | S86: 0 | T86: 0 | U86: 0 | V86: 10004.27 | W86: =V86-F86-H86-M86-R86 -> 9535.87 | X86: 468.4
B87: Fuel / gas | C87: 0 | D87: 0 | E87: 0 | F87: 787.4 | G87: 0 | H87: 1535.7 | I87: 0 | J87: 0 | K87: 0 | L87: 0 | M87: 90.82 | N87: 0 | O87: 0 | P87: 0 | Q87: 0 | R87: 76.14 | S87: 0 | T87: 0 | U87: 0 | V87: 2490.06 | W87: -1.847411113e-13 | X87: 2490.06
B88: Ciclo combinado | C88: 5951.72 | D88: 1869.68 | E88: 854.17 | F88: 857.95 | G88: 2853.54 | H88: 864.2 | I88: 0 | J88: 758.74 | K88: 0 | L88: 4174.08 | M88: 0 | N88: 0 | O88: 1246.98 | P88: 784.7 | Q88: 0 | R88: 0 | S88: 3263.71 | T88: 1222.32 | U88: 1968.07 | V88: 26669.86 | W88: 24947.71 | X88: 1722.15
B89: Hidroeólica | C89: 0 | D89: 0 | E89: 0 | F89: 0 | G89: 0 | H89: 11.39 | I89: 0 | J89: 0 | K89: 0 | L89: 0 | M89: 0 | N89: 0 | O89: 0 | P89: 0 | Q89: 0 | R89: 0 | S89: 0 | T89: 0 | U89: 0 | V89: 11.39 | W89: 0 | X89: 11.39
B90: Eólica | C90: 3327.1805 | D90: 1924.32 | E90: 518.45 | F90: 3.6475 | G90: 1205.24 | H90: 206.9 | I90: 35.3105 | J90: 3846.9842 | K90: 5591.002 | L90: 1268.81 | M90: 0 | N90: 0 | O90: 3343.152 | P90: 448.12 | Q90: 0 | R90: 0 | S90: 262.77 | T90: 995.15875 | U90: 153.3848 | V90: 23130.43025 | W90: 22919.88275 | X90: 210.5475
B91: Solar fotovoltaica | C91: 878.556337 | D91: 168.82614 | E91: 0.7453 | F91: 80.078085 | G91: 348.622525 | H91: 167.32557 | I91: 2.193005 | J91: 924.83869 | K91: 495.37303 | L91: 266.56038 | M91: 0 | N91: 563.977984 | O91: 16.671415 | P91: 85.60298 | Q91: 63.637681 | R91: 0.0597 | S91: 437.201696 | T91: 160.94901 | U91: 26.8749 | V91: 4688.094428 | W91: 4440.631073 | X91: 247.463355
B92: Solar térmica | C92: 1000.023 | D92: 0 | E92: 0 | F92: 0 | G92: 49.9 | H92: 0 | I92: 0 | J92: 349.4 | K92: 0 | L92: 24.29 | M92: 0 | N92: 849.1 | O92: 0 | P92: 0 | Q92: 0 | R92: 0 | S92: 31.4 | T92: 0 | U92: 0 | V92: 2304.113 | W92: 2304.113 | X92: 0
B93: Otras renovables | C93: 229.929 | D93: 42.335 | E93: 86.71 | F93: 2.13 | G93: 12.893 | H93: 3.696 | I93: 12.862 | J93: 89.34 | K93: 46.895 | L93: 64.538 | M93: 0 | N93: 35.8 | O93: 65.821 | P93: 4.127 | Q93: 42.584 | R93: 0 | S93: 15.472 | T93: 50.111 | U93: 53.972 | V93: 859.215 | W93: 853.389 | X93: 5.826
B94: Cogeneración | C94: 849.9585 | D94: 478.227 | E94: 68.924 | F94: 10.487 | G94: 500.92561 | H94: 0 | I94: 295.5995 | J94: 354.219 | K94: 594.449 | L94: 1017.3275 | M94: 0 | N94: 18.077 | O94: 500.9056 | P94: 40.737 | Q94: 212.0519 | R94: 0 | S94: 314.102 | T94: 156.5965 | U94: 407.0339 | V94: 5819.62101 | W94: 5809.13401 | X94: 10.487
B95: Residuos renovables | C95: 0 | D95: 0 | E95: 0 | F95: 37.4 | G95: 0 | H95: 0 | I95: 4.967 | J95: 0 | K95: 0 | L95: 27.1745 | M95: 0 | N95: 0 | O95: 25 | P95: 0 | Q95: 16.15 | R95: 1.084 | S95: 0 | T95: 0 | U95: 49.75 | V95: 161.5255 | W95: 123.0415 | X95: 38.484
B96: Residuos no renovables | C96: 83.541 | D96: 49.9 | E96: 74.387 | F96: 37.4 | G96: 63.088 | H96: 0 | I96: 4.967 | J96: 0.68 | K96: 0 | L96: 32.3745 | M96: 0 | N96: 0 | O96: 40.68 | P96: 0 | Q96: 16.15 | R96: 1.084 | S96: 9.68 | T96: 0 | U96: 83.458 | V96: 497.3895 | W96: 458.9055 | X96: 38.484
B97: =CONCATENATE("Potencia ",B81) -> Potencia 2017 | C97: =SUM(C83:C96) -> 15482.76234 | D97: =SUM(D83:D96) -> 7141.90564 | E97: 4481.5581 | F97: 2284.892585 | G97: 8249.883135 | H97: 2791.23157 | I97: 815.341005 | J97: 8192.85389 | K97: 13585.71193 | L97: 12260.36268 | M97: 90.82 | N97: 5761.897284 | O97: 10901.17571 | P97: 1415.49252 | Q97: 459.090181 | R97: 78.3677 | S97: 4367.928696 | T97: 2839.89826 | U97: 2913.2201 | V97: =SUM(C97:U97) -> 104114.3933 | W97: =V97-F97-H97-M97-R97 -> 98869.08146 | X97: =F97+H97+M97+R97 -> 5245.311855
B98: % Potencia s/total | C98: =C97/$V97 -> 0.1487091443 | D98: =D97/$V97 -> 0.06859671763 | E98: 0.04304455856 | F98: 0.02194598184 | G98: 0.07923864196 | H98: 0.02680927661 | I98: 0.007831203535 | J98: 0.07869088633 | K98: 0.1304883167 | L98: 0.1177585758 | M98: 0.0008723097461 | N98: 0.05534198587 | O98: 0.1047038297 | P98: 0.01359555077 | Q98: 0.00440947852 | R98: 0.0007527076469 | S98: 0.04195316859 | T98: 0.02727671141 | U98: 0.02798095448 | V98: 1 | W98: =W97/$V97 -> 0.9496197242 | X98: =X97/$V97 -> 0.05038027585
B99: =CONCATENATE("Δ",B81,"/",B81-1) -> Δ2017/2016 | C99: =(C97/C77-1) -> -0.003449080084 | D99: 0.0005237198673 | E99: -0.00134501918 | F99: 0.0002577897134 | G99: -7.461262143e-06 | H99: 0.0200648119 | I99: 0.000611799224 | J99: -0.002988624406 | K99: -0.03250461565 | L99: -0.003557876255 | M99: 0 | N99: -8.677689683e-07 | O99: -0.0006182081987 | P99: -0.000445017929 | Q99: 0.0001424737891 | R99: 0 | S99: -0.0002987457308 | T99: -0.0008525003721 | U99: -0.004566871624 | V99: -0.005246629102 | W99: -0.006078224004 | X99: 0.01069262128
B101: 2018
B102: CCAA | C102: Andalucía | D102: Aragón | E102: Asturias | F102: Baleares | G102: C. Valenciana | H102: Canarias | I102: Cantabria | J102: Castilla-La Mancha | K102: Castilla y León | L102: Cataluña | M102: Ceuta | N102: Extremadura | O102: Galicia | P102: La Rioja | Q102: Madrid | R102: Melilla | S102: Murcia | T102: Navarra | U102: País Vasco | V102: España | W102: PENINSULAR | X102: NO PENINSULAR
B103: Bombeo puro | C103: 582.88 | D103: 219.14 | E103: 0 | F103: 0 | G103: 1511.95 | H103: 0 | I103: 360.6 | J103: 215 | K103: 0 | L103: 439.32 | M103: 0 | N103: 0 | O103: 0 | P103: 0 | Q103: 0 | R103: 0 | S103: 0 | T103: 0 | U103: 0 | V103: =SUM(C103:U103) -> 3328.89 | W103: =V103-F103-H103-M103-R103 -> 3328.89 | X103: =F103+H103+M103+R103 -> 0
B104: Hidráulica | C104: 589.574 | D104: 1333.7075 | E104: 804.7518 | F104: 0 | G104: 639.784 | H104: 2.02 | I104: 98.842 | J104: 650.242 | K104: 4401.1029 | L104: 1913.0778 | M104: 0 | N104: 2277.8123 | O104: 3720.24769 | P104: 52.20554 | Q104: 108.5166 | R104: 0 | S104: 33.593 | T104: 254.775 | U104: 170.6765 | V104: =SUM(C104:U104) -> 17050.92863 | W104: =V104-F104-H104-M104-R104 -> 17048.90863 | X104: =F104+H104+M104+R104 -> 2.02
B105: Nuclear | C105: 0 | D105: 0 | E105: 0 | F105: 0 | G105: 1063.94 | H105: 0 | I105: 0 | J105: 1003.41 | K105: 0 | L105: 3032.81 | M105: 0 | N105: 2017.13 | O105: 0 | P105: 0 | Q105: 0 | R105: 0 | S105: 0 | T105: 0 | U105: 0 | V105: =SUM(C105:U105) -> 7117.29 | W105: =V105-F105-H105-M105-R105 -> 7117.29 | X105: =F105+H105+M105+R105 -> 0
B106: Carbón | C106: 1989.4 | D106: 1055.77 | E106: 2099.435 | F106: 468.4 | G106: 0 | H106: 0 | I106: 0 | J106: 0 | K106: 2456.89 | L106: 0 | M106: 0 | N106: 0 | O106: 1960.39 | P106: 0 | Q106: 0 | R106: 0 | S106: 0 | T106: 0 | U106: 0 | V106: 10030.285 | W106: 9561.885 | X106: 468.4
B107: Fuel / gas | C107: 0 | D107: 0 | E107: 0 | F107: 787.4 | G107: 0 | H107: 1535.7 | I107: 0 | J107: 0 | K107: 0 | L107: 0 | M107: 90.82 | N107: 0 | O107: 0 | P107: 0 | Q107: 0 | R107: 76.14 | S107: 0 | T107: 0 | U107: 0 | V107: 2490.06 | W107: -1.847411113e-13 | X107: 2490.06
B108: Ciclo combinado | C108: 5951.72 | D108: 1869.68 | E108: 854.17 | F108: 857.95 | G108: 2853.54 | H108: 864.2 | I108: 0 | J108: 758.74 | K108: 0 | L108: 3788.23 | M108: 0 | N108: 0 | O108: 1246.98 | P108: 784.7 | Q108: 0 | R108: 0 | S108: 3263.71 | T108: 1222.32 | U108: 1968.07 | V108: 26284.01 | W108: 24561.86 | X108: 1722.15
B109: Hidroeólica | C109: 0 | D109: 0 | E109: 0 | F109: 0 | G109: 0 | H109: 11.39 | I109: 0 | J109: 0 | K109: 0 | L109: 0 | M109: 0 | N109: 0 | O109: 0 | P109: 0 | Q109: 0 | R109: 0 | S109: 0 | T109: 0 | U109: 0 | V109: 11.39 | W109: 0 | X109: 11.39
B110: Eólica | C110: 3327.1805 | D110: 1964.82 | E110: 518.45 | F110: 3.6375 | G110: 1205.24 | H110: 421.715 | I110: 35.3105 | J110: 3857.3542 | K110: 5591.002 | L110: 1271.16 | M110: 0 | N110: 0 | O110: 3411.152 | P110: 448.12 | Q110: 0 | R110: 0 | S110: 262.77 | T110: 995.157 | U110: 153.3848 | V110: 23466.4535 | W110: 23041.101 | X110: 425.3525
B111: Solar fotovoltaica | C111: 880.967527 | D111: 168.97414 | E111: 0.7428 | F111: 80.225045 | G111: 360.725125 | H111: 167.32557 | I111: 2.193005 | J111: 924.92145 | K111: 495.61995 | L111: 268.36688 | M111: 0 | N111: 563.988984 | O111: 16.657695 | P111: 85.60298 | Q111: 63.698096 | R111: 0.0597 | S111: 437.643796 | T111: 162.02222 | U111: 27.009505 | V111: 4706.744468 | W111: =V111-F111-H111-M111-R111 -> 4459.134153 | X111: 247.610315
B112: Solar térmica | C112: 1000.023 | D112: 0 | E112: 0 | F112: 0 | G112: 49.9 | H112: 0 | I112: 0 | J112: 349.4 | K112: 0 | L112: 24.29 | M112: 0 | N112: 849.1 | O112: 0 | P112: 0 | Q112: 0 | R112: 0 | S112: 31.4 | T112: 0 | U112: 0 | V112: 2304.113 | W112: 2304.113 | X112: 0
B113: Otras renovables | C113: 230.529 | D113: 42.335 | E113: 91.21 | F113: 2.13 | G113: 12.893 | H113: 3.696 | I113: 12.862 | J113: 89.34 | K113: 46.895 | L113: 64.538 | M113: 0 | N113: 35.8 | O113: 65.821 | P113: 4.127 | Q113: 42.584 | R113: 0 | S113: 15.472 | T113: 50.111 | U113: 53.972 | V113: 864.315 | W113: 858.489 | X113: 5.826
B114: Cogeneración | C114: 848.9595 | D114: 478.259 | E114: 68.924 | F114: 10.487 | G114: 463.025 | H114: 0 | I114: 295.5995 | J114: 355.168 | K114: 594.449 | L114: 1011.3275 | M114: 0 | N114: 18.077 | O114: 500.9056 | P114: 22.917 | Q114: 211.0619 | R114: 0 | S114: 314.102 | T114: 147.5315 | U114: 405.4889 | V114: 5746.2824 | W114: 5735.7954 | X114: 10.487
B115: Residuos renovables | C115: 0 | D115: 0 | E115: 0 | F115: 37.4 | G115: 0 | H115: 0 | I115: 4.967 | J115: 0 | K115: 0 | L115: 27.1745 | M115: 0 | N115: 0 | O115: 25 | P115: 0 | Q115: 16.15 | R115: 1.084 | S115: 0 | T115: 0 | U115: 49.75 | V115: =SUM(C115:U115) -> 161.5255 | W115: =V115-F115-H115-M115-R115 -> 123.0415 | X115: =F115+H115+M115+R115 -> 38.484
B116: Residuos no renovables | C116: 83.541 | D116: 49.9 | E116: 74.387 | F116: 37.4 | G116: 63.088 | H116: 0 | I116: 4.967 | J116: 0.68 | K116: 0 | L116: 32.3745 | M116: 0 | N116: 0 | O116: 40.68 | P116: 0 | Q116: 16.15 | R116: 1.084 | S116: 9.68 | T116: 0 | U116: 76.93 | V116: =SUM(C116:U116) -> 490.8615 | W116: =V116-F116-H116-M116-R116 -> 452.3775 | X116: =F116+H116+M116+R116 -> 38.484
B117: =CONCATENATE("Potencia ",B101) -> Potencia 2018 | C117: =SUM(C103:C116) -> 15484.77453 | D117: =SUM(D103:D116) -> 7182.58564 | E117: 4512.0706 | F117: 2285.029545 | G117: 8224.085125 | H117: 3006.04657 | I117: 815.341005 | J117: 8204.25565 | K117: 13585.95885 | L117: 11872.66918 | M117: 90.82 | N117: 5761.908284 | O117: 10987.83399 | P117: 1397.67252 | Q117: 458.160596 | R117: 78.3677 | S117: 4368.370796 | T117: 2831.91672 | U117: 2905.281705 | V117: =SUM(C117:U117) -> 104053.149 | W117: =V117-F117-H117-M117-R117 -> 98592.88518 | X117: =F117+H117+M117+R117 -> 5460.263815
B118: % Potencia s/total | C118: =C117/$V117 -> 0.1488160106 | D118: =D117/$V117 -> 0.06902804681 | E118: =E117/$V117 -> 0.04336313359 | F118: 0.02196021521 | G118: 0.0790373497 | H118: 0.02888953 | I118: 0.007835812879 | J118: 0.07884677906 | K118: 0.1305674934 | L118: 0.114101969 | M118: 0.0008728231762 | N118: 0.05537466515 | O118: 0.1055982841 | P118: 0.0134322943 | Q118: 0.00440314013 | R118: 0.0007531506807 | S118: 0.04198211047 | T118: 0.02721605975 | U118: 0.02792113197 | V118: =V117/$V117 -> 1 | W118: =W117/$V117 -> 0.9475242809 | X118: =X117/$V117 -> 0.05247571907
B119: =CONCATENATE("Δ",B101,"/",B101-1) -> Δ2018/2017 | C119: =(C117/C97-1) -> 0.0001299632427 | D119: =(D117/D97-1) -> 0.005695958761 | E119: 0.006808457978 | F119: 5.994154863e-05 | G119: -0.003127075812 | H119: 0.07696065146 | I119: 0 | J119: 0.001391671346 | K119: 1.817497686e-05 | L119: -0.03162169914 | M119: 0 | N119: 1.909093386e-06 | O119: 0.007949443468 | P119: -0.01258925762 | Q119: -0.002024841825 | R119: 0 | S119: 0.0001012150222 | T119: -0.002810502092 | U119: -0.002724955454 | V119: -0.0005882406654 | W119: -0.002793555639 | X119: 0.04097982464

Sheet demandas (hidden)
A2: años | B2: datos | C2: Andalucía | D2: Aragón | E2: Asturias | F2: Baleares | G2: C. Valenciana | H2: Canarias | I2: Cantabria | J2: Castilla-La Mancha | K2: Castilla y León | L2: Cataluña | M2: Ceuta | N2: Extremadura | O2: Galicia | P2: La Rioja | Q2: Madrid | R2: Melilla | S2: Murcia | T2: Navarra | U2: País Vasco | V2: España | W2: PENINSULAR | X2: NO PENINSULAR | Z2: Resto nacional
A3: 2013 | B3: demanda | C3: =generacion_bruta!C21 -> 38070.83025 | D3: =generacion_bruta!D21 -> 10103.74036 | E3: =generacion_bruta!E21 -> 10413.49901 | F3: =generacion_bruta!F21 -> 5666.872582 | G3: =generacion_bruta!G21 -> 25828.80993 | H3: =generacion_bruta!H21 -> 8506.317959 | I3: =generacion_bruta!I21 -> 4387.141593 | J3: =generacion_bruta!J21 -> 11629.62262 | K3: =generacion_bruta!K21 -> 13645.61341 | L3: =generacion_bruta!L21 -> 46186.71605 | M3: =generacion_bruta!M21 -> 201.964935 | N3: =generacion_bruta!N21 -> 4851.562823 | O3: =generacion_bruta!O21 -> 19870.99706 | P3: =generacion_bruta!P21 -> 1698.877931 | Q3: =generacion_bruta!Q21 -> 29596.17687 | R3: =generacion_bruta!R21 -> 209.6708 | S3: =generacion_bruta!S21 -> 8300.775673 | T3: =generacion_bruta!T21 -> 4776.584727 | U3: =generacion_bruta!U21 -> 16559.37718 | V3: =SUM(C3:U3) -> 260505.1518 | W3: =V3-F3-H3-M3-R3 -> 245920.3255 | X3: =F3+H3+M3+R3 -> 14584.82628 | Z3: =V3-Q3 -> 230908.9749
A4: 2013 | B4: =CONCATENATE("Δ",A3,"/",A3-1) -> Δ2013/2012 | C4: =generacion_bruta!C22 -> -0.03815363207 | D4: =generacion_bruta!D22 -> -0.01632709311 | E4: =generacion_bruta!E22 -> 0.01121583338 | F4: =generacion_bruta!F22 -> -0.02654473816 | G4: =generacion_bruta!G22 -> -0.02202693342 | H4: =generacion_bruta!H22 -> -0.0428610292 | I4: =generacion_bruta!I22 -> -0.006207841651 | J4: =generacion_bruta!J22 -> -0.03723150899 | K4: =generacion_bruta!K22 -> -0.01329310768 | L4: =generacion_bruta!L22 -> -0.0296838124 | M4: =generacion_bruta!M22 -> -0.04765824928 | N4: =generacion_bruta!N22 -> -0.01799914767 | O4: =generacion_bruta!O22 -> 0.007870847707 | P4: =generacion_bruta!P22 -> -0.0216451 | Q4: =generacion_bruta!Q22 -> -0.03837466443 | R4: =generacion_bruta!R22 -> -0.03525334272 | S4: =generacion_bruta!S22 -> -0.03148344324 | T4: =generacion_bruta!T22 -> -0.00682443912 | U4: =generacion_bruta!U22 -> -0.007597718917 | V4: =generacion_bruta!V22 -> -0.03194967142
A5: 2014 | B5: demanda | C5: =generacion_bruta!C48 -> 37443.37655 | D5: =generacion_bruta!D48 -> 10088.33267 | E5: =generacion_bruta!E48 -> 10325.14698 | F5: =generacion_bruta!F48 -> 5577.477485 | G5: =generacion_bruta!G48 -> 25823.20355 | H5: =generacion_bruta!H48 -> 8495.116826 | I5: =generacion_bruta!I48 -> 4324.41963 | J5: =generacion_bruta!J48 -> 11606.54049 | K5: =generacion_bruta!K48 -> 13531.06902 | L5: =generacion_bruta!L48 -> 45565.01581 | M5: =generacion_bruta!M48 -> 212.245157 | N5: =generacion_bruta!N48 -> 4623.806886 | O5: =generacion_bruta!O48 -> 19756.44015 | P5: =generacion_bruta!P48 -> 1685.658135 | Q5: =generacion_bruta!Q48 -> 28361.93986 | R5: =generacion_bruta!R48 -> 209.798915 | S5: =generacion_bruta!S48 -> 8453.909052 | T5: =generacion_bruta!T48 -> 4781.133849 | U5: =generacion_bruta!U48 -> 16804.45947 | V5: =SUM(C5:U5) -> 257669.0905 | W5: =V5-F5-H5-M5-R5 -> 243174.4521 | X5: =F5+H5+M5+R5 -> 14494.63838 | Z5: =V5-Q5 -> 229307.1506
A6: 2014 | B6: =CONCATENATE("Δ",A5,"/",A5-1) -> Δ2014/2013 | C6: =generacion_bruta!C49 -> -0.01648121922 | D6: =generacion_bruta!D49 -> -0.001524949518 | E6: =generacion_bruta!E49 -> -0.0084843757 | F6: =generacion_bruta!F49 -> -0.01577503212 | G6: =generacion_bruta!G49 -> -0.0002170588973 | H6: =generacion_bruta!H49 -> -0.001316801588 | I6: =generacion_bruta!I49 -> -0.01429677198 | J6: =generacion_bruta!J49 -> -0.001984770315 | K6: =generacion_bruta!K49 -> -0.008394227918 | L6: =generacion_bruta!L49 -> -0.01346058545 | M6: =generacion_bruta!M49 -> 0.05090102398 | N6: =generacion_bruta!N49 -> -0.0469448599 | O6: =generacion_bruta!O49 -> -0.005765030946 | P6: =generacion_bruta!P49 -> -0.007781486685 | Q6: =generacion_bruta!Q49 -> -0.04170258261 | R6: =generacion_bruta!R49 -> 0.0006110292897 | S6: =generacion_bruta!S49 -> 0.01844808064 | T6: =generacion_bruta!T49 -> 0.0009523796311 | U6: =generacion_bruta!U49 -> 0.01480021232 | V6: =generacion_bruta!V49 -> -0.002566795021
A7: 2015 | B7: demanda | C7: =generacion_bruta!C75 -> 38539.48007 | D7: =generacion_bruta!D75 -> 10297.83308 | E7: =generacion_bruta!E75 -> 10489.02777 | F7: =generacion_bruta!F75 -> 5787.969143 | G7: =generacion_bruta!G75 -> 26668.90208 | H7: =generacion_bruta!H75 -> 8633.213339 | I7: =generacion_bruta!I75 -> 4249.492505 | J7: =generacion_bruta!J75 -> 11545.01159 | K7: =generacion_bruta!K75 -> 13834.04387 | L7: =generacion_bruta!L75 -> 46569.9274 | M7: =generacion_bruta!M75 -> 204.02309 | N7: =generacion_bruta!N75 -> 4818.529973 | O7: =generacion_bruta!O75 -> 19717.78979 | P7: =generacion_bruta!P75 -> 1720.051935 | Q7: =generacion_bruta!Q75 -> 28786.3354 | R7: =generacion_bruta!R75 -> 213.201556 | S7: =generacion_bruta!S75 -> 8903.194616 | T7: =generacion_bruta!T75 -> 4843.527811 | U7: =generacion_bruta!U75 -> 16986.87952 | V7: =SUM(C7:U7) -> 262808.4345 | W7: =V7-F7-H7-M7-R7 -> 247970.0274 | X7: =F7+H7+M7+R7 -> 14838.40713 | Z7: =V7-Q7 -> 234022.0991
A8: 2015 | B8: =CONCATENATE("Δ",A7,"/",A7-1) -> Δ2015/2014 | C8: =generacion_bruta!C76 -> 0.02927362915 | D8: =generacion_bruta!D76 -> 0.02076660454 | E8: =generacion_bruta!E76 -> 0.01587200573 | F8: =generacion_bruta!F76 -> 0.03773958005 | G8: =generacion_bruta!G76 -> 0.03274955895 | H8: =generacion_bruta!H76 -> 0.01625598751 | I8: =generacion_bruta!I76 -> -0.01732651579 | J8: =generacion_bruta!J76 -> -0.005301226589 | K8: =generacion_bruta!K76 -> 0.02239105119 | L8: =generacion_bruta!L76 -> 0.02205445485 | M8: =generacion_bruta!M76 -> -0.03873853762 | N8: =generacion_bruta!N76 -> 0.04211315304 | O8: =generacion_bruta!O76 -> -0.001956342272 | P8: =generacion_bruta!P76 -> 0.02040378134 | Q8: =generacion_bruta!Q76 -> 0.01496355828 | R8: =generacion_bruta!R76 -> 0.01621858245 | S8: =generacion_bruta!S76 -> 0.0531453037 | T8: =generacion_bruta!T76 -> 0.01305003457 | U8: =generacion_bruta!U76 -> 0.01085545455 | V8: =generacion_bruta!V76 -> 0.01994552022
A9: 2016 | B9: demanda | C9: =generacion_bruta!C102 -> 39490.41033 | D9: =generacion_bruta!D102 -> 10434.73972 | E9: =generacion_bruta!E102 -> 10525.64437 | F9: =generacion_bruta!F102 -> 5823.190691 | G9: =generacion_bruta!G102 -> 26784.24437 | H9: =generacion_bruta!H102 -> 8744.102509 | I9: =generacion_bruta!I102 -> 4205.049939 | J9: =generacion_bruta!J102 -> 11687.95839 | K9: =generacion_bruta!K102 -> 13998.0845 | L9: =generacion_bruta!L102 -> 46828.22955 | M9: =generacion_bruta!M102 -> 210.680936 | N9: =generacion_bruta!N102 -> 4952.347727 | O9: =generacion_bruta!O102 -> 19960.81576 | P9: =generacion_bruta!P102 -> 1727.430505 | Q9: =generacion_bruta!Q102 -> 28886.71875 | R9: =generacion_bruta!R102 -> 208.28599 | S9: =generacion_bruta!S102 -> 9037.372675 | T9: =generacion_bruta!T102 -> 4948.656781 | U9: =generacion_bruta!U102 -> 16212.18662 | V9: =SUM(C9:U9) -> 264666.1501 | W9: =V9-F9-H9-M9-R9 -> 249679.89 | X9: =F9+H9+M9+R9 -> 14986.26013 | Z9: =V9-Q9 -> 235779.4313
A10: 2016 | B10: =CONCATENATE("Δ",A9,"/",A9-1) -> Δ2016/2015 | C10: =generacion_bruta!C103 -> 0.02467418503 | D10: =generacion_bruta!D103 -> 0.01329470345 | E10: =generacion_bruta!E103 -> 0.00349094328 | F10: =generacion_bruta!F103 -> 0.006085303347 | G10: =generacion_bruta!G103 -> 0.004324973359 | H10: =generacion_bruta!H103 -> 0.01284448393 | I10: =generacion_bruta!I103 -> -0.01045832319 | J10: =generacion_bruta!J103 -> 0.01238169376 | K10: =generacion_bruta!K103 -> 0.01185774915 | L10: =generacion_bruta!L103 -> 0.005546543906 | M10: =generacion_bruta!M103 -> 0.03263280641 | N10: =generacion_bruta!N103 -> 0.02777148939 | O10: =generacion_bruta!O103 -> 0.01232521361 | P10: =generacion_bruta!P103 -> 0.004289736751 | Q10: =generacion_bruta!Q103 -> 0.003487187709 | R10: =generacion_bruta!R103 -> -0.02305595743 | S10: =generacion_bruta!S103 -> 0.01507077682 | T10: =generacion_bruta!T103 -> 0.02170504106 | U10: =generacion_bruta!U103 -> -0.04560536843 | V10: =generacion_bruta!V103 -> 0.007068706045
A11: 2017 | B11: demanda | C11: =generacion_bruta!C129 -> 40164.56569 | D11: =generacion_bruta!D129 -> 10665.77123 | E11: =generacion_bruta!E129 -> 10600.67299 | F11: =generacion_bruta!F129 -> 6016.416016 | G11: =generacion_bruta!G129 -> 26949.97057 | H11: =generacion_bruta!H129 -> 8931.063025 | I11: =generacion_bruta!I129 -> 4372.191105 | J11: =generacion_bruta!J129 -> 11715.03823 | K11: =generacion_bruta!K129 -> 14075.73292 | L11: =generacion_bruta!L129 -> 47799.86865 | M11: =generacion_bruta!M129 -> 202.86083 | N11: =generacion_bruta!N129 -> 5022.31984 | O11: =generacion_bruta!O129 -> 19898.31394 | P11: =generacion_bruta!P129 -> 1704.12056 | Q11: =generacion_bruta!Q129 -> 28588.24736 | R11: =generacion_bruta!R129 -> 210.425078 | S11: =generacion_bruta!S129 -> 9374.494179 | T11: =generacion_bruta!T129 -> 5052.61678 | U11: =generacion_bruta!U129 -> 16522.48166 | V11: =SUM(C11:U11) -> 267867.1706 | W11: =V11-F11-H11-M11-R11 -> 252506.4057 | X11: =F11+H11+M11+R11 -> 15360.76495 | Z11: =V11-Q11 -> 239278.9233
A12: 2017 | B12: =CONCATENATE("Δ",A11,"/",A11-1) -> Δ2017/2016 | C12: =generacion_bruta!C130 -> 0.01707136881 | D12: =generacion_bruta!D130 -> 0.02214061023 | E12: =generacion_bruta!E130 -> 0.007128173854 | F12: =generacion_bruta!F130 -> 0.03318203632 | G12: =generacion_bruta!G130 -> 0.006187451089 | H12: =generacion_bruta!H130 -> 0.02138132711 | I12: =generacion_bruta!I130 -> 0.03974772438 | J12: =generacion_bruta!J130 -> 0.002316901559 | K12: =generacion_bruta!K130 -> 0.005547074674 | L12: =generacion_bruta!L130 -> 0.02074900357 | M12: =generacion_bruta!M130 -> -0.03711824216 | N12: =generacion_bruta!N130 -> 0.01412907915 | O12: =generacion_bruta!O130 -> -0.003131225785 | P12: =generacion_bruta!P130 -> -0.01349399871 | Q12: =generacion_bruta!Q130 -> -0.01033247831 | R12: =generacion_bruta!R130 -> 0.01026995623 | S12: =generacion_bruta!S130 -> 0.03730304328 | T12: =generacion_bruta!T130 -> 0.0210077206 | U12: =generacion_bruta!U130 -> 0.01913961696 | V12: =generacion_bruta!V130 -> 0.01209455967
A13: 2018 | B13: demanda | C13: =generacion_bruta!C156 -> 40236.80547 | D13: =generacion_bruta!D156 -> 10730.56998 | E13: =generacion_bruta!E156 -> 10638.59458 | F13: =generacion_bruta!F156 -> 6052.251224 | G13: =generacion_bruta!G156 -> 27500.36328 | H13: =generacion_bruta!H156 -> 8840.018761 | I13: =generacion_bruta!I156 -> 4274.673161 | J13: =generacion_bruta!J156 -> 11748.07561 | K13: =generacion_bruta!K156 -> 14288.29498 | L13: =generacion_bruta!L156 -> 47322.50155 | M13: =generacion_bruta!M156 -> 207.356224 | N13: =generacion_bruta!N156 -> 5054.636744 | O13: =generacion_bruta!O156 -> 19913.45052 | P13: =generacion_bruta!P156 -> 1712.75583 | Q13: =generacion_bruta!Q156 -> 28624.37718 | R13: =generacion_bruta!R156 -> 212.949056 | S13: =generacion_bruta!S156 -> 9612.927115 | T13: =generacion_bruta!T156 -> 5125.842829 | U13: =generacion_bruta!U156 -> 16711.36838 | V13: =generacion_bruta!V156 -> 268807.8125 | W13: =V13-F13-H13-M13-R13 -> 253495.2372 | X13: =F13+H13+M13+R13 -> 15312.57527 | Z13: =V13-Q13 -> 240183.4353
A14: 2018 | B14: =CONCATENATE("Δ",A13,"/",A13-1) -> Δ2018/2017 | C14: =generacion_bruta!C157 -> 0.001798594825 | D14: =generacion_bruta!D157 -> 0.006075393296 | E14: =generacion_bruta!E157 -> 0.003577280803 | F14: =generacion_bruta!F157 -> 0.005956238383 | G14: =generacion_bruta!G157 -> 0.02042275737 | H14: =generacion_bruta!H157 -> -0.01019411281 | I14: =generacion_bruta!I157 -> -0.02230413577 | J14: =generacion_bruta!J157 -> 0.002820082622 | K14: =generacion_bruta!K157 -> 0.01510131417 | L14: =generacion_bruta!L157 -> -0.009986786858 | M14: =generacion_bruta!M157 -> 0.02215999018 | N14: =generacion_bruta!N157 -> 0.006434656698 | O14: =generacion_bruta!O157 -> 0.0007606965116 | P14: =generacion_bruta!P157 -> 0.005067288197 | Q14: =generacion_bruta!Q157 -> 0.00126379965 | R14: =generacion_bruta!R157 -> 0.01199466349 | S14: =generacion_bruta!S157 -> 0.02543421879 | T14: =generacion_bruta!T157 -> 0.01449269798 | U14: =generacion_bruta!U157 -> 0.01143210347 | V14: =generacion_bruta!V157 -> 0.003511597981

Sheet datos_genanual (hidden)
B1: CCAA | C1: Andalucía | D1: Aragón | E1: Asturias | F1: Baleares | G1: C. Valenciana | H1: Canarias | I1: Cantabria | J1: Castilla-La Mancha | K1: Castilla y León | L1: Cataluña | M1: Ceuta | N1: Extremadura | O1: Galicia | P1: La Rioja | Q1: Madrid | R1: Melilla | S1: Murcia | T1: Navarra | U1: País Vasco | V1: España
A2: 2013 | B2: Hidráulica | C2: =generacion_bruta!C4 -> 1285.805093 | D2: =generacion_bruta!D4 -> 4251.768675 | E2: =generacion_bruta!E4 -> 2158.721231 | F2: =generacion_bruta!F4 -> 0 | G2: =generacion_bruta!G4 -> 475.478923 | H2: =generacion_bruta!H4 -> 3.031283 | I2: =generacion_bruta!I4 -> 341.321716 | J2: =generacion_bruta!J4 -> 912.320903 | K2: =generacion_bruta!K4 -> 8286.240227 | L2: =generacion_bruta!L4 -> 5394.714236 | M2: =generacion_bruta!M4 -> 0 | N2: =generacion_bruta!N4 -> 2828.102937 | O2: =generacion_bruta!O4 -> 9642.679908 | P2: =generacion_bruta!P4 -> 180.607162 | Q2: =generacion_bruta!Q4 -> 165.745656 | R2: =generacion_bruta!R4 -> 0 | S2: =generacion_bruta!S4 -> 134.077043 | T2: =generacion_bruta!T4 -> 757.543275 | U2: =generacion_bruta!U4 -> 567.278546 | V2: =generacion_bruta!V4 -> 37385.43681
B3: Turbinación bombeo | C3: =generacion_bruta!C5 -> 332.6293827 | D3: =generacion_bruta!D5 -> 292.337205 | E3: =generacion_bruta!E5 -> 53.9984088 | F3: =generacion_bruta!F5 -> 0 | G3: =generacion_bruta!G5 -> 1116.192629 | H3: =generacion_bruta!H5 -> 0 | I3: =generacion_bruta!I5 -> 537.83828 | J3: =generacion_bruta!J5 -> 113.22974 | K3: =generacion_bruta!K5 -> 485.5478034 | L3: =generacion_bruta!L5 -> 245.1489343 | M3: =generacion_bruta!M5 -> 0 | N3: =generacion_bruta!N5 -> 33.4582688 | O3: =generacion_bruta!O5 -> 79.296532 | P3: =generacion_bruta!P5 -> 0 | Q3: =generacion_bruta!Q5 -> 0 | R3: =generacion_bruta!R5 -> 0 | S3: =generacion_bruta!S5 -> 0 | T3: =generacion_bruta!T5 -> 0 | U3: =generacion_bruta!U5 -> 0 | V3: =generacion_bruta!V5 -> 3289.677184
B4: Nuclear | C4: =generacion_bruta!C6 -> 0 | D4: =generacion_bruta!D6 -> 0 | E4: =generacion_bruta!E6 -> 0 | F4: =generacion_bruta!F6 -> 0 | G4: =generacion_bruta!G6 -> 7995.42812 | H4: =generacion_bruta!H6 -> 0 | I4: =generacion_bruta!I6 -> 0 | J4: =generacion_bruta!J6 -> 7464.878815 | K4: =generacion_bruta!K6 -> -20.569584 | L4: =generacion_bruta!L6 -> 23694.3217 | M4: =generacion_bruta!M6 -> 0 | N4: =generacion_bruta!N6 -> 15076.72907 | O4: =generacion_bruta!O6 -> 0 | P4: =generacion_bruta!P6 -> 0 | Q4: =generacion_bruta!Q6 -> 0 | R4: =generacion_bruta!R6 -> 0 | S4: =generacion_bruta!S6 -> 0 | T4: =generacion_bruta!T6 -> 0 | U4: =generacion_bruta!U6 -> 0 | V4: =generacion_bruta!V6 -> 54210.78812
B5: Carbón | C5: =generacion_bruta!C7 -> 9268.648912 | D5: =generacion_bruta!D7 -> 3423.252459 | E5: =generacion_bruta!E7 -> 8537.418327 | F5: =generacion_bruta!F7 -> 2350.640404 | G5: =generacion_bruta!G7 -> 0 | H5: =generacion_bruta!H7 -> 0 | I5: =generacion_bruta!I7 -> 0 | J5: =generacion_bruta!J7 -> 776.982152 | K5: =generacion_bruta!K7 -> 5688.99129 | L5: =generacion_bruta!L7 -> 0 | M5: =generacion_bruta!M7 -> 0 | N5: =generacion_bruta!N7 -> 0 | O5: =generacion_bruta!O7 -> 9395.604172 | P5: =generacion_bruta!P7 -> 0 | Q5: =generacion_bruta!Q7 -> 0 | R5: =generacion_bruta!R7 -> 0 | S5: =generacion_bruta!S7 -> 0 | T5: =generacion_bruta!T7 -> 0 | U5: =generacion_bruta!U7 -> 0 | V5: =generacion_bruta!V7 -> 39441.53772
B6: Fuel / gas | C6: =generacion_bruta!C8 -> 0 | D6: =generacion_bruta!D8 -> 0 | E6: =generacion_bruta!E8 -> 0 | F6: =generacion_bruta!F8 -> 1259.760825 | G6: =generacion_bruta!G8 -> 0.021424 | H6: =generacion_bruta!H8 -> 4899.196915 | I6: =generacion_bruta!I8 -> 0 | J6: =generacion_bruta!J8 -> 0 | K6: =generacion_bruta!K8 -> 0 | L6: =generacion_bruta!L8 -> -2.034139 | M6: =generacion_bruta!M8 -> 201.964935 | N6: =generacion_bruta!N8 -> 0 | O6: =generacion_bruta!O8 -> 0 | P6: =generacion_bruta!P8 -> 0 | Q6: =generacion_bruta!Q8 -> 0 | R6: =generacion_bruta!R8 -> 201.55068 | S6: =generacion_bruta!S8 -> 0 | T6: =generacion_bruta!T8 -> 0 | U6: =generacion_bruta!U8 -> 0 | V6: =generacion_bruta!V8 -> 6560.46064
B7: Ciclo combinado | C7: =generacion_bruta!C9 -> 5764.074056 | D7: =generacion_bruta!D9 -> 77.079622 | E7: =generacion_bruta!E9 -> 293.976219 | F7: =generacion_bruta!F9 -> 407.330728 | G7: =generacion_bruta!G9 -> 3916.996691 | H7: =generacion_bruta!H9 -> 2946.150371 | I7: =generacion_bruta!I9 -> 0 | J7: =generacion_bruta!J9 -> 1095.947422 | K7: =generacion_bruta!K9 -> 0 | L7: =generacion_bruta!L9 -> 5649.607503 | M7: =generacion_bruta!M9 -> 0 | N7: =generacion_bruta!N9 -> 0 | O7: =generacion_bruta!O9 -> 1154.598364 | P7: =generacion_bruta!P9 -> 380.973377 | Q7: =generacion_bruta!Q9 -> 0 | R7: =generacion_bruta!R9 -> 0 | S7: =generacion_bruta!S9 -> 2310.098912 | T7: =generacion_bruta!T9 -> 353.509929 | U7: =generacion_bruta!U9 -> 3129.69521 | V7: =generacion_bruta!V9 -> 27480.0384
B8: Hidroeólica | C8: =generacion_bruta!C10 -> 0 | D8: =generacion_bruta!D10 -> 0 | E8: =generacion_bruta!E10 -> 0 | F8: =generacion_bruta!F10 -> 0 | G8: =generacion_bruta!G10 -> 0 | H8: =generacion_bruta!H10 -> 0 | I8: =generacion_bruta!I10 -> 0 | J8: =generacion_bruta!J10 -> 0 | K8: =generacion_bruta!K10 -> 0 | L8: =generacion_bruta!L10 -> 0 | M8: =generacion_bruta!M10 -> 0 | N8: =generacion_bruta!N10 -> 0 | O8: =generacion_bruta!O10 -> 0 | P8: =generacion_bruta!P10 -> 0 | Q8: =generacion_bruta!Q10 -> 0 | R8: =generacion_bruta!R10 -> 0 | S8: =generacion_bruta!S10 -> 0 | T8: =generacion_bruta!T10 -> 0 | U8: =generacion_bruta!U10 -> 0 | V8: =generacion_bruta!V10 -> 0
B9: Eólica | C9: =generacion_bruta!C11 -> 6986.811481 | D9: =generacion_bruta!D11 -> 5009.608408 | E9: =generacion_bruta!E11 -> 1140.592288 | F9: =generacion_bruta!F11 -> 6.159468 | G9: =generacion_bruta!G11 -> 2529.880116 | H9: =generacion_bruta!H11 -> 362.733485 | I9: =generacion_bruta!I11 -> 74.550424 | J9: =generacion_bruta!J11 -> 8657.478624 | K9: =generacion_bruta!K11 -> 12749.66811 | L9: =generacion_bruta!L11 -> 3194.726668 | M9: =generacion_bruta!M11 -> 0 | N9: =generacion_bruta!N11 -> 0 | O9: =generacion_bruta!O11 -> 9497.931287 | P9: =generacion_bruta!P11 -> 1078.385075 | Q9: =generacion_bruta!Q11 -> 0 | R9: =generacion_bruta!R11 -> 0 | S9: =generacion_bruta!S11 -> 543.819978 | T9: =generacion_bruta!T11 -> 2524.694876 | U9: =generacion_bruta!U11 -> 356.35345 | V9: =generacion_bruta!V11 -> 54713.39374
B10: Solar fotovoltaica | C10: =generacion_bruta!C12 -> 1586.421055 | D10: =generacion_bruta!D12 -> 309.133006 | E10: =generacion_bruta!E12 -> 0.738135 | F10: =generacion_bruta!F12 -> 122.112852 | G10: =generacion_bruta!G12 -> 559.959884 | H10: =generacion_bruta!H12 -> 286.703317 | I10: =generacion_bruta!I12 -> 2.067143 | J10: =generacion_bruta!J12 -> 1702.318688 | K10: =generacion_bruta!K12 -> 851.219154 | L10: =generacion_bruta!L12 -> 431.391836 | M10: =generacion_bruta!M12 -> 0 | N10: =generacion_bruta!N12 -> 1110.447569 | O10: =generacion_bruta!O12 -> 20.475629 | P10: =generacion_bruta!P12 -> 130.107387 | Q10: =generacion_bruta!Q12 -> 92.17406 | R10: =generacion_bruta!R12 -> 0.082323 | S10: =generacion_bruta!S12 -> 798.846065 | T10: =generacion_bruta!T12 -> 295.461062 | U10: =generacion_bruta!U12 -> 27.615431 | V10: =generacion_bruta!V12 -> 8327.274596
B11: Solar térmica | C11: =generacion_bruta!C13 -> 1987.787339 | D11: =generacion_bruta!D13 -> 0 | E11: =generacion_bruta!E13 -> 0 | F11: =generacion_bruta!F13 -> 0 | G11: =generacion_bruta!G13 -> 9.833162 | H11: =generacion_bruta!H13 -> 0 | I11: =generacion_bruta!I13 -> 0 | J11: =generacion_bruta!J13 -> 678.244937 | K11: =generacion_bruta!K13 -> 0 | L11: =generacion_bruta!L13 -> 73.81801 | M11: =generacion_bruta!M13 -> 0 | N11: =generacion_bruta!N13 -> 1648.82012 | O11: =generacion_bruta!O13 -> 0 | P11: =generacion_bruta!P13 -> 0 | Q11: =generacion_bruta!Q13 -> 0 | R11: =generacion_bruta!R13 -> 0 | S11: =generacion_bruta!S13 -> 43.023967 | T11: =generacion_bruta!T13 -> 0 | U11: =generacion_bruta!U13 -> 0 | V11: =generacion_bruta!V13 -> 4441.527535
B12: Otras renovables | C12: =generacion_bruta!C14 -> 1791.354686 | D12: =generacion_bruta!D14 -> 53.85382 | E12: =generacion_bruta!E14 -> 562.901315 | F12: =generacion_bruta!F14 -> 0.505693 | G12: =generacion_bruta!G14 -> 43.083803 | H12: =generacion_bruta!H14 -> 8.502588 | I12: =generacion_bruta!I14 -> 81.926784 | J12: =generacion_bruta!J14 -> 234.164975 | K12: =generacion_bruta!K14 -> 181.366081 | L12: =generacion_bruta!L14 -> 355.943909 | M12: =generacion_bruta!M14 -> 0 | N12: =generacion_bruta!N14 -> 122.21902 | O12: =generacion_bruta!O14 -> 225.803422 | P12: =generacion_bruta!P14 -> 11.889307 | Q12: =generacion_bruta!Q14 -> 259.099419 | R12: =generacion_bruta!R14 -> 0 | S12: =generacion_bruta!S14 -> 36.905731 | T12: =generacion_bruta!T14 -> 303.593267 | U12: =generacion_bruta!U14 -> 61.171619 | V12: =generacion_bruta!V14 -> 4334.285439
B13: Cogeneración | C13: =generacion_bruta!C15 -> 5617.652001 | D13: =generacion_bruta!D15 -> 3283.678132 | E13: =generacion_bruta!E15 -> 373.718186 | F13: =generacion_bruta!F15 -> 25.720822 | G13: =generacion_bruta!G15 -> 1802.855249 | H13: =generacion_bruta!H15 -> 0 | I13: =generacion_bruta!I15 -> 1219.72415 | J13: =generacion_bruta!J15 -> 1150.53805 | K13: =generacion_bruta!K15 -> 2971.210302 | L13: =generacion_bruta!L15 -> 5916.309649 | M13: =generacion_bruta!M15 -> 0 | N13: =generacion_bruta!N15 -> 57.850705 | O13: =generacion_bruta!O15 -> 2444.745145 | P13: =generacion_bruta!P15 -> 149.740855 | Q13: =generacion_bruta!Q15 -> 1086.329052 | R13: =generacion_bruta!R15 -> 0 | S13: =generacion_bruta!S15 -> 1977.674374 | T13: =generacion_bruta!T15 -> 981.567399 | U13: =generacion_bruta!U15 -> 1776.350518 | V13: =generacion_bruta!V15 -> 30835.66459
B14: Residuos no renovables
B15: Residuos renovables
A16: 2014 | B16: Hidráulica | C16: =generacion_bruta!C31 -> 933.9973379 | D16: =generacion_bruta!D31 -> 4070.716808 | E16: =generacion_bruta!E31 -> 1877.444508 | F16: =generacion_bruta!F31 -> 0 | G16: =generacion_bruta!G31 -> 605.144702 | H16: =generacion_bruta!H31 -> 3.461056 | I16: =generacion_bruta!I31 -> 256.267406 | J16: =generacion_bruta!J31 -> 1006.208552 | K16: =generacion_bruta!K31 -> 10677.65992 | L16: =generacion_bruta!L31 -> 5231.032116 | M16: =generacion_bruta!M31 -> 0 | N16: =generacion_bruta!N31 -> 3081.055859 | O16: =generacion_bruta!O31 -> 9853.78446 | P16: =generacion_bruta!P31 -> 168.339304 | Q16: =generacion_bruta!Q31 -> 202.371409 | R16: =generacion_bruta!R31 -> 0 | S16: =generacion_bruta!S31 -> 131.422704 | T16: =generacion_bruta!T31 -> 656.487852 | U16: =generacion_bruta!U31 -> 426.591221 | V16: =generacion_bruta!V31 -> 39181.98522
B17: Turbinación bombeo | C17: =generacion_bruta!C32 -> 340.4861921 | D17: =generacion_bruta!D32 -> 327.190469 | E17: =generacion_bruta!E32 -> 53.9156891 | F17: =generacion_bruta!F32 -> 0 | G17: =generacion_bruta!G32 -> 1170.074173 | H17: =generacion_bruta!H32 -> 0 | I17: =generacion_bruta!I32 -> 606.802956 | J17: =generacion_bruta!J32 -> 61.01868 | K17: =generacion_bruta!K32 -> 497.2400575 | L17: =generacion_bruta!L32 -> 269.0966327 | M17: =generacion_bruta!M32 -> 0 | N17: =generacion_bruta!N32 -> 43.36111472 | O17: =generacion_bruta!O32 -> 46.8100626 | P17: =generacion_bruta!P32 -> 0 | Q17: =generacion_bruta!Q32 -> 0 | R17: =generacion_bruta!R32 -> 0 | S17: =generacion_bruta!S32 -> 0 | T17: =generacion_bruta!T32 -> 0 | U17: =generacion_bruta!U32 -> 0 | V17: =generacion_bruta!V32 -> 3415.996027
B18: Nuclear | C18: =generacion_bruta!C33 -> 0 | D18: =generacion_bruta!D33 -> 0 | E18: =generacion_bruta!E33 -> 0 | F18: =generacion_bruta!F33 -> 0 | G18: =generacion_bruta!G33 -> 9108.22974 | H18: =generacion_bruta!H33 -> 0 | I18: =generacion_bruta!I33 -> 0 | J18: =generacion_bruta!J33 -> 7770.076699 | K18: =generacion_bruta!K33 -> -18.700043 | L18: =generacion_bruta!L33 -> 22742.17905 | M18: =generacion_bruta!M33 -> 0 | N18: =generacion_bruta!N33 -> 15179.49589 | O18: =generacion_bruta!O33 -> 0 | P18: =generacion_bruta!P33 -> 0 | Q18: =generacion_bruta!Q33 -> 0 | R18: =generacion_bruta!R33 -> 0 | S18: =generacion_bruta!S33 -> 0 | T18: =generacion_bruta!T33 -> 0 | U18: =generacion_bruta!U33 -> 0 | V18: =generacion_bruta!V33 -> 54781.28133
B19: Carbón | C19: =generacion_bruta!C34 -> 9495.383069 | D19: =generacion_bruta!D34 -> 4601.910773 | E19: =generacion_bruta!E34 -> 8544.933344 | F19: =generacion_bruta!F34 -> 2187.777726 | G19: =generacion_bruta!G34 -> 0 | H19: =generacion_bruta!H34 -> 0 | I19: =generacion_bruta!I34 -> 0 | J19: =generacion_bruta!J34 -> 873.04718 | K19: =generacion_bruta!K34 -> 7980.045263 | L19: =generacion_bruta!L34 -> 0 | M19: =generacion_bruta!M34 -> 0 | N19: =generacion_bruta!N34 -> 0 | O19: =generacion_bruta!O34 -> 9562.959142 | P19: =generacion_bruta!P34 -> 0 | Q19: =generacion_bruta!Q34 -> 0 | R19: =generacion_bruta!R34 -> 0 | S19: =generacion_bruta!S34 -> 0 | T19: =generacion_bruta!T34 -> 0 | U19: =generacion_bruta!U34 -> 0 | V19: =generacion_bruta!V34 -> 43246.0565
B20: Fuel / gas | C20: =generacion_bruta!C35 -> 0 | D20: =generacion_bruta!D35 -> 0 | E20: =generacion_bruta!E35 -> 0 | F20: =generacion_bruta!F35 -> 1259.865536 | G20: =generacion_bruta!G35 -> 0.015772 | H20: =generacion_bruta!H35 -> 4569.714158 | I20: =generacion_bruta!I35 -> 0 | J20: =generacion_bruta!J35 -> 0 | K20: =generacion_bruta!K35 -> 0 | L20: =generacion_bruta!L35 -> -0.835503 | M20: =generacion_bruta!M35 -> 212.245157 | N20: =generacion_bruta!N35 -> 0 | O20: =generacion_bruta!O35 -> 0 | P20: =generacion_bruta!P35 -> 0 | Q20: =generacion_bruta!Q35 -> 0 | R20: =generacion_bruta!R35 -> 200.816768 | S20: =generacion_bruta!S35 -> 0 | T20: =generacion_bruta!T35 -> 0 | U20: =generacion_bruta!U35 -> 0 | V20: =generacion_bruta!V35 -> 6241.821888
B21: Ciclo combinado | C21: =generacion_bruta!C36 -> 4355.821885 | D21: =generacion_bruta!D36 -> 198.612013 | E21: =generacion_bruta!E36 -> 288.721822 | F21: =generacion_bruta!F36 -> 419.63312 | G21: =generacion_bruta!G36 -> 3997.406 | H21: =generacion_bruta!H36 -> 3240.591696 | I21: =generacion_bruta!I36 -> 0 | J21: =generacion_bruta!J36 -> 1035.669191 | K21: =generacion_bruta!K36 -> 0 | L21: =generacion_bruta!L36 -> 4988.739342 | M21: =generacion_bruta!M36 -> 0 | N21: =generacion_bruta!N36 -> 0 | O21: =generacion_bruta!O36 -> 503.034344 | P21: =generacion_bruta!P36 -> 148.391791 | Q21: =generacion_bruta!Q36 -> 0 | R21: =generacion_bruta!R36 -> 0 | S21: =generacion_bruta!S36 -> 2302.778108 | T21: =generacion_bruta!T36 -> 360.406157 | U21: =generacion_bruta!U36 -> 2940.927972 | V21: =generacion_bruta!V36 -> 24780.73344
B22: Hidroeólica | C22: =generacion_bruta!C37 -> 0 | D22: =generacion_bruta!D37 -> 0 | E22: =generacion_bruta!E37 -> 0 | F22: =generacion_bruta!F37 -> 0 | G22: =generacion_bruta!G37 -> 0 | H22: =generacion_bruta!H37 -> 0.728837 | I22: =generacion_bruta!I37 -> 0 | J22: =generacion_bruta!J37 -> 0 | K22: =generacion_bruta!K37 -> 0 | L22: =generacion_bruta!L37 -> 0 | M22: =generacion_bruta!M37 -> 0 | N22: =generacion_bruta!N37 -> 0 | O22: =generacion_bruta!O37 -> 0 | P22: =generacion_bruta!P37 -> 0 | Q22: =generacion_bruta!Q37 -> 0 | R22: =generacion_bruta!R37 -> 0 | S22: =generacion_bruta!S37 -> 0 | T22: =generacion_bruta!T37 -> 0 | U22: =generacion_bruta!U37 -> 0 | V22: =generacion_bruta!V37 -> 0.728837
B23: Eólica | C23: =generacion_bruta!C38 -> 6450.405666 | D23: =generacion_bruta!D38 -> 4447.307945 | E23: =generacion_bruta!E38 -> 1140.608134 | F23: =generacion_bruta!F38 -> 5.839578 | G23: =generacion_bruta!G38 -> 2521.666185 | H23: =generacion_bruta!H38 -> 389.528806 | I23: =generacion_bruta!I38 -> 76.30895 | J23: =generacion_bruta!J38 -> 8390.570682 | K23: =generacion_bruta!K38 -> 12330.56182 | L23: =generacion_bruta!L38 -> 2867.133966 | M23: =generacion_bruta!M38 -> 0 | N23: =generacion_bruta!N38 -> 0 | O23: =generacion_bruta!O38 -> 8316.470118 | P23: =generacion_bruta!P38 -> 947.718085 | Q23: =generacion_bruta!Q38 -> 0 | R23: =generacion_bruta!R38 -> 0 | S23: =generacion_bruta!S38 -> 512.017404 | T23: =generacion_bruta!T38 -> 2292.013138 | U23: =generacion_bruta!U38 -> 343.88037 | V23: =generacion_bruta!V38 -> 51032.03085
B24: Solar fotovoltaica | C24: =generacion_bruta!C39 -> 1574.610331 | D24: =generacion_bruta!D39 -> 297.537986 | E24: =generacion_bruta!E39 -> 0.666843 | F24: =generacion_bruta!F39 -> 122.765689 | G24: =generacion_bruta!G39 -> 544.652081 | H24: =generacion_bruta!H39 -> 282.285689 | I24: =generacion_bruta!I39 -> 2.218715 | J24: =generacion_bruta!J39 -> 1689.43118 | K24: =generacion_bruta!K39 -> 843.251057 | L24: =generacion_bruta!L39 -> 413.376301 | M24: =generacion_bruta!M39 -> 0 | N24: =generacion_bruta!N39 -> 1071.204459 | O24: =generacion_bruta!O39 -> 19.502751 | P24: =generacion_bruta!P39 -> 128.873369 | Q24: =generacion_bruta!Q39 -> 93.257066 | R24: =generacion_bruta!R39 -> 0.083833 | S24: =generacion_bruta!S39 -> 797.074869 | T24: =generacion_bruta!T39 -> 297.778193 | U24: =generacion_bruta!U39 -> 29.355719 | V24: =generacion_bruta!V39 -> 8207.926131
B25: Solar térmica | C25: =generacion_bruta!C40 -> 2124.235754 | D25: =generacion_bruta!D40 -> 0 | E25: =generacion_bruta!E40 -> 0 | F25: =generacion_bruta!F40 -> 0 | G25: =generacion_bruta!G40 -> 93.85092 | H25: =generacion_bruta!H40 -> 0 | I25: =generacion_bruta!I40 -> 0 | J25: =generacion_bruta!J40 -> 734.252687 | K25: =generacion_bruta!K40 -> 0 | L25: =generacion_bruta!L40 -> 65.812195 | M25: =generacion_bruta!M40 -> 0 | N25: =generacion_bruta!N40 -> 1899.40041 | O25: =generacion_bruta!O40 -> 0 | P25: =generacion_bruta!P40 -> 0 | Q25: =generacion_bruta!Q40 -> 0 | R25: =generacion_bruta!R40 -> 0 | S25: =generacion_bruta!S40 -> 41.36296 | T25: =generacion_bruta!T40 -> 0 | U25: =generacion_bruta!U40 -> 0 | V25: =generacion_bruta!V40 -> 4958.914926
B26: Otras renovables | C26: =generacion_bruta!C41 -> 1484.732993 | D26: =generacion_bruta!D41 -> 44.075335 | E26: =generacion_bruta!E41 -> 515.564688 | F26: =generacion_bruta!F41 -> 1.945659 | G26: =generacion_bruta!G41 -> 38.98415 | H26: =generacion_bruta!H41 -> 8.806584 | I26: =generacion_bruta!I41 -> 85.795958 | J26: =generacion_bruta!J41 -> 227.923774 | K26: =generacion_bruta!K41 -> 249.127088 | L26: =generacion_bruta!L41 -> 170.078909 | M26: =generacion_bruta!M41 -> 0 | N26: =generacion_bruta!N41 -> 194.085691 | O26: =generacion_bruta!O41 -> 219.273733 | P26: =generacion_bruta!P41 -> 7.290583 | Q26: =generacion_bruta!Q41 -> 204.880629 | R26: =generacion_bruta!R41 -> 0 | S26: =generacion_bruta!S41 -> 33.307627 | T26: =generacion_bruta!T41 -> 306.316933 | U26: =generacion_bruta!U41 -> 24.125383 | V26: =generacion_bruta!V41 -> 3816.315717
B27: Cogeneración | C27: =generacion_bruta!C42 -> 5179.178695 | D27: =generacion_bruta!D42 -> 2382.822831 | E27: =generacion_bruta!E42 -> 337.791081 | F27: =generacion_bruta!F42 -> 25.222584 | G27: =generacion_bruta!G42 -> 1397.853211 | H27: =generacion_bruta!H42 -> 0 | I27: =generacion_bruta!I42 -> 831.901583 | J27: =generacion_bruta!J42 -> 718.730339 | K27: =generacion_bruta!K42 -> 1682.016098 | L27: =generacion_bruta!L42 -> 4591.081684 | M27: =generacion_bruta!M42 -> 0 | N27: =generacion_bruta!N42 -> 34.766437 | O27: =generacion_bruta!O42 -> 2151.936167 | P27: =generacion_bruta!P42 -> 56.949525 | Q27: =generacion_bruta!Q42 -> 736.528251 | R27: =generacion_bruta!R42 -> 0 | S27: =generacion_bruta!S42 -> 1512.313104 | T27: =generacion_bruta!T42 -> 710.155483 | U27: =generacion_bruta!U42 -> 1803.996809 | V27: =generacion_bruta!V42 -> 24153.24388
B28: Residuos no renovables
B29: Residuos renovables
A30: 2015 | B30: Hidráulica | C30: =generacion_bruta!C58 -> 695.1913112 | D30: =generacion_bruta!D58 -> 3179.519348 | E30: =generacion_bruta!E58 -> 1612.155268 | F30: =generacion_bruta!F58 -> 0 | G30: =generacion_bruta!G58 -> 605.015281 | H30: =generacion_bruta!H58 -> 3.568393 | I30: =generacion_bruta!I58 -> 283.778622 | J30: =generacion_bruta!J58 -> 700.914375 | K30: =generacion_bruta!K58 -> 7746.905099 | L30: =generacion_bruta!L58 -> 4392.8551 | M30: =generacion_bruta!M58 -> 0 | N30: =generacion_bruta!N58 -> 1581.01433 | O30: =generacion_bruta!O58 -> 6249.440489 | P30: =generacion_bruta!P58 -> 145.037935 | Q30: =generacion_bruta!Q58 -> 131.5322 | R30: =generacion_bruta!R58 -> 0 | S30: =generacion_bruta!S58 -> 112.23754 | T30: =generacion_bruta!T58 -> 519.85268 | U30: =generacion_bruta!U58 -> 423.561992 | V30: =generacion_bruta!V58 -> 28382.57996
B31: Turbinación bombeo | C31: =generacion_bruta!C59 -> 263.7823678 | D31: =generacion_bruta!D59 -> 281.952085 | E31: =generacion_bruta!E59 -> 26.8631636 | F31: =generacion_bruta!F59 -> 0 | G31: =generacion_bruta!G59 -> 1018.291565 | H31: =generacion_bruta!H59 -> 0 | I31: =generacion_bruta!I59 -> 477.330023 | J31: =generacion_bruta!J59 -> 31.737669 | K31: =generacion_bruta!K59 -> 413.8450527 | L31: =generacion_bruta!L59 -> 321.1057216 | M31: =generacion_bruta!M59 -> 0 | N31: =generacion_bruta!N59 -> 27.01948198 | O31: =generacion_bruta!O59 -> 33.4386584 | P31: =generacion_bruta!P59 -> 0 | Q31: =generacion_bruta!Q59 -> 0 | R31: =generacion_bruta!R59 -> 0 | S31: =generacion_bruta!S59 -> 0 | T31: =generacion_bruta!T59 -> 0 | U31: =generacion_bruta!U59 -> 0 | V31: =generacion_bruta!V59 -> 2895.365788
B32: Nuclear | C32: =generacion_bruta!C60 -> 0 | D32: =generacion_bruta!D60 -> 0 | E32: =generacion_bruta!E60 -> 0 | F32: =generacion_bruta!F60 -> 0 | G32: =generacion_bruta!G60 -> 7415.431102 | H32: =generacion_bruta!H60 -> 0 | I32: =generacion_bruta!I60 -> 0 | J32: =generacion_bruta!J60 -> 7913.818669 | K32: =generacion_bruta!K60 -> -18.785206 | L32: =generacion_bruta!L60 -> 23291.82894 | M32: =generacion_bruta!M60 -> 0 | N32: =generacion_bruta!N60 -> 16059.5098 | O32: =generacion_bruta!O60 -> 0 | P32: =generacion_bruta!P60 -> 0 | Q32: =generacion_bruta!Q60 -> 0 | R32: =generacion_bruta!R60 -> 0 | S32: =generacion_bruta!S60 -> 0 | T32: =generacion_bruta!T60 -> 0 | U32: =generacion_bruta!U60 -> 0 | V32: =generacion_bruta!V60 -> 54661.80331
B33: Carbón | C33: =generacion_bruta!C61 -> 12688.68989 | D33: =generacion_bruta!D61 -> 4392.922854 | E33: =generacion_bruta!E61 -> 12468.45371 | F33: =generacion_bruta!F61 -> 1861.683087 | G33: =generacion_bruta!G61 -> 0 | H33: =generacion_bruta!H61 -> 0 | I33: =generacion_bruta!I61 -> 0 | J33: =generacion_bruta!J61 -> 894.92856 | K33: =generacion_bruta!K61 -> 9268.889547 | L33: =generacion_bruta!L61 -> 0 | M33: =generacion_bruta!M61 -> 0 | N33: =generacion_bruta!N61 -> 0 | O33: =generacion_bruta!O61 -> 11040.90995 | P33: =generacion_bruta!P61 -> 0 | Q33: =generacion_bruta!Q61 -> 0 | R33: =generacion_bruta!R61 -> 0 | S33: =generacion_bruta!S61 -> 0 | T33: =generacion_bruta!T61 -> 0 | U33: =generacion_bruta!U61 -> 0 | V33: =generacion_bruta!V61 -> 52616.4776
B34: Fuel / gas | C34: =generacion_bruta!C62 -> 0 | D34: =generacion_bruta!D62 -> 0 | E34: =generacion_bruta!E62 -> 0 | F34: =generacion_bruta!F62 -> 1322.15176 | G34: =generacion_bruta!G62 -> 0.016618 | H34: =generacion_bruta!H62 -> 4753.09336 | I34: =generacion_bruta!I62 -> 0 | J34: =generacion_bruta!J62 -> 0 | K34: =generacion_bruta!K62 -> 0 | L34: =generacion_bruta!L62 -> 0 | M34: =generacion_bruta!M62 -> 204.02309 | N34: =generacion_bruta!N62 -> 0 | O34: =generacion_bruta!O62 -> 0 | P34: =generacion_bruta!P62 -> 0 | Q34: =generacion_bruta!Q62 -> 0 | R34: =generacion_bruta!R62 -> 204.5286 | S34: =generacion_bruta!S62 -> 0 | T34: =generacion_bruta!T62 -> 0 | U34: =generacion_bruta!U62 -> 0 | V34: =generacion_bruta!V62 -> 6483.813428
B35: Ciclo combinado | C35: =generacion_bruta!C63 -> 5573.449916 | D35: =generacion_bruta!D63 -> 166.155911 | E35: =generacion_bruta!E63 -> 358.279196 | F35: =generacion_bruta!F63 -> 804.686986 | G35: =generacion_bruta!G63 -> 4842.225671 | H35: =generacion_bruta!H63 -> 3188.056789 | I35: =generacion_bruta!I63 -> 0 | J35: =generacion_bruta!J63 -> 1280.68657 | K35: =generacion_bruta!K63 -> 0 | L35: =generacion_bruta!L63 -> 6776.885398 | M35: =generacion_bruta!M63 -> 0 | N35: =generacion_bruta!N63 -> 0 | O35: =generacion_bruta!O63 -> 319.281472 | P35: =generacion_bruta!P63 -> 575.945451 | Q35: =generacion_bruta!Q63 -> 0 | R35: =generacion_bruta!R63 -> 0 | S35: =generacion_bruta!S63 -> 2008.743804 | T35: =generacion_bruta!T63 -> 717.481873 | U35: =generacion_bruta!U63 -> 2415.410298 | V35: =generacion_bruta!V63 -> 29027.28934
B36: Hidroeólica | C36: =generacion_bruta!C64 -> 0 | D36: =generacion_bruta!D64 -> 0 | E36: =generacion_bruta!E64 -> 0 | F36: =generacion_bruta!F64 -> 0 | G36: =generacion_bruta!G64 -> 0 | H36: =generacion_bruta!H64 -> 8.207424 | I36: =generacion_bruta!I64 -> 0 | J36: =generacion_bruta!J64 -> 0 | K36: =generacion_bruta!K64 -> 0 | L36: =generacion_bruta!L64 -> 0 | M36: =generacion_bruta!M64 -> 0 | N36: =generacion_bruta!N64 -> 0 | O36: =generacion_bruta!O64 -> 0 | P36: =generacion_bruta!P64 -> 0 | Q36: =generacion_bruta!Q64 -> 0 | R36: =generacion_bruta!R64 -> 0 | S36: =generacion_bruta!S64 -> 0 | T36: =generacion_bruta!T64 -> 0 | U36: =generacion_bruta!U64 -> 0 | V36: =generacion_bruta!V64 -> 8.207424
B37: Eólica | C37: =generacion_bruta!C65 -> 6363.837098 | D37: =generacion_bruta!D65 -> 4363.433561 | E37: =generacion_bruta!E65 -> 1036.999255 | F37: =generacion_bruta!F65 -> 5.318228 | G37: =generacion_bruta!G65 -> 2195.993566 | H37: =generacion_bruta!H65 -> 396.687143 | I37: =generacion_bruta!I65 -> 70.740945 | J37: =generacion_bruta!J65 -> 7286.716406 | K37: =generacion_bruta!K65 -> 11138.02588 | L37: =generacion_bruta!L65 -> 2608.782257 | M37: =generacion_bruta!M65 -> 0 | N37: =generacion_bruta!N65 -> 0 | O37: =generacion_bruta!O65 -> 8444.754153 | P37: =generacion_bruta!P65 -> 934.741484 | Q37: =generacion_bruta!Q65 -> 0 | R37: =generacion_bruta!R65 -> 0 | S37: =generacion_bruta!S65 -> 426.210419 | T37: =generacion_bruta!T65 -> 2503.691572 | U37: =generacion_bruta!U65 -> 341.95555 | V37: =generacion_bruta!V65 -> 48117.88752
B38: Solar fotovoltaica | C38: =generacion_bruta!C66 -> 1570.622775 | D38: =generacion_bruta!D66 -> 304.311882 | E38: =generacion_bruta!E66 -> 0.651736 | F38: =generacion_bruta!F66 -> 122.619803 | G38: =generacion_bruta!G66 -> 523.083168 | H38: =generacion_bruta!H66 -> 275.546605 | I38: =generacion_bruta!I66 -> 2.05531 | J38: =generacion_bruta!J66 -> 1722.910268 | K38: =generacion_bruta!K66 -> 847.266542 | L38: =generacion_bruta!L66 -> 421.096957 | M38: =generacion_bruta!M66 -> 0 | N38: =generacion_bruta!N66 -> 1111.128994 | O38: =generacion_bruta!O66 -> 20.758184 | P38: =generacion_bruta!P66 -> 132.187662 | Q38: =generacion_bruta!Q66 -> 93.788112 | R38: =generacion_bruta!R66 -> 0.07996 | S38: =generacion_bruta!S66 -> 762.396862 | T38: =generacion_bruta!T66 -> 304.335307 | U38: =generacion_bruta!U66 -> 28.720778 | V38: =generacion_bruta!V66 -> 8243.560905
B39: Solar térmica | C39: =generacion_bruta!C67 -> 2110.236508 | D39: =generacion_bruta!D67 -> 0 | E39: =generacion_bruta!E67 -> 0 | F39: =generacion_bruta!F67 -> 0 | G39: =generacion_bruta!G67 -> 89.976464 | H39: =generacion_bruta!H67 -> 0 | I39: =generacion_bruta!I67 -> 0 | J39: =generacion_bruta!J67 -> 735.486298 | K39: =generacion_bruta!K67 -> 0 | L39: =generacion_bruta!L67 -> 75.591874 | M39: =generacion_bruta!M67 -> 0 | N39: =generacion_bruta!N67 -> 2037.844843 | O39: =generacion_bruta!O67 -> 0 | P39: =generacion_bruta!P67 -> 0 | Q39: =generacion_bruta!Q67 -> 0 | R39: =generacion_bruta!R67 -> 0 | S39: =generacion_bruta!S67 -> 36.099527 | T39: =generacion_bruta!T67 -> 0 | U39: =generacion_bruta!U67 -> 0 | V39: =generacion_bruta!V67 -> 5085.235514
B40: Otras renovables | C40: =generacion_bruta!C68 -> 1329.586502 | D40: =generacion_bruta!D68 -> 58.113015 | E40: =generacion_bruta!E68 -> 238.102697 | F40: =generacion_bruta!F68 -> 1.971549 | G40: =generacion_bruta!G68 -> 40.643071 | H40: =generacion_bruta!H68 -> 8.053625 | I40: =generacion_bruta!I68 -> 85.075816 | J40: =generacion_bruta!J68 -> 252.17613 | K40: =generacion_bruta!K68 -> 251.814604 | L40: =generacion_bruta!L68 -> 175.036771 | M40: =generacion_bruta!M68 -> 0 | N40: =generacion_bruta!N68 -> 228.699561 | O40: =generacion_bruta!O68 -> 235.937514 | P40: =generacion_bruta!P68 -> 6.55353 | Q40: =generacion_bruta!Q68 -> 156.870739 | R40: =generacion_bruta!R68 -> 0 | S40: =generacion_bruta!S68 -> 39.185057 | T40: =generacion_bruta!T68 -> 310.219029 | U40: =generacion_bruta!U68 -> 14.552711 | V40: =generacion_bruta!V68 -> 3432.591921
B41: Cogeneración | C41: =generacion_bruta!C69 -> 5143.328505 | D41: =generacion_bruta!D69 -> 2442.232774 | E41: =generacion_bruta!E69 -> 347.805937 | F41: =generacion_bruta!F69 -> 31.549727 | G41: =generacion_bruta!G69 -> 1531.552624 | H41: =generacion_bruta!H69 -> 0 | I41: =generacion_bruta!I69 -> 716.346056 | J41: =generacion_bruta!J69 -> 767.378364 | K41: =generacion_bruta!K69 -> 1800.117346 | L41: =generacion_bruta!L69 -> 4678.238694 | M41: =generacion_bruta!M69 -> 0 | N41: =generacion_bruta!N69 -> 40.250959 | O41: =generacion_bruta!O69 -> 2629.349461 | P41: =generacion_bruta!P69 -> 76.115417 | Q41: =generacion_bruta!Q69 -> 694.046949 | R41: =generacion_bruta!R69 -> 0 | S41: =generacion_bruta!S69 -> 1458.475687 | T41: =generacion_bruta!T69 -> 758.20467 | U41: =generacion_bruta!U69 -> 2085.884596 | V41: =generacion_bruta!V69 -> 25200.87777
B42: Residuos no renovables
B43: Residuos renovables
A44: 2016 | B44: Hidráulica | C44: =generacion_bruta!C85 -> 688.9614169 | D44: =generacion_bruta!D85 -> 3112.00622 | E44: =generacion_bruta!E85 -> 1959.932986 | F44: =generacion_bruta!F85 -> 0 | G44: =generacion_bruta!G85 -> 589.237496 | H44: =generacion_bruta!H85 -> 3.453961 | I44: =generacion_bruta!I85 -> 254.004685 | J44: =generacion_bruta!J85 -> 731.944331 | K44: =generacion_bruta!K85 -> 11510.86864 | L44: =generacion_bruta!L85 -> 3938.974561 | M44: =generacion_bruta!M85 -> 0 | N44: =generacion_bruta!N85 -> 2476.422267 | O44: =generacion_bruta!O85 -> 9567.971255 | P44: =generacion_bruta!P85 -> 153.743187 | Q44: =generacion_bruta!Q85 -> 154.125421 | R44: =generacion_bruta!R85 -> 0 | S44: =generacion_bruta!S85 -> 104.181638 | T44: =generacion_bruta!T85 -> 486.575821 | U44: =generacion_bruta!U85 -> 382.48444 | V44: =generacion_bruta!V85 -> 36114.88833
B45: Turbinación bombeo | C45: =generacion_bruta!C86 -> 258.1047681 | D45: =generacion_bruta!D86 -> 317.108091 | E45: =generacion_bruta!E86 -> 25.5490438 | F45: =generacion_bruta!F86 -> 0 | G45: =generacion_bruta!G86 -> 1403.096403 | H45: =generacion_bruta!H86 -> 0 | I45: =generacion_bruta!I86 -> 428.064668 | J45: =generacion_bruta!J86 -> 45.31706 | K45: =generacion_bruta!K86 -> 356.1963241 | L45: =generacion_bruta!L86 -> 223.8100497 | M45: =generacion_bruta!M86 -> 0 | N45: =generacion_bruta!N86 -> 49.88669062 | O45: =generacion_bruta!O86 -> 27.195812 | P45: =generacion_bruta!P86 -> 0 | Q45: =generacion_bruta!Q86 -> 0 | R45: =generacion_bruta!R86 -> 0 | S45: =generacion_bruta!S86 -> 0 | T45: =generacion_bruta!T86 -> 0 | U45: =generacion_bruta!U86 -> 0 | V45: =generacion_bruta!V86 -> 3134.32891
B46: Nuclear | C46: =generacion_bruta!C87 -> 0 | D46: =generacion_bruta!D87 -> 0 | E46: =generacion_bruta!E87 -> 0 | F46: =generacion_bruta!F87 -> 0 | G46: =generacion_bruta!G87 -> 9178.2569 | H46: =generacion_bruta!H87 -> 0 | I46: =generacion_bruta!I87 -> 0 | J46: =generacion_bruta!J87 -> 7992.498721 | K46: =generacion_bruta!K87 -> -18.877775 | L46: =generacion_bruta!L87 -> 23715.51364 | M46: =generacion_bruta!M87 -> 0 | N46: =generacion_bruta!N87 -> 15154.29057 | O46: =generacion_bruta!O87 -> 0 | P46: =generacion_bruta!P87 -> 0 | Q46: =generacion_bruta!Q87 -> 0 | R46: =generacion_bruta!R87 -> 0 | S46: =generacion_bruta!S87 -> 0 | T46: =generacion_bruta!T87 -> 0 | U46: =generacion_bruta!U87 -> 0 | V46: =generacion_bruta!V87 -> 56021.68206
B47: Carbón | C47: =generacion_bruta!C88 -> 8282.932813 | D47: =generacion_bruta!D88 -> 3239.79042 | E47: =generacion_bruta!E88 -> 7553.129593 | F47: =generacion_bruta!F88 -> 2302.867971 | G47: =generacion_bruta!G88 -> 0 | H47: =generacion_bruta!H88 -> 0 | I47: =generacion_bruta!I88 -> 0 | J47: =generacion_bruta!J88 -> -2.005081 | K47: =generacion_bruta!K88 -> 6493.993332 | L47: =generacion_bruta!L88 -> 0 | M47: =generacion_bruta!M88 -> 0 | N47: =generacion_bruta!N88 -> 0 | O47: =generacion_bruta!O88 -> 9443.068703 | P47: =generacion_bruta!P88 -> 0 | Q47: =generacion_bruta!Q88 -> 0 | R47: =generacion_bruta!R88 -> 0 | S47: =generacion_bruta!S88 -> 0 | T47: =generacion_bruta!T88 -> 0 | U47: =generacion_bruta!U88 -> 0 | V47: =generacion_bruta!V88 -> 37313.77775
B48: Fuel / gas | C48: =generacion_bruta!C89 -> 0 | D48: =generacion_bruta!D89 -> 0 | E48: =generacion_bruta!E89 -> 0 | F48: =generacion_bruta!F89 -> 1311.111904 | G48: =generacion_bruta!G89 -> 0.000235 | H48: =generacion_bruta!H89 -> 5034.34517 | I48: =generacion_bruta!I89 -> 0 | J48: =generacion_bruta!J89 -> 0 | K48: =generacion_bruta!K89 -> 0 | L48: =generacion_bruta!L89 -> 0 | M48: =generacion_bruta!M89 -> 210.680936 | N48: =generacion_bruta!N89 -> 0 | O48: =generacion_bruta!O89 -> 0 | P48: =generacion_bruta!P89 -> 0 | Q48: =generacion_bruta!Q89 -> 0 | R48: =generacion_bruta!R89 -> 198.505785 | S48: =generacion_bruta!S89 -> 0 | T48: =generacion_bruta!T89 -> 0 | U48: =generacion_bruta!U89 -> 0 | V48: =generacion_bruta!V89 -> 6754.64403
B49: Ciclo combinado | C49: =generacion_bruta!C90 -> 6137.774454 | D49: =generacion_bruta!D90 -> 170.928206 | E49: =generacion_bruta!E90 -> 352.873535 | F49: =generacion_bruta!F90 -> 535.082095 | G49: =generacion_bruta!G90 -> 4674.465902 | H49: =generacion_bruta!H90 -> 3008.333741 | I49: =generacion_bruta!I90 -> 0 | J49: =generacion_bruta!J90 -> 1258.162343 | K49: =generacion_bruta!K90 -> 0 | L49: =generacion_bruta!L90 -> 6936.893769 | M49: =generacion_bruta!M90 -> 0 | N49: =generacion_bruta!N90 -> 0 | O49: =generacion_bruta!O90 -> 653.86488 | P49: =generacion_bruta!P90 -> 1002.173895 | Q49: =generacion_bruta!Q90 -> 0 | R49: =generacion_bruta!R90 -> 0 | S49: =generacion_bruta!S90 -> 1074.530733 | T49: =generacion_bruta!T90 -> 1280.526645 | U49: =generacion_bruta!U90 -> 1920.871896 | V49: =generacion_bruta!V90 -> 29006.48209
B50: Hidroeólica | C50: =generacion_bruta!C91 -> 0 | D50: =generacion_bruta!D91 -> 0 | E50: =generacion_bruta!E91 -> 0 | F50: =generacion_bruta!F91 -> 0 | G50: =generacion_bruta!G91 -> 0 | H50: =generacion_bruta!H91 -> 17.891936 | I50: =generacion_bruta!I91 -> 0 | J50: =generacion_bruta!J91 -> 0 | K50: =generacion_bruta!K91 -> 0 | L50: =generacion_bruta!L91 -> 0 | M50: =generacion_bruta!M91 -> 0 | N50: =generacion_bruta!N91 -> 0 | O50: =generacion_bruta!O91 -> 0 | P50: =generacion_bruta!P91 -> 0 | Q50: =generacion_bruta!Q91 -> 0 | R50: =generacion_bruta!R91 -> 0 | S50: =generacion_bruta!S91 -> 0 | T50: =generacion_bruta!T91 -> 0 | U50: =generacion_bruta!U91 -> 0 | V50: =generacion_bruta!V91 -> 17.891936
B51: Eólica | C51: =generacion_bruta!C92 -> 7060.264593 | D51: =generacion_bruta!D92 -> 4352.07361 | E51: =generacion_bruta!E92 -> 897.969269 | F51: =generacion_bruta!F92 -> 5.416058 | G51: =generacion_bruta!G92 -> 2224.688286 | H51: =generacion_bruta!H92 -> 393.080583 | I51: =generacion_bruta!I92 -> 70.502809 | J51: =generacion_bruta!J92 -> 7680.537222 | K51: =generacion_bruta!K92 -> 10939.94373 | L51: =generacion_bruta!L92 -> 2683.93762 | M51: =generacion_bruta!M92 -> 0 | N51: =generacion_bruta!N92 -> 0 | O51: =generacion_bruta!O92 -> 7218.889259 | P51: =generacion_bruta!P92 -> 933.709781 | Q51: =generacion_bruta!Q92 -> 0 | R51: =generacion_bruta!R92 -> 0 | S51: =generacion_bruta!S92 -> 457.421152 | T51: =generacion_bruta!T92 -> 2445.808267 | U51: =generacion_bruta!U92 -> 332.418067 | V51: =generacion_bruta!V92 -> 47696.66031
B52: Solar fotovoltaica | C52: =generacion_bruta!C93 -> 1525.641019 | D52: =generacion_bruta!D93 -> 295.281298 | E52: =generacion_bruta!E93 -> 0.58737 | F52: =generacion_bruta!F93 -> 120.50753 | G52: =generacion_bruta!G93 -> 514.058208 | H52: =generacion_bruta!H93 -> 277.661343 | I52: =generacion_bruta!I93 -> 2.095262 | J52: =generacion_bruta!J93 -> 1624.757124 | K52: =generacion_bruta!K93 -> 829.742434 | L52: =generacion_bruta!L93 -> 413.598756 | M52: =generacion_bruta!M93 -> 0 | N52: =generacion_bruta!N93 -> 1061.735134 | O52: =generacion_bruta!O93 -> 20.147258 | P52: =generacion_bruta!P93 -> 131.425654 | Q52: =generacion_bruta!Q93 -> 88.527027 | R52: =generacion_bruta!R93 -> 0.0801 | S52: =generacion_bruta!S93 -> 747.019136 | T52: =generacion_bruta!T93 -> 294.940998 | U52: =generacion_bruta!U93 -> 29.661534 | V52: =generacion_bruta!V93 -> 7977.467185
B53: Solar térmica | C53: =generacion_bruta!C94 -> 2194.631009 | D53: =generacion_bruta!D94 -> 0 | E53: =generacion_bruta!E94 -> 0 | F53: =generacion_bruta!F94 -> 0 | G53: =generacion_bruta!G94 -> 70.150953 | H53: =generacion_bruta!H94 -> 0 | I53: =generacion_bruta!I94 -> 0 | J53: =generacion_bruta!J94 -> 721.879998 | K53: =generacion_bruta!K94 -> 0 | L53: =generacion_bruta!L94 -> 70.319427 | M53: =generacion_bruta!M94 -> 0 | N53: =generacion_bruta!N94 -> 1973.457652 | O53: =generacion_bruta!O94 -> 0 | P53: =generacion_bruta!P94 -> 0 | Q53: =generacion_bruta!Q94 -> 0 | R53: =generacion_bruta!R94 -> 0 | S53: =generacion_bruta!S94 -> 40.762663 | T53: =generacion_bruta!T94 -> 0 | U53: =generacion_bruta!U94 -> 0 | V53: =generacion_bruta!V94 -> 5071.201702
B54: Otras renovables | C54: =generacion_bruta!C95 -> 1368.231827 | D54: =generacion_bruta!D95 -> 53.330302 | E54: =generacion_bruta!E95 -> 245.265981 | F54: =generacion_bruta!F95 -> 1.309715 | G54: =generacion_bruta!G95 -> 38.907042 | H54: =generacion_bruta!H95 -> 9.335775 | I54: =generacion_bruta!I95 -> 76.573037 | J54: =generacion_bruta!J95 -> 238.410359 | K54: =generacion_bruta!K95 -> 247.161356 | L54: =generacion_bruta!L95 -> 174.026238 | M54: =generacion_bruta!M95 -> 0 | N54: =generacion_bruta!N95 -> 235.610537 | O54: =generacion_bruta!O95 -> 232.034116 | P54: =generacion_bruta!P95 -> 7.593838 | Q54: =generacion_bruta!Q95 -> 137.921649 | R54: =generacion_bruta!R95 -> 0 | S54: =generacion_bruta!S95 -> 55.348953 | T54: =generacion_bruta!T95 -> 273.716822 | U54: =generacion_bruta!U95 -> 30.887281 | V54: =generacion_bruta!V95 -> 3425.664828
B55: Cogeneración | C55: =generacion_bruta!C96 -> 5102.267592 | D55: =generacion_bruta!D96 -> 2498.912457 | E55: =generacion_bruta!E96 -> 369.745856 | F55: =generacion_bruta!F96 -> 34.701317 | G55: =generacion_bruta!G96 -> 1579.402809 | H55: =generacion_bruta!H96 -> 0 | I55: =generacion_bruta!I96 -> 831.309878 | J55: =generacion_bruta!J96 -> 988.741079 | K55: =generacion_bruta!K96 -> 1857.265954 | L55: =generacion_bruta!L96 -> 4689.191184 | M55: =generacion_bruta!M96 -> 0 | N55: =generacion_bruta!N96 -> 50.701283 | O55: =generacion_bruta!O96 -> 2801.991938 | P55: =generacion_bruta!P96 -> 65.604554 | Q55: =generacion_bruta!Q96 -> 709.28833 | R55: =generacion_bruta!R96 -> 0 | S55: =generacion_bruta!S96 -> 1446.650791 | T55: =generacion_bruta!T96 -> 850.040002 | U55: =generacion_bruta!U96 -> 2032.828535 | V55: =generacion_bruta!V96 -> 25908.64356
B56: Residuos no renovables | C56: =generacion_bruta!C97 -> 181.57978 | D56: =generacion_bruta!D97 -> 366.541587 | E56: =generacion_bruta!E97 -> 707.87569 | F56: =generacion_bruta!F97 -> 130.8050665 | G56: =generacion_bruta!G97 -> 344.800935 | H56: =generacion_bruta!H97 -> 0 | I56: =generacion_bruta!I97 -> 39.0922205 | J56: =generacion_bruta!J97 -> 0 | K56: =generacion_bruta!K97 -> 0 | L56: =generacion_bruta!L97 -> 136.458882 | M56: =generacion_bruta!M97 -> 0 | N56: =generacion_bruta!N97 -> 0 | O56: =generacion_bruta!O97 -> 169.1174265 | P56: =generacion_bruta!P97 -> 0 | Q56: =generacion_bruta!Q97 -> 67.762207 | R56: =generacion_bruta!R97 -> 4.8500525 | S56: =generacion_bruta!S97 -> 0 | T56: =generacion_bruta!T97 -> 0 | U56: =generacion_bruta!U97 -> 458.0799175 | V56: =generacion_bruta!V97 -> 2606.963765
B57: Residuos renovables | C57: =generacion_bruta!C98 -> 0 | D57: =generacion_bruta!D98 -> 0 | E57: =generacion_bruta!E98 -> 0 | F57: =generacion_bruta!F98 -> 130.8050665 | G57: =generacion_bruta!G98 -> 0 | H57: =generacion_bruta!H98 -> 0 | I57: =generacion_bruta!I98 -> 39.0922205 | J57: =generacion_bruta!J98 -> 0 | K57: =generacion_bruta!K98 -> 0 | L57: =generacion_bruta!L98 -> 134.043918 | M57: =generacion_bruta!M98 -> 0 | N57: =generacion_bruta!N98 -> 0 | O57: =generacion_bruta!O98 -> 169.1174265 | P57: =generacion_bruta!P98 -> 0 | Q57: =generacion_bruta!Q98 -> 67.762207 | R57: =generacion_bruta!R98 -> 4.8500525 | S57: =generacion_bruta!S98 -> 0 | T57: =generacion_bruta!T98 -> 0 | U57: =generacion_bruta!U98 -> 239.7241385 | V57: =generacion_bruta!V98 -> 785.3950295
A58: 2017 | B58: Hidráulica | C58: =generacion_bruta!C112 -> 550.2314459 | D58: =generacion_bruta!D112 -> 2497.165478 | E58: =generacion_bruta!E112 -> 977.8708534 | F58: =generacion_bruta!F112 -> 0 | G58: =generacion_bruta!G112 -> 374.359758 | H58: =generacion_bruta!H112 -> 3.271979 | I58: =generacion_bruta!I112 -> 173.810458 | J58: =generacion_bruta!J112 -> 410.077844 | K58: =generacion_bruta!K112 -> 4174.578473 | L58: =generacion_bruta!L112 -> 3698.470829 | M58: =generacion_bruta!M112 -> 0 | N58: =generacion_bruta!N112 -> 1354.338195 | O58: =generacion_bruta!O112 -> 3263.525791 | P58: =generacion_bruta!P112 -> 85.742903 | Q58: =generacion_bruta!Q112 -> 139.123233 | R58: =generacion_bruta!R112 -> 0 | S58: =generacion_bruta!S112 -> 74.543739 | T58: =generacion_bruta!T112 -> 378.351356 | U58: =generacion_bruta!U112 -> 295.156415 | V58: =generacion_bruta!V112 -> 18450.61875
B59: Turbinación bombeo | C59: =generacion_bruta!C113 -> 146.5207041 | D59: =generacion_bruta!D113 -> 148.841847 | E59: =generacion_bruta!E113 -> 12.6857136 | F59: =generacion_bruta!F113 -> 0 | G59: =generacion_bruta!G113 -> 1011.231914 | H59: =generacion_bruta!H113 -> 0 | I59: =generacion_bruta!I113 -> 400.084015 | J59: =generacion_bruta!J113 -> 41.51776 | K59: =generacion_bruta!K113 -> 331.8299105 | L59: =generacion_bruta!L113 -> 113.5452056 | M59: =generacion_bruta!M113 -> 0 | N59: =generacion_bruta!N113 -> 19.64006648 | O59: =generacion_bruta!O113 -> 23.067282 | P59: =generacion_bruta!P113 -> 0 | Q59: =generacion_bruta!Q113 -> 0 | R59: =generacion_bruta!R113 -> 0 | S59: =generacion_bruta!S113 -> 0 | T59: =generacion_bruta!T113 -> 0 | U59: =generacion_bruta!U113 -> 0 | V59: =generacion_bruta!V113 -> 2248.964418
B60: Nuclear | C60: =generacion_bruta!C114 -> 0 | D60: =generacion_bruta!D114 -> 0 | E60: =generacion_bruta!E114 -> 0 | F60: =generacion_bruta!F114 -> 0 | G60: =generacion_bruta!G114 -> 7032.257222 | H60: =generacion_bruta!H114 -> 0 | I60: =generacion_bruta!I114 -> 0 | J60: =generacion_bruta!J114 -> 7971.229695 | K60: =generacion_bruta!K114 -> -15.182118 | L60: =generacion_bruta!L114 -> 24216.32143 | M60: =generacion_bruta!M114 -> 0 | N60: =generacion_bruta!N114 -> 16334.72481 | O60: =generacion_bruta!O114 -> 0 | P60: =generacion_bruta!P114 -> 0 | Q60: =generacion_bruta!Q114 -> 0 | R60: =generacion_bruta!R114 -> 0 | S60: =generacion_bruta!S114 -> 0 | T60: =generacion_bruta!T114 -> 0 | U60: =generacion_bruta!U114 -> 0 | V60: =generacion_bruta!V114 -> 55539.35105
B61: Carbón | C61: =generacion_bruta!C115 -> 10521.00026 | D61: =generacion_bruta!D115 -> 4656.304505 | E61: =generacion_bruta!E115 -> 10089.22572 | F61: =generacion_bruta!F115 -> 2597.531837 | G61: =generacion_bruta!G115 -> 0 | H61: =generacion_bruta!H115 -> 0 | I61: =generacion_bruta!I115 -> 0 | J61: =generacion_bruta!J115 -> 0 | K61: =generacion_bruta!K115 -> 6355.672881 | L61: =generacion_bruta!L115 -> 0 | M61: =generacion_bruta!M115 -> 0 | N61: =generacion_bruta!N115 -> 0 | O61: =generacion_bruta!O115 -> 10799.68519 | P61: =generacion_bruta!P115 -> 0 | Q61: =generacion_bruta!Q115 -> 0 | R61: =generacion_bruta!R115 -> 0 | S61: =generacion_bruta!S115 -> 0 | T61: =generacion_bruta!T115 -> 0 | U61: =generacion_bruta!U115 -> 0 | V61: =generacion_bruta!V115 -> 45019.42039
B62: Fuel / gas | C62: =generacion_bruta!C116 -> 0 | D62: =generacion_bruta!D116 -> 0 | E62: =generacion_bruta!E116 -> 0 | F62: =generacion_bruta!F116 -> 1367.258599 | G62: =generacion_bruta!G116 -> -1e-06 | H62: =generacion_bruta!H116 -> 5231.063784 | I62: =generacion_bruta!I116 -> 0 | J62: =generacion_bruta!J116 -> 0 | K62: =generacion_bruta!K116 -> 0 | L62: =generacion_bruta!L116 -> 0 | M62: =generacion_bruta!M116 -> 202.86083 | N62: =generacion_bruta!N116 -> 0 | O62: =generacion_bruta!O116 -> 0 | P62: =generacion_bruta!P116 -> 0 | Q62: =generacion_bruta!Q116 -> 0 | R62: =generacion_bruta!R116 -> 200.394237 | S62: =generacion_bruta!S116 -> 0 | T62: =generacion_bruta!T116 -> 0 | U62: =generacion_bruta!U116 -> 0 | V62: =generacion_bruta!V116 -> 7001.577449
B63: Ciclo combinado | C63: =generacion_bruta!C117 -> 7717.749048 | D63: =generacion_bruta!D117 -> 1084.813768 | E63: =generacion_bruta!E117 -> 682.784322 | F63: =generacion_bruta!F117 -> 420.429356 | G63: =generacion_bruta!G117 -> 4147.845521 | H63: =generacion_bruta!H117 -> 2997.376948 | I63: =generacion_bruta!I117 -> 0 | J63: =generacion_bruta!J117 -> 1658.072074 | K63: =generacion_bruta!K117 -> 0 | L63: =generacion_bruta!L117 -> 7884.719391 | M63: =generacion_bruta!M117 -> 0 | N63: =generacion_bruta!N117 -> 0 | O63: =generacion_bruta!O117 -> 1749.810253 | P63: =generacion_bruta!P117 -> 1677.087614 | Q63: =generacion_bruta!Q117 -> 0 | R63: =generacion_bruta!R117 -> 0 | S63: =generacion_bruta!S117 -> 3399.956766 | T63: =generacion_bruta!T117 -> 1398.280178 | U63: =generacion_bruta!U117 -> 2246.861844 | V63: =generacion_bruta!V117 -> 37065.78708
B64: Hidroeólica | C64: =generacion_bruta!C118 -> 0 | D64: =generacion_bruta!D118 -> 0 | E64: =generacion_bruta!E118 -> 0 | F64: =generacion_bruta!F118 -> 0 | G64: =generacion_bruta!G118 -> 0 | H64: =generacion_bruta!H118 -> 20.233057 | I64: =generacion_bruta!I118 -> 0 | J64: =generacion_bruta!J118 -> 0 | K64: =generacion_bruta!K118 -> 0 | L64: =generacion_bruta!L118 -> 0 | M64: =generacion_bruta!M118 -> 0 | N64: =generacion_bruta!N118 -> 0 | O64: =generacion_bruta!O118 -> 0 | P64: =generacion_bruta!P118 -> 0 | Q64: =generacion_bruta!Q118 -> 0 | R64: =generacion_bruta!R118 -> 0 | S64: =generacion_bruta!S118 -> 0 | T64: =generacion_bruta!T118 -> 0 | U64: =generacion_bruta!U118 -> 0 | V64: =generacion_bruta!V118 -> 20.233057
B65: Eólica | C65: =generacion_bruta!C119 -> 7192.010033 | D65: =generacion_bruta!D119 -> 4596.617816 | E65: =generacion_bruta!E119 -> 925.019839 | F65: =generacion_bruta!F119 -> 2.924276 | G65: =generacion_bruta!G119 -> 2175.513937 | H65: =generacion_bruta!H119 -> 395.925333 | I65: =generacion_bruta!I119 -> 65.882128 | J65: =generacion_bruta!J119 -> 7507.167263 | K65: =generacion_bruta!K119 -> 10993.18594 | L65: =generacion_bruta!L119 -> 2825.124234 | M65: =generacion_bruta!M119 -> 0 | N65: =generacion_bruta!N119 -> 0 | O65: =generacion_bruta!O119 -> 6903.686065 | P65: =generacion_bruta!P119 -> 976.650522 | Q65: =generacion_bruta!Q119 -> 0 | R65: =generacion_bruta!R119 -> 0 | S65: =generacion_bruta!S119 -> 434.662 | T65: =generacion_bruta!T119 -> 2584.936596 | U65: =generacion_bruta!U119 -> 327.649582 | V65: =generacion_bruta!V119 -> 47906.95556
B66: Solar fotovoltaica | C66: =generacion_bruta!C120 -> 1583.617103 | D66: =generacion_bruta!D120 -> 311.369912 | E66: =generacion_bruta!E120 -> 0.613652 | F66: =generacion_bruta!F120 -> 123.336995 | G66: =generacion_bruta!G120 -> 543.781423 | H66: =generacion_bruta!H120 -> 273.626665 | I66: =generacion_bruta!I120 -> 1.944193 | J66: =generacion_bruta!J120 -> 1744.799365 | K66: =generacion_bruta!K120 -> 899.500534 | L66: =generacion_bruta!L120 -> 420.80479 | M66: =generacion_bruta!M120 -> 0 | N66: =generacion_bruta!N120 -> 1119.601173 | O66: =generacion_bruta!O120 -> 20.858727 | P66: =generacion_bruta!P120 -> 139.538906 | Q66: =generacion_bruta!Q120 -> 91.954119 | R66: =generacion_bruta!R120 -> 0.076869 | S66: =generacion_bruta!S120 -> 774.62702 | T66: =generacion_bruta!T120 -> 316.454587 | U66: =generacion_bruta!U120 -> 31.24666 | V66: =generacion_bruta!V120 -> 8397.752693
B67: Solar térmica | C67: =generacion_bruta!C121 -> 2319.75783 | D67: =generacion_bruta!D121 -> 0 | E67: =generacion_bruta!E121 -> 0 | F67: =generacion_bruta!F121 -> 0 | G67: =generacion_bruta!G121 -> 98.827683 | H67: =generacion_bruta!H121 -> 0 | I67: =generacion_bruta!I121 -> 0 | J67: =generacion_bruta!J121 -> 742.678029 | K67: =generacion_bruta!K121 -> 0 | L67: =generacion_bruta!L121 -> 87.196205 | M67: =generacion_bruta!M121 -> 0 | N67: =generacion_bruta!N121 -> 2056.386426 | O67: =generacion_bruta!O121 -> 0 | P67: =generacion_bruta!P121 -> 0 | Q67: =generacion_bruta!Q121 -> 0 | R67: =generacion_bruta!R121 -> 0 | S67: =generacion_bruta!S121 -> 43.106292 | T67: =generacion_bruta!T121 -> 0 | U67: =generacion_bruta!U121 -> 0 | V67: =generacion_bruta!V121 -> 5347.952465
B68: Otras renovables | C68: =generacion_bruta!C122 -> 1388.831569 | D68: =generacion_bruta!D122 -> 57.833376 | E68: =generacion_bruta!E122 -> 271.442845 | F68: =generacion_bruta!F122 -> 1.626741 | G68: =generacion_bruta!G122 -> 32.437815 | H68: =generacion_bruta!H122 -> 9.565259 | I68: =generacion_bruta!I122 -> 83.494891 | J68: =generacion_bruta!J122 -> 265.550596 | K68: =generacion_bruta!K122 -> 263.332669 | L68: =generacion_bruta!L122 -> 186.638216 | M68: =generacion_bruta!M122 -> 0 | N68: =generacion_bruta!N122 -> 233.859795 | O68: =generacion_bruta!O122 -> 252.515625 | P68: =generacion_bruta!P122 -> 9.515459 | Q68: =generacion_bruta!Q122 -> 149.862472 | R68: =generacion_bruta!R122 -> 0 | S68: =generacion_bruta!S122 -> 53.861952 | T68: =generacion_bruta!T122 -> 305.447179 | U68: =generacion_bruta!U122 -> 44.531423 | V68: =generacion_bruta!V122 -> 3610.347882
B69: Cogeneración | C69: =generacion_bruta!C123 -> 5274.34151 | D69: =generacion_bruta!D123 -> 2967.791461 | E69: =generacion_bruta!E123 -> 391.827487 | F69: =generacion_bruta!F123 -> 36.244234 | G69: =generacion_bruta!G123 -> 1590.939932 | H69: =generacion_bruta!H123 -> 0 | I69: =generacion_bruta!I123 -> 1165.282101 | J69: =generacion_bruta!J123 -> 1088.139556 | K69: =generacion_bruta!K123 -> 2333.008699 | L69: =generacion_bruta!L123 -> 5086.733789 | M69: =generacion_bruta!M123 -> 0 | N69: =generacion_bruta!N123 -> 53.094291 | O69: =generacion_bruta!O123 -> 2831.012412 | P69: =generacion_bruta!P123 -> 74.725204 | Q69: =generacion_bruta!Q123 -> 704.246175 | R69: =generacion_bruta!R123 -> 0 | S69: =generacion_bruta!S123 -> 1688.402847 | T69: =generacion_bruta!T123 -> 902.923911 | U69: =generacion_bruta!U123 -> 2023.093094 | V69: =generacion_bruta!V123 -> 28211.8067
B70: Residuos no renovables | C70: =generacion_bruta!C124 -> 298.960653 | D70: =generacion_bruta!D124 -> 413.402689 | E70: =generacion_bruta!E124 -> 734.209557 | F70: =generacion_bruta!F124 -> 143.878668 | G70: =generacion_bruta!G124 -> 53.73962 | H70: =generacion_bruta!H124 -> 0 | I70: =generacion_bruta!I124 -> 36.8432765 | J70: =generacion_bruta!J124 -> 0 | K70: =generacion_bruta!K124 -> 0 | L70: =generacion_bruta!L124 -> 145.2090725 | M70: =generacion_bruta!M124 -> 0 | N70: =generacion_bruta!N124 -> 0 | O70: =generacion_bruta!O124 -> 178.464568 | P70: =generacion_bruta!P124 -> 0 | Q70: =generacion_bruta!Q124 -> 70.7030845 | R70: =generacion_bruta!R124 -> 4.976986 | S70: =generacion_bruta!S124 -> 0 | T70: =generacion_bruta!T124 -> 0 | U70: =generacion_bruta!U124 -> 527.5963405 | V70: =generacion_bruta!V124 -> 2607.984515
B71: Residuos renovables | C71: =generacion_bruta!C125 -> 0 | D71: =generacion_bruta!D125 -> 0 | E71: =generacion_bruta!E125 -> 0 | F71: =generacion_bruta!F125 -> 143.878668 | G71: =generacion_bruta!G125 -> 0 | H71: =generacion_bruta!H125 -> 0 | I71: =generacion_bruta!I125 -> 36.8432765 | J71: =generacion_bruta!J125 -> 0 | K71: =generacion_bruta!K125 -> 0 | L71: =generacion_bruta!L125 -> 141.3955805 | M71: =generacion_bruta!M125 -> 0 | N71: =generacion_bruta!N125 -> 0 | O71: =generacion_bruta!O125 -> 178.464568 | P71: =generacion_bruta!P125 -> 0 | Q71: =generacion_bruta!Q125 -> 70.7030845 | R71: =generacion_bruta!R125 -> 4.976986 | S71: =generacion_bruta!S125 -> 0 | T71: =generacion_bruta!T125 -> 0 | U71: =generacion_bruta!U125 -> 300.7439235 | V71: =generacion_bruta!V125 -> 877.006087
A72: 2018 | B72: Hidráulica | C72: =generacion_bruta!C139 -> 755.3199102 | D72: =generacion_bruta!D139 -> 3879.093174 | E72: =generacion_bruta!E139 -> 2226.508122 | F72: =generacion_bruta!F139 -> 0 | G72: =generacion_bruta!G139 -> 417.198853 | H72: =generacion_bruta!H139 -> 3.275909 | I72: =generacion_bruta!I139 -> 318.084348 | J72: =generacion_bruta!J139 -> 770.151892 | K72: =generacion_bruta!K139 -> 8056.991406 | L72: =generacion_bruta!L139 -> 5371.444206 | M72: =generacion_bruta!M139 -> 0 | N72: =generacion_bruta!N139 -> 2304.348288 | O72: =generacion_bruta!O139 -> 8525.545242 | P72: =generacion_bruta!P139 -> 167.442092 | Q72: =generacion_bruta!Q139 -> 122.874118 | R72: =generacion_bruta!R139 -> 0 | S72: =generacion_bruta!S139 -> 78.491163 | T72: =generacion_bruta!T139 -> 660.52081 | U72: =generacion_bruta!U139 -> 442.783162 | V72: =generacion_bruta!V139 -> 34100.07269
B73: Turbinación bombeo | C73: =generacion_bruta!C140 -> 106.7211058 | D73: =generacion_bruta!D140 -> 133.918075 | E73: =generacion_bruta!E140 -> 7.5048505 | F73: =generacion_bruta!F140 -> 0 | G73: =generacion_bruta!G140 -> 966.365022 | H73: =generacion_bruta!H140 -> 0 | I73: =generacion_bruta!I140 -> 291.689151 | J73: =generacion_bruta!J140 -> 41.313352 | K73: =generacion_bruta!K140 -> 347.1152875 | L73: =generacion_bruta!L140 -> 54.37387522 | M73: =generacion_bruta!M140 -> 0 | N73: =generacion_bruta!N140 -> 23.68034678 | O73: =generacion_bruta!O140 -> 36.6961224 | P73: =generacion_bruta!P140 -> 0 | Q73: =generacion_bruta!Q140 -> 0 | R73: =generacion_bruta!R140 -> 0 | S73: =generacion_bruta!S140 -> 0 | T73: =generacion_bruta!T140 -> 0 | U73: =generacion_bruta!U140 -> 0 | V73: =generacion_bruta!V140 -> 2009.377188
B74: Nuclear | C74: =generacion_bruta!C141 -> 0 | D74: =generacion_bruta!D141 -> 0 | E74: =generacion_bruta!E141 -> 0 | F74: =generacion_bruta!F141 -> 0 | G74: =generacion_bruta!G141 -> 8799.414139 | H74: =generacion_bruta!H141 -> 0 | I74: =generacion_bruta!I141 -> 0 | J74: =generacion_bruta!J141 -> 7714.455597 | K74: =generacion_bruta!K141 -> 0 | L74: =generacion_bruta!L141 -> 20999.31724 | M74: =generacion_bruta!M141 -> 0 | N74: =generacion_bruta!N141 -> 15684.42891 | O74: =generacion_bruta!O141 -> 0 | P74: =generacion_bruta!P141 -> 0 | Q74: =generacion_bruta!Q141 -> 0 | R74: =generacion_bruta!R141 -> 0 | S74: =generacion_bruta!S141 -> 0 | T74: =generacion_bruta!T141 -> 0 | U74: =generacion_bruta!U141 -> 0 | V74: =generacion_bruta!V141 -> 53197.61588
B75: Carbón | C75: =generacion_bruta!C142 -> 10869.53648 | D75: =generacion_bruta!D142 -> 2941.437601 | E75: =generacion_bruta!E142 -> 7485.106744 | F75: =generacion_bruta!F142 -> 2391.849791 | G75: =generacion_bruta!G142 -> 0 | H75: =generacion_bruta!H142 -> 0 | I75: =generacion_bruta!I142 -> 0 | J75: =generacion_bruta!J142 -> 0 | K75: =generacion_bruta!K142 -> 3277.853239 | L75: =generacion_bruta!L142 -> 0 | M75: =generacion_bruta!M142 -> 0 | N75: =generacion_bruta!N142 -> 0 | O75: =generacion_bruta!O142 -> 10307.83597 | P75: =generacion_bruta!P142 -> 0 | Q75: =generacion_bruta!Q142 -> 0 | R75: =generacion_bruta!R142 -> 0 | S75: =generacion_bruta!S142 -> 0 | T75: =generacion_bruta!T142 -> 0 | U75: =generacion_bruta!U142 -> 0 | V75: =generacion_bruta!V142 -> 37273.61983
B76: Fuel / gas | C76: =generacion_bruta!C143 -> 0 | D76: =generacion_bruta!D143 -> 0 | E76: =generacion_bruta!E143 -> 0 | F76: =generacion_bruta!F143 -> 1412.682684 | G76: =generacion_bruta!G143 -> -1e-06 | H76: =generacion_bruta!H143 -> 4860.950187 | I76: =generacion_bruta!I143 -> 0 | J76: =generacion_bruta!J143 -> 0 | K76: =generacion_bruta!K143 -> 0 | L76: =generacion_bruta!L143 -> 0 | M76: =generacion_bruta!M143 -> 207.356224 | N76: =generacion_bruta!N143 -> 0 | O76: =generacion_bruta!O143 -> 0 | P76: =generacion_bruta!P143 -> 0 | Q76: =generacion_bruta!Q143 -> 0 | R76: =generacion_bruta!R143 -> 202.180767 | S76: =generacion_bruta!S143 -> 0 | T76: =generacion_bruta!T143 -> 0 | U76: =generacion_bruta!U143 -> 0 | V76: =generacion_bruta!V143 -> 6683.169861
B77: Ciclo combinado | C77: =generacion_bruta!C144 -> 6264.827126 | D77: =generacion_bruta!D144 -> 59.868959 | E77: =generacion_bruta!E144 -> 586.410952 | F77: =generacion_bruta!F144 -> 590.529264 | G77: =generacion_bruta!G144 -> 4118.64044 | H77: =generacion_bruta!H144 -> 3051.021608 | I77: =generacion_bruta!I144 -> 0 | J77: =generacion_bruta!J144 -> 1401.751424 | K77: =generacion_bruta!K144 -> 0 | L77: =generacion_bruta!L144 -> 7136.762499 | M77: =generacion_bruta!M144 -> 0 | N77: =generacion_bruta!N144 -> 0 | O77: =generacion_bruta!O144 -> 809.916634 | P77: =generacion_bruta!P144 -> 1096.230726 | Q77: =generacion_bruta!Q144 -> 0 | R77: =generacion_bruta!R144 -> 0 | S77: =generacion_bruta!S144 -> 2932.05029 | T77: =generacion_bruta!T144 -> 649.231852 | U77: =generacion_bruta!U144 -> 1347.393757 | V77: =generacion_bruta!V144 -> 30044.63553
B78: Hidroeólica | C78: =generacion_bruta!C145 -> 0 | D78: =generacion_bruta!D145 -> 0 | E78: =generacion_bruta!E145 -> 0 | F78: =generacion_bruta!F145 -> 0 | G78: =generacion_bruta!G145 -> 0 | H78: =generacion_bruta!H145 -> 23.655544 | I78: =generacion_bruta!I145 -> 0 | J78: =generacion_bruta!J145 -> 0 | K78: =generacion_bruta!K145 -> 0 | L78: =generacion_bruta!L145 -> 0 | M78: =generacion_bruta!M145 -> 0 | N78: =generacion_bruta!N145 -> 0 | O78: =generacion_bruta!O145 -> 0 | P78: =generacion_bruta!P145 -> 0 | Q78: =generacion_bruta!Q145 -> 0 | R78: =generacion_bruta!R145 -> 0 | S78: =generacion_bruta!S145 -> 0 | T78: =generacion_bruta!T145 -> 0 | U78: =generacion_bruta!U145 -> 0 | V78: =generacion_bruta!V145 -> 23.655544
B79: Eólica | C79: =generacion_bruta!C146 -> 6250.778057 | D79: =generacion_bruta!D146 -> 4340.037015 | E79: =generacion_bruta!E146 -> 1113.986849 | F79: =generacion_bruta!F146 -> 3.757171 | G79: =generacion_bruta!G146 -> 2461.935328 | H79: =generacion_bruta!H146 -> 620.570704 | I79: =generacion_bruta!I146 -> 66.871954 | J79: =generacion_bruta!J146 -> 8065.106153 | K79: =generacion_bruta!K146 -> 11435.24241 | L79: =generacion_bruta!L146 -> 2709.2185 | M79: =generacion_bruta!M146 -> 0 | N79: =generacion_bruta!N146 -> 0 | O79: =generacion_bruta!O146 -> 8373.905551 | P79: =generacion_bruta!P146 -> 908.480873 | Q79: =generacion_bruta!Q146 -> 0 | R79: =generacion_bruta!R146 -> 0 | S79: =generacion_bruta!S146 -> 496.015309 | T79: =generacion_bruta!T146 -> 2348.007765 | U79: =generacion_bruta!U146 -> 332.142297 | V79: =generacion_bruta!V146 -> 49526.05593
B80: Solar fotovoltaica | C80: =generacion_bruta!C147 -> 1469.590906 | D80: =generacion_bruta!D147 -> 288.208828 | E80: =generacion_bruta!E147 -> 0.481376 | F80: =generacion_bruta!F147 -> 112.251642 | G80: =generacion_bruta!G147 -> 525.948469 | H80: =generacion_bruta!H147 -> 271.613212 | I80: =generacion_bruta!I147 -> 1.805014 | J80: =generacion_bruta!J147 -> 1575.243729 | K80: =generacion_bruta!K147 -> 801.592108 | L80: =generacion_bruta!L147 -> 383.304377 | M80: =generacion_bruta!M147 -> 0 | N80: =generacion_bruta!N147 -> 1018.155917 | O80: =generacion_bruta!O147 -> 18.52141 | P80: =generacion_bruta!P147 -> 130.121369 | Q80: =generacion_bruta!Q147 -> 85.078797 | R80: =generacion_bruta!R147 -> 0.074611 | S80: =generacion_bruta!S147 -> 740.954035 | T80: =generacion_bruta!T147 -> 295.662107 | U80: =generacion_bruta!U147 -> 28.07601 | V80: =generacion_bruta!V147 -> 7746.683917
B81: Solar térmica | C81: =generacion_bruta!C148 -> 1937.626047 | D81: =generacion_bruta!D148 -> 0 | E81: =generacion_bruta!E148 -> 0 | F81: =generacion_bruta!F148 -> 0 | G81: =generacion_bruta!G148 -> 87.712473 | H81: =generacion_bruta!H148 -> 0 | I81: =generacion_bruta!I148 -> 0 | J81: =generacion_bruta!J148 -> 650.078076 | K81: =generacion_bruta!K148 -> 0 | L81: =generacion_bruta!L148 -> 76.605625 | M81: =generacion_bruta!M148 -> 0 | N81: =generacion_bruta!N148 -> 1634.398669 | O81: =generacion_bruta!O148 -> 0 | P81: =generacion_bruta!P148 -> 0 | Q81: =generacion_bruta!Q148 -> 0 | R81: =generacion_bruta!R148 -> 0 | S81: =generacion_bruta!S148 -> 37.907719 | T81: =generacion_bruta!T148 -> 0 | U81: =generacion_bruta!U148 -> 0 | V81: =generacion_bruta!V148 -> 4424.328609
B82: Otras renovables | C82: =generacion_bruta!C149 -> 1332.761617 | D82: =generacion_bruta!D149 -> 53.709086 | E82: =generacion_bruta!E149 -> 255.601423 | F82: =generacion_bruta!F149 -> 1.332595 | G82: =generacion_bruta!G149 -> 37.879639 | H82: =generacion_bruta!H149 -> 8.931597 | I82: =generacion_bruta!I149 -> 81.567729 | J82: =generacion_bruta!J149 -> 271.49264 | K82: =generacion_bruta!K149 -> 270.573217 | L82: =generacion_bruta!L149 -> 170.641641 | M82: =generacion_bruta!M149 -> 0 | N82: =generacion_bruta!N149 -> 243.7005 | O82: =generacion_bruta!O149 -> 263.039803 | P82: =generacion_bruta!P149 -> 8.378248 | Q82: =generacion_bruta!Q149 -> 151.292257 | R82: =generacion_bruta!R149 -> 0 | S82: =generacion_bruta!S149 -> 48.662543 | T82: =generacion_bruta!T149 -> 304.972336 | U82: =generacion_bruta!U149 -> 51.845342 | V82: =generacion_bruta!V149 -> 3556.382213
B83: Cogeneración | C83: =generacion_bruta!C150 -> 5198.436923 | D83: =generacion_bruta!D150 -> 3093.716136 | E83: =generacion_bruta!E150 -> 356.827179 | F83: =generacion_bruta!F150 -> 34.974446 | G83: =generacion_bruta!G150 -> 1642.051932 | H83: =generacion_bruta!H150 -> 0 | I83: =generacion_bruta!I150 -> 1379.623237 | J83: =generacion_bruta!J150 -> 1172.606 | K83: =generacion_bruta!K150 -> 2578.527874 | L83: =generacion_bruta!L150 -> 5315.227906 | M83: =generacion_bruta!M150 -> 0 | N83: =generacion_bruta!N150 -> 70.359119 | O83: =generacion_bruta!O150 -> 2625.412247 | P83: =generacion_bruta!P150 -> 81.983378 | Q83: =generacion_bruta!Q150 -> 728.44823 | R83: =generacion_bruta!R150 -> 0 | S83: =generacion_bruta!S150 -> 1752.667718 | T83: =generacion_bruta!T150 -> 921.230799 | U83: =generacion_bruta!U150 -> 2057.653739 | V83: =generacion_bruta!V150 -> 29009.74686
B84: Residuos no renovables | C84: =generacion_bruta!C151 -> 75.41157 | D84: =generacion_bruta!D151 -> 409.02124 | E84: =generacion_bruta!E151 -> 768.884729 | F84: =generacion_bruta!F151 -> 135.7577445 | G84: =generacion_bruta!G151 -> 62.64631 | H84: =generacion_bruta!H151 -> 0 | I84: =generacion_bruta!I151 -> 36.4359725 | J84: =generacion_bruta!J151 -> 0 | K84: =generacion_bruta!K151 -> 0 | L84: =generacion_bruta!L151 -> 127.882683 | M84: =generacion_bruta!M151 -> 0 | N84: =generacion_bruta!N151 -> 0 | O84: =generacion_bruta!O151 -> 173.029153 | P84: =generacion_bruta!P151 -> 0 | Q84: =generacion_bruta!Q151 -> 81.5095215 | R84: =generacion_bruta!R151 -> 5.346839 | S84: =generacion_bruta!S151 -> 0 | T84: =generacion_bruta!T151 -> 0 | U84: =generacion_bruta!U151 -> 560.8663075 | V84: =generacion_bruta!V151 -> 2436.79207
B85: Residuos renovables | C85: =generacion_bruta!C152 -> 0 | D85: =generacion_bruta!D152 -> 0 | E85: =generacion_bruta!E152 -> 0 | F85: =generacion_bruta!F152 -> 135.7577445 | G85: =generacion_bruta!G152 -> 0 | H85: =generacion_bruta!H152 -> 0 | I85: =generacion_bruta!I152 -> 36.4359725 | J85: =generacion_bruta!J152 -> 0 | K85: =generacion_bruta!K152 -> 0 | L85: =generacion_bruta!L152 -> 120.054013 | M85: =generacion_bruta!M152 -> 0 | N85: =generacion_bruta!N152 -> 0 | O85: =generacion_bruta!O152 -> 173.029153 | P85: =generacion_bruta!P152 -> 0 | Q85: =generacion_bruta!Q152 -> 81.5095215 | R85: =generacion_bruta!R152 -> 5.346839 | S85: =generacion_bruta!S152 -> 0 | T85: =generacion_bruta!T152 -> 0 | U85: =generacion_bruta!U152 -> 321.9420015 | V85: =generacion_bruta!V152 -> 874.075245

Sheet datos_RdT (hidden)
B1: 2013
B2: CCAA | C2: Andalucía | D2: Aragón | E2: Asturias | F2: Baleares | G2: C. Valenciana | H2: Canarias | I2: Cantabria | J2: Castilla-La Mancha | K2: Castilla y León | L2: Cataluña | M2: Ceuta | N2: Extremadura | O2: Galicia | P2: La Rioja | Q2: Madrid | R2: Melilla | S2: Murcia | T2: Navarra | U2: País Vasco | V2: TOTAL | W2: MÓVILES | X2: PENINSULAR | Y2: NO PENINSULAR
B3: km líneas 400 kV | C3: 2693.820078 | D3: 1288.14794 | E3: 491.6751643 | G3: 1010.000472 | I3: 238.8627043 | J3: 2538.284496 | K3: 4571.073032 | L3: 2038.357192 | N3: 2094.405958 | O3: 1200.592727 | P3: 114.9490595 | Q3: 915.3560257 | S3: 708.1121371 | T3: 175.9700702 | U3: 559.8823434 | V3: =SUM(C3:U3) -> 20639.4894 | X3: =V3-Y3 -> 20639.4894 | Y3: =F3+H3 -> 0
B4: km líneas 220 kV | C4: 3137.746795 | D4: 1848.840817 | E4: 420.2268202 | F4: 430.382 | G4: 1223.09026 | H4: 163.353 | I4: 276.5377929 | J4: 1496.730639 | K4: 3206.358862 | L4: 2458.333254 | N4: 741.3038674 | O4: 1318.563 | P4: 156.3322424 | Q4: 1170.656551 | S4: 107.27374 | T4: 318.8290202 | U4: 690.2796786 | V4: =SUM(C4:U4) -> 19164.83834 | X4: =V4-Y4 -> 18571.10334 | Y4: =F4+H4 -> 593.735
B5: km líneas <220 kV | F5: 1113.149 | H5: 1125.697 | L5: 39.44 | N5: 23 | O5: 12.3 | V5: 2313.586 | X5: 74.74 | Y5: 2238.846
B6: Total km líneas | C6: =SUM(C3:C5) -> 5831.566873 | D6: =SUM(D3:D5) -> 3136.988758 | E6: 911.9019845 | F6: 1543.531 | G6: 2233.090732 | H6: 1289.05 | I6: 515.4004973 | J6: 4035.015136 | K6: 7777.431894 | L6: 4536.130446 | M6: 0 | N6: 2858.709825 | O6: 2531.455727 | P6: 271.2813019 | Q6: 2086.012577 | R6: 0 | S6: 815.3858771 | T6: 494.7990904 | U6: 1250.162022 | V6: =SUM(V3:V5) -> 42117.91374 | X6: =SUM(X3:X5) -> 39285.33274 | Y6: =SUM(Y3:Y5) -> 2832.581
B7: =CONCATENATE("Δ" & $B$1 & "/" & $B$1-1) -> Δ2013/2012 | C7: 2.801924356 | D7: 0.01913028156 | E7: 8.078811344 | F7: 0 | G7: 5.008410838 | H7: 0 | I7: 0 | J7: 0 | K7: 0 | L7: 0.06397204013 | N7: 17.16591335 | O7: -2.220446049e-14 | P7: 0 | Q7: 0.3311967668 | S7: 0 | T7: 0 | U7: 3.644840996 | V7: 1.952967188 | X7: 2.096734018 | Y7: 0
B8: Posiciones 400 kV | C8: 195 | D8: 89 | E8: 52 | G8: 143 | I8: 10 | J8: 106 | K8: 199 | L8: 122 | N8: 103 | O8: 71 | P8: 8 | Q8: 103 | S8: 67 | T8: 28 | U8: 78 | V8: =SUM(C8:U8)+W8 -> 1374 | X8: =V8-Y8 -> 1374 | Y8: =F8+H8 -> 0
B9: Posiciones 220 kV | C9: 412 | D9: 213 | E9: 45 | F9: 69 | G9: 271 | H9: 40 | I9: 46 | J9: 137 | K9: 234 | L9: =583+7 -> 590 | N9: 87 | O9: 213 | P9: 30 | Q9: 517 | S9: 40 | T9: 49 | U9: 146 | V9: =SUM(C9:U9)+W9 -> 3146 | W9: 7 | X9: =V9-Y9 -> 3037 | Y9: =F9+H9 -> 109
B10: Posiciones <220 kV | F10: 437 | H10: 363 | L10: 3 | O10: 1 | V10: 804 | X10: =V10-Y10 -> 4 | Y10: =F10+H10 -> 800
B11: Total posiciones | C11: =SUM(C8:C10) -> 607 | D11: =SUM(D8:D10) -> 302 | E11: 97 | F11: 506 | G11: 414 | H11: 403 | I11: 56 | J11: 243 | K11: 433 | L11: 715 | M11: 0 | N11: 190 | O11: 285 | P11: 38 | Q11: 620 | R11: 0 | S11: 107 | T11: 77 | U11: 224 | V11: 5324 | W11: 7 | X11: 4415 | Y11: 909
B12: =CONCATENATE("Δ" & $B$1 & "/" & $B$1-1) -> Δ2013/2012 | C12: 4.116638079 | D12: 2.372881356 | E12: 10.22727273 | F12: 0.3968253968 | G12: 6.701030928 | H12: 0 | I12: 0 | J12: 1.25 | K12: 0 | L12: 1.131541726 | N12: 15.85365854 | O12: 4.779411765 | P12: 0 | Q12: 3.505843072 | S12: 5.940594059 | T12: 2.666666667 | U12: 0 | V12: 2.839482326 | W12: 0 | X12: 3.395784543 | Y12: 0.2205071665
B13: Transformadores | C13: 14420 | D13: 4674 | E13: 1299.2 | F13: 2793 | G13: 7600 | H13: 1625 | I13: 2100 | J13: 1200 | K13: 6131 | L13: 10450 | N13: 2398.875 | O13: 5700 | P13: 600 | Q13: 10348.4 | S13: 3150 | T13: 1600 | U13: 4300 | V13: 81289.475 | W13: 900 | X13: 76871.475 | Y13: 4418
B14: =CONCATENATE("Δ" & $B$1 & "/" & $B$1-1) -> Δ2013/2012 | C14: 0 | D14: 0 | E14: 0 | F14: 15.98837209 | G14: 0.9966777409 | H14: 0 | I14: 40 | K14: 0 | L14: 0 | N14: 33.3541797 | O14: 0 | Q14: 0 | S14: 0 | T14: 60 | U14: 0 | V14: 3.38295531 | W14: 80 | X14: 3.049741962 | Y14: 9.546243491
B15: 2014
B16: CCAA | C16: Andalucía | D16: Aragón | E16: Asturias | F16: Baleares | G16: C. Valenciana | H16: Canarias | I16: Cantabria | J16: Castilla-La Mancha | K16: Castilla y León | L16: Cataluña | M16: Ceuta | N16: Extremadura | O16: Galicia | P16: La Rioja | Q16: Madrid | R16: Melilla | S16: Murcia | T16: Navarra | U16: País Vasco | V16: TOTAL | W16: MÓVILES | X16: PENINSULAR | Y16: NO PENINSULAR
B17: km líneas 400 kV | C17: 2769.149578 | D17: 1288.14794 | E17: 491.6751643 | F17: 0 | G17: 1010.000472 | H17: 0 | I17: 238.8627043 | J17: 2578.534496 | K17: 4571.073032 | L17: 2185.196192 | N17: 2285.508458 | O17: 1201.105727 | P17: 114.9490595 | Q17: 915.3560257 | S17: 708.1121371 | T17: 175.9700702 | U17: 559.8823434 | V17: =SUM(C17:U17) -> 21093.5234 | X17: =V17-Y17 -> 21093.5234 | Y17: =F17+H17 -> 0
B18: km líneas 220 kV | C18: 3168.957795 | D18: 1848.840817 | E18: 420.2268202 | F18: 431.098 | G18: 1264.01826 | H18: 163.353 | I18: 276.5377929 | J18: 1496.730639 | K18: 3206.358862 | L18: 2466.593254 | N18: 787.3738674 | O18: 1324.479 | P18: 156.3322424 | Q18: 1177.349551 | S18: 107.27374 | T18: 318.8290202 | U18: 690.2796786 | V18: =SUM(C18:U18) -> 19304.63234 | X18: =V18-Y18 -> 18710.18134 | Y18: =F18+H18 -> 594.451
B19: km líneas <220 kV | F19: 1113.884 | H19: 1125.782 | L19: 39.44 | N19: 23 | O19: 12.3 | V19: 2314.406 | X19: 74.74 | Y19: 2239.666
B20: Total km líneas | C20: =SUM(C17:C19) -> 5938.107373 | D20: =SUM(D17:D19) -> 3136.988758 | E20: =SUM(E17:E19) -> 911.9019845 | F20: =SUM(F17:F19) -> 1544.982 | G20: =SUM(G17:G19) -> 2274.018732 | H20: =SUM(H17:H19) -> 1289.135 | I20: =SUM(I17:I19) -> 515.4004973 | J20: =SUM(J17:J19) -> 4075.265136 | K20: =SUM(K17:K19) -> 7777.431894 | L20: =SUM(L17:L19) -> 4691.229446 | M20: =SUM(M17:M19) -> 0 | N20: =SUM(N17:N19) -> 3095.882325 | O20: =SUM(O17:O19) -> 2537.884727 | P20: =SUM(P17:P19) -> 271.2813019 | Q20: =SUM(Q17:Q19) -> 2092.705577 | R20: =SUM(R17:R19) -> 0 | S20: =SUM(S17:S19) -> 815.3858771 | T20: =SUM(T17:T19) -> 494.7990904 | U20: =SUM(U17:U19) -> 1250.162022 | V20: =SUM(V17:V19) -> 42712.56174 | X20: =SUM(X17:X19) -> 39878.44474 | Y20: =SUM(Y17:Y19) -> 2834.117
B21: =CONCATENATE("Δ" & $B$15 & "/" & $B$15-1) -> Δ2014/2013 | C21: =(C20/C6-1)*100 -> 1.826961815 | D21: =(D20/D6-1)*100 -> 0 | E21: 0 | F21: 0.09400523864 | G21: 1.832796107 | H21: =(H20/H6-1)*100 -> 0.006594003336 | I21: =(I20/I6-1)*100 -> 0 | J21: =(J20/J6-1)*100 -> 0.9975179435 | K21: 0 | L21: =(L20/L6-1)*100 -> 3.419191795 | N21: =(N20/N6-1)*100 -> 8.296487383 | O21: 0.2539645442 | P21: =(P20/P6-1)*100 -> 0 | Q21: =(Q20/Q6-1)*100 -> 0.3208513734 | S21: =(S20/S6-1)*100 -> 0 | T21: =(T20/T6-1)*100 -> 0 | U21: =(U20/U6-1)*100 -> 0 | V21: =(V20/V6-1)*100 -> 1.411864803 | X21: =(X20/X6-1)*100 -> 1.509754299 | Y21: =(Y20/Y6-1)*100 -> 0.05422616335
B22: Posiciones 400 kV | C22: 195 | D22: 89 | E22: 52 | G22: 143 | I22: 10 | J22: 112 | K22: 200 | L22: 133 | N22: 103 | O22: 71 | P22: 8 | Q22: 103 | S22: 69 | T22: 28 | U22: 78 | V22: =SUM(C22:U22)+W22 -> 1394 | X22: =V22-Y22 -> 1394 | Y22: =F22+H22 -> 0
B23: Posiciones 220 kV | C23: 416 | D23: 213 | E23: 45 | F23: 75 | G23: 291 | H23: 40 | I23: 46 | J23: 137 | K23: 234 | L23: 596 | N23: 88 | O23: 216 | P23: 30 | Q23: 521 | S23: 46 | T23: 49 | U23: 147 | V23: =SUM(C23:U23)+W23 -> 3197 | W23: 7 | X23: =V23-Y23 -> 3082 | Y23: =F23+H23 -> 115
B24: Posiciones <220 kV | F24: 455 | H24: 369 | L24: 3 | O24: 1 | V24: 828 | X24: =V24-Y24 -> 4 | Y24: =F24+H24 -> 824
B25: Total posiciones | C25: =SUM(C22:C24) -> 611 | D25: 302 | E25: 97 | F25: 530 | G25: 434 | H25: 409 | I25: 56 | J25: 249 | K25: 434 | L25: 732 | M25: 0 | N25: 191 | O25: 288 | P25: 38 | Q25: 624 | R25: 0 | S25: 115 | T25: 77 | U25: 225 | V25: =SUM(V22:V24) -> 5419 | W25: 7 | X25: =SUM(X22:X24) -> 4480 | Y25: =SUM(Y22:Y24) -> 939
B26: =CONCATENATE("Δ" & $B$15 & "/" & $B$15-1) -> Δ2014/2013 | C26: =(C25/C11-1)*100 -> 0.6589785832 | D26: =(D25/D11-1)*100 -> 0 | E26: 0 | F26: 4.743083004 | G26: 4.830917874 | H26: 1.488833747 | I26: 0 | J26: 2.469135802 | K26: 0.2309468822 | L26: 2.377622378 | N26: 0.5263157895 | O26: 1.052631579 | P26: 0 | Q26: 0.6451612903 | S26: 7.476635514 | T26: 0 | U26: 0.4464285714 | V26: 1.784372652 | W26: 0 | X26: 1.472253681 | Y26: 3.300330033
B27: Transformadores | C27: 14420 | D27: 4674 | E27: 1299.2 | F27: 2793 | G27: 7600 | H27: 1875 | I27: 2100 | J27: 1200 | K27: 6131 | L27: 11650 | N27: 2398.875 | O27: 5700 | P27: 600 | Q27: 11548.4 | S27: 3150 | T27: 1600 | U27: 4300 | V27: 83939.475 | W27: 900 | X27: 79271.475 | Y27: 4668
B28: =CONCATENATE("Δ" & $B$15 & "/" & $B$15-1) -> Δ2014/2013 | C28: =(C27/C13-1)*100 -> 0 | D28: =(D27/D13-1)*100 -> 0 | E28: 0 | F28: 0 | G28: 0 | H28: 15.38461538 | I28: 0 | K28: 0 | L28: 11.48325359 | N28: 0 | O28: 0 | Q28: 11.59599552 | S28: 0 | T28: 0 | U28: 0 | V28: 3.259954625 | W28: 0 | X28: =(X27/X13-1)*100 -> 3.122094379 | Y28: 5.658669081
B29: 2015
B30: CCAA | C30: Andalucía | D30: Aragón | E30: Asturias | F30: Baleares | G30: C. Valenciana | H30: Canarias | I30: Cantabria | J30: Castilla-La Mancha | K30: Castilla y León | L30: Cataluña | M30: Ceuta | N30: Extremadura | O30: Galicia | P30: La Rioja | Q30: Madrid | R30: Melilla | S30: Murcia | T30: Navarra | U30: País Vasco | V30: TOTAL | W30: MÓVILES | X30: PENINSULAR | Y30: NO PENINSULAR
B31: km líneas 400 kV | C31: 2769.149578 | D31: 1331.49794 | E31: 491.6751643 | F31: 0 | G31: 1018.009472 | H31: 0 | I31: 240.5127043 | J31: 2578.534496 | K31: 4572.484032 | L31: 2185.196192 | N31: 2285.508458 | O31: 1201.105727 | P31: 114.9490595 | Q31: 915.3560257 | S31: 708.1121371 | T31: 175.9700702 | U31: 595.7783434 | V31: =SUM(C31:U31) -> 21183.8394 | X31: =V31-Y31 -> 21183.8394 | Y31: =F31+H31 -> 0
B32: km líneas 220 kV | C32: 3201.047795 | D32: 1848.840817 | E32: 420.2268202 | F32: 431.37 | G32: 1264.14826 | H32: 215.867 | I32: 293.0877929 | J32: 1496.730639 | K32: 3206.358862 | L32: 2484.253254 | N32: 861.2438674 | O32: 1324.479 | P32: 156.3322424 | Q32: 1177.349551 | S32: 107.27374 | T32: 318.8290202 | U32: 690.2796786 | V32: =SUM(C32:U32) -> 19497.71834 | X32: =V32-Y32 -> 18850.48134 | Y32: =F32+H32 -> 647.237
B33: km líneas <220 kV | F33: 1242.324 | H33: 1131.092 | L33: 39.44 | N33: 23 | O33: 12.3 | V33: 2448.156 | X33: 74.74 | Y33: 2373.416
B34: Total km líneas | C34: =SUM(C31:C33) -> 5970.197373 | D34: =SUM(D31:D33) -> 3180.338758 | E34: 911.9019845 | F34: 1673.694 | G34: 2282.157732 | H34: 1346.959 | I34: 533.6004973 | J34: 4075.265136 | K34: 7778.842894 | L34: 4708.889446 | M34: 0 | N34: 3169.752325 | O34: 2537.884727 | P34: 271.2813019 | Q34: 2092.705577 | R34: 0 | S34: 815.3858771 | T34: 494.7990904 | U34: 1286.058022 | V34: 43129.71374 | W34: 0 | X34: 40109.06074 | Y34: 3020.653
B35: =CONCATENATE("Δ" & $B$29 & "/" & $B$29-1) -> Δ2015/2014 | C35: 0.5404078772 | D35: 1.381898481 | E35: 0 | F35: 8.330970846 | G35: 0.3579126191 | H35: 4.485488331 | I35: 3.531234467 | J35: 0 | K35: 0.01814223537 | L35: 0.3766800137 | N35: 2.386072603 | O35: 0 | P35: 0 | Q35: 0 | S35: 0 | T35: 0 | U35: 2.871307828 | V35: 0.9767157664 | X35: 0.5783394346 | Y35: 6.58180308
B36: Posiciones 400 kV | C36: 195 | D36: 98 | E36: 52 | G36: 153 | I36: 15 | J36: 112 | K36: 219 | L36: 136 | N36: 103 | O36: 71 | P36: 8 | Q36: 103 | S36: 69 | T36: 28 | U36: 79 | V36: =SUM(C36:U36)+W36 -> 1441 | X36: =V36-Y36 -> 1441 | Y36: =F36+H36 -> 0
B37: Posiciones 220 kV | C37: 436 | D37: 214 | E37: 45 | F37: 75 | G37: 291 | H37: 46 | I37: 50 | J37: 137 | K37: 242 | L37: 602 | N37: 88 | O37: 216 | P37: 30 | Q37: 521 | S37: 48 | T37: 49 | U37: 147 | V37: =SUM(C37:U37)+W37 -> 3244 | W37: 7 | X37: =V37-Y37 -> 3123 | Y37: =F37+H37 -> 121
B38: Posiciones <220 kV | F38: 488 | H38: 378 | L38: 3 | O38: 1 | V38: 870 | X38: =V38-Y38 -> 4 | Y38: =F38+H38 -> 866
B39: Total posiciones | C39: =SUM(C36:C38) -> 631 | D39: 312 | E39: 97 | F39: 563 | G39: 444 | H39: 424 | I39: 65 | J39: 249 | K39: 461 | L39: 741 | M39: 0 | N39: 191 | O39: 288 | P39: 38 | Q39: 624 | R39: 0 | S39: 117 | T39: 77 | U39: 226 | V39: =SUM(V36:V38) -> 5555 | W39: 7 | X39: =SUM(X36:X38) -> 4568 | Y39: =SUM(Y36:Y38) -> 987
B40: =CONCATENATE("Δ" & $B$29 & "/" & $B$29-1) -> Δ2015/2014 | C40: 3.273322422 | D40: 3.311258278 | E40: 0 | F40: 6.226415094 | G40: 2.304147465 | H40: 3.667481663 | I40: 16.07142857 | J40: 0 | K40: 6.221198157 | L40: 1.24137931 | N40: 0 | O40: 0 | P40: 0 | Q40: 0 | S40: 1.739130435 | T40: 0 | U40: 0.4444444444 | V40: 2.51293422 | W40: 0 | X40: 1.967359714 | Y40: 5.111821086
B41: Transformadores | C41: 14420 | D41: 4674 | E41: 1299.2 | F41: 3273 | G41: 7600 | H41: 2000 | I41: 2100 | J41: 1200 | K41: 6131 | L41: 11650 | N41: 2398.875 | O41: 5700 | P41: 600 | Q41: 11548.4 | S41: 3150 | T41: 1600 | U41: 4300 | V41: 84544.475 | W41: 900 | X41: 79271.475 | Y41: 5273
B42: =CONCATENATE("Δ" & $B$29 & "/" & $B$29-1) -> Δ2015/2014 | C42: =(C41/C27-1)*100 -> 0 | D42: =(D41/D27-1)*100 -> 0 | E42: 0 | F42: 17.1858217 | G42: 0 | H42: 6.666666667 | I42: 0 | J42: 0 | K42: 0 | L42: 0 | N42: 0 | O42: 0 | Q42: 0 | S42: 0 | T42: 0 | U42: 0 | V42: 0.7207574267 | W42: 0 | X42: 0 | Y42: 12.96058269
B43: 2016
B44: CCAA | C44: Andalucía | D44: Aragón | E44: Asturias | F44: Baleares | G44: C. Valenciana | H44: Canarias | I44: Cantabria | J44: Castilla-La Mancha | K44: Castilla y León | L44: Cataluña | M44: Ceuta | N44: Extremadura | O44: Galicia | P44: La Rioja | Q44: Madrid | R44: Melilla | S44: Murcia | T44: Navarra | U44: País Vasco | V44: TOTAL | W44: MÓVILES | X44: PENINSULAR | Y44: NO PENINSULAR
B45: km líneas 400 kV | C45: 2769.149578 | D45: 1520.63494 | E45: 529.2951643 | F45: 0 | G45: 1100.562472 | H45: 0 | I45: 240.5127043 | J45: 2578.534496 | K45: 4572.484032 | L45: 2185.196192 | N45: 2285.508458 | O45: 1326.937727 | P45: 114.9490595 | Q45: 915.3560257 | S45: 708.1121371 | T45: 175.9700702 | U45: 595.7783434 | V45: =SUM(C45:U45) -> 21618.9814 | X45: =V45-Y45 -> 21618.9814 | Y45: =F45+H45 -> 0
B46: km líneas 220 kV | C46: 3225.994795 | D46: 1848.840817 | E46: 420.2268202 | F46: 432.224 | G46: 1291.98326 | H46: 220.243 | I46: =I32 -> 293.0877929 | J46: =J32 -> 1496.730639 | K46: 3206.358862 | L46: 2502.113254 | N46: 861.2438674 | O46: 1325.179 | P46: 156.3322424 | Q46: =Q32 -> 1177.349551 | S46: 123.86974 | T46: =T32 -> 318.8290202 | U46: 690.3186786 | V46: =SUM(C46:U46) -> 19590.92534 | X46: =V46-Y46 -> 18938.45834 | Y46: =F46+H46 -> 652.467
B47: km líneas <220 kV | F47: =F33+125.5 -> 1367.824 | H47: 1133.922 | L47: 39.44 | N47: 23 | O47: 12.3 | V47: =SUM(C47:U47) -> 2576.486 | X47: 74.74 | Y47: 2501.746
B48: Total km líneas | C48: =SUM(C45:C47) -> 5995.144373 | D48: =SUM(D45:D47) -> 3369.475758 | E48: 949.5219845 | F48: 1800.048 | G48: 2392.545732 | H48: 1354.165 | I48: 533.6004973 | J48: 4075.265136 | K48: 7778.842894 | L48: 4726.749446 | M48: 0 | N48: 3169.752325 | O48: 2664.416727 | P48: 271.2813019 | Q48: 2092.705577 | R48: 0 | S48: 831.9818771 | T48: 494.7990904 | U48: 1286.097022 | V48: =SUM(V45:V47) -> 43786.39274 | X48: =SUM(X45:X47) -> 40632.17974 | Y48: =SUM(Y45:Y47) -> 3154.213
B49: =CONCATENATE("Δ" & $B$43 & "/" & $B$43-1) -> Δ2016/2015 | C49: 0.4178455667 | D49: 5.947045186 | E49: 4.12535343 | F49: 7.548512452 | G49: 4.836639399 | H49: 0.5349828762 | I49: -0.000148599804 | J49: -1.569217195e-05 | K49: 0 | L49: 0.3794472157 | N49: -0.0001220102962 | O49: 4.985726839 | P49: 0 | Q49: -0.0004563879442 | S49: 2.035355341 | T49: -0.001823002951 | U49: 0.002279944526 | V49: 1.522524961 | X49: 1.304217344 | Y49: 4.421063922
B50: Posiciones 400 kV | C50: 196 | D50: 98 | E50: 52 | G50: 167 | I50: 15 | J50: 113 | K50: 219 | L50: 136 | N50: 103 | O50: 71 | P50: 8 | Q50: 103 | S50: 69 | T50: 28 | U50: 80 | V50: =SUM(C50:U50)+W50 -> 1458 | X50: =V50-Y50 -> 1458 | Y50: =F50+H50 -> 0
B51: Posiciones 220 kV | C51: 438 | D51: 214 | E51: 45 | F51: 76 | G51: 297 | H51: 55 | I51: 50 | J51: 137 | K51: 243 | L51: 602 | N51: 88 | O51: 222 | P51: 30 | Q51: 523 | S51: 48 | T51: 49 | U51: 148 | V51: =SUM(C51:U51)+W51 -> 3272 | W51: 7 | X51: =V51-Y51 -> 3141 | Y51: =F51+H51 -> 131
B52: Posiciones <220 kV | F52: 495 | H52: 389 | L52: 3 | O52: 1 | V52: 888 | X52: =V52-Y52 -> 4 | Y52: =F52+H52 -> 884
B53: Total posiciones | C53: =SUM(C50:C52) -> 634 | D53: 312 | E53: 97 | F53: 571 | G53: 464 | H53: 444 | I53: 65 | J53: 250 | K53: 462 | L53: 741 | M53: 0 | N53: 191 | O53: 294 | P53: 38 | Q53: 626 | R53: 0 | S53: 117 | T53: 77 | U53: 228 | V53: =SUM(V50:V52) -> 5618 | W53: 7 | X53: =SUM(X50:X52) -> 4603 | Y53: =SUM(Y50:Y52) -> 1015
B54: =CONCATENATE("Δ" & $B$43 & "/" & $B$43-1) -> Δ2016/2015 | C54: 0.4754358162 | D54: 0 | E54: 0 | F54: 1.420959147 | G54: 4.504504505 | H54: 4.716981132 | I54: 0 | J54: 0.4016064257 | K54: 0.2169197397 | L54: 0 | N54: 0 | O54: 2.083333333 | P54: 0 | Q54: 0.3205128205 | S54: 0 | T54: 0 | U54: 0.8849557522 | V54: 1.13554434 | W54: 0 | X54: 0.7673755755 | Y54: 2.836879433
B55: Transformadores | C55: 14420 | D55: 4674 | E55: 1299.2 | F55: 3273 | G55: 8200 | H55: 2000 | I55: 2100 | J55: 1200 | K55: 6131 | L55: 11650 | N55: 2398.875 | O55: 5700 | P55: 600 | Q55: 11548.4 | S55: 3150 | T55: 1600 | U55: 4300 | V55: =SUM(C55:U55)+W55 -> 85144.475 | W55: 900 | X55: =V55-Y55 -> 79871.475 | Y55: =F55+H55 -> 5273
B56: =CONCATENATE("Δ" & $B$43 & "/" & $B$43-1) -> Δ2016/2015 | C56: =(C55/C41-1)*100 -> 0 | D56: =(D55/D41-1)*100 -> 0 | E56: 0 | F56: 0 | G56: 7.894736842 | H56: 0 | I56: 0 | J56: 0 | K56: 0 | L56: 0 | N56: 0 | O56: 0 | P56: 0 | Q56: 0 | S56: 0 | T56: 0 | U56: 0 | V56: 0.7096856418 | W56: 0 | X56: 0.7568926906 | Y56: =(Y55/Y41-1)*100 -> 0
B57: 2017
B58: CCAA | C58: Andalucía | D58: Aragón | E58: Asturias | F58: Baleares | G58: C. Valenciana | H58: Canarias | I58: Cantabria | J58: Castilla-La Mancha | K58: Castilla y León | L58: Cataluña | M58: Ceuta | N58: Extremadura | O58: Galicia | P58: La Rioja | Q58: Madrid | R58: Melilla | S58: Murcia | T58: Navarra | U58: País Vasco | V58: TOTAL | W58: MÓVILES | X58: PENINSULAR | Y58: NO PENINSULAR
B59: km líneas 400 kV | C59: 2769.149578 | D59: 1520.63494 | E59: 529.2951643 | F59: 0 | G59: 1100.562472 | H59: 0 | I59: 240.5127043 | J59: 2612.814496 | K59: 4620.178032 | L59: 2185.665192 | N59: 2285.508458 | O59: 1326.937727 | P59: 114.9490595 | Q59: 942.1000257 | S59: 708.1121371 | T59: 175.9700702 | U59: 595.7783434 | V59: =SUM(C59:U59) -> 21728.1684 | X59: =V59-Y59 -> 21728.1684 | Y59: =F59+H59 -> 0
B60: km líneas 220 kV | C60: 3225.994 | D60: 1858.52 | E60: 420.226 | F60: 432.224 | G60: 1307.602 | H60: 220.243 | I60: 293.087 | J60: 1496.73 | K60: 3206.358862 | L60: 2502.11 | N60: 861.24 | O60: 1325.219 | P60: 156.3322424 | Q60: 1177.38 | S60: 123.86974 | T60: 318.82 | U60: 690.423 | V60: =SUM(C60:U60) -> 19616.37884 | X60: =V60-Y60 -> 18963.91184 | Y60: =F60+H60 -> 652.467
B61: km líneas <220 kV | F61: 1376.092 | H61: 1134.854 | L61: 39.44 | N61: 23 | O61: 12.3 | V61: 2585.686 | X61: 74.74 | Y61: 2510.946
B62: Total km líneas | C62: =SUM(C59:C61) -> 5995.143578 | D62: =SUM(D59:D61) -> 3379.15494 | E62: 949.5211643 | F62: 1808.316 | G62: 2408.164472 | H62: 1355.097 | I62: 533.5997043 | J62: 4109.544496 | K62: 7826.536894 | L62: 4727.215192 | M62: 0 | N62: 3169.748458 | O62: 2664.456727 | P62: 271.2813019 | Q62: 2119.480026 | R62: 0 | S62: 831.9818771 | T62: 494.7900702 | U62: 1286.201343 | V62: 43930.23324 | X62: =SUM(X59:X61) -> 40766.82024 | Y62: =SUM(Y59:Y61) -> 3163.413
B63: =CONCATENATE("Δ" & $B$57 & "/" & $B$57-1) -> Δ2017/2016 | C63: 0 | D63: 0.2872851163 | E63: 0 | F63: 0.4601582304 | G63: 0.6531559144 | H63: 0.06882470009 | I63: 0 | J63: 0.8411723959 | K63: 0.613124608 | L63: 0.07131900285 | N63: 0 | O63: 0.00150126666 | P63: 0 | Q63: 1.279880101 | S63: 0 | T63: 0 | U63: 0.008864094696 | V63: 0.3352935099 | X63: 0.3386428746 | Y63: 0.2921503343
B64: Posiciones 400 kV | C64: =C50 -> 196 | D64: =D50+1 -> 99 | E64: =E50 -> 52 | G64: =G50+4 -> 171 | I64: =I50 -> 15 | J64: =J50 -> 113 | K64: =K50+14 -> 233 | L64: =L50+6 -> 142 | N64: =N50 -> 103 | O64: 71 | P64: 8 | Q64: =Q50+1 -> 104 | S64: 69 | T64: =T50 -> 28 | U64: =U50 -> 80 | V64: =SUM(C64:U64)+W64 -> 1484 | X64: =V64-Y64 -> 1484 | Y64: =F64+H64 -> 0
B65: Posiciones 220 kV | C65: =C51 -> 438 | D65: =D51+1 -> 215 | E65: 45 | F65: 76 | G65: =G51+13 -> 310 | H65: 55 | I65: 50 | J65: =J51+2 -> 139 | K65: =K51 -> 243 | L65: =L51+2 -> 604 | N65: =N51 -> 88 | O65: 222 | P65: 30 | Q65: =Q51 -> 523 | S65: 48 | T65: =T51+1 -> 50 | U65: =U51+2 -> 150 | V65: =SUM(C65:U65)+W65 -> 3293 | W65: 7 | X65: =V65-Y65 -> 3162 | Y65: =F65+H65 -> 131
B66: Posiciones <220 kV | F66: =F52+6 -> 501 | H66: =H52+50 -> 439 | L66: 3 | O66: 1 | V66: 944 | X66: =V66-Y66 -> 4 | Y66: =F66+H66 -> 940
B67: Total posiciones | C67: =SUM(C64:C66) -> 634 | D67: 314 | E67: 97 | F67: 577 | G67: 481 | H67: 494 | I67: 65 | J67: 252 | K67: 476 | L67: 749 | M67: 0 | N67: 191 | O67: 294 | P67: 38 | Q67: 627 | R67: 0 | S67: 117 | T67: 78 | U67: 230 | V67: =SUM(V64:V66) -> 5721 | W67: =SUM(W64:W66) -> 7 | X67: =SUM(X64:X66) -> 4650 | Y67: =SUM(Y64:Y66) -> 1071
B68: =CONCATENATE("Δ" & $B$57 & "/" & $B$57-1) -> Δ2017/2016 | C68: =(C67/C53-1)*100 -> 0 | D68: =(D67/D53-1)*100 -> 0.641025641 | E68: 0 | F68: 1.050788091 | G68: 3.663793103 | H68: 11.26126126 | I68: =(I67/I53-1)*100 -> 0 | J68: =(J67/J53-1)*100 -> 0.8 | K68: =(K67/K53-1)*100 -> 3.03030303 | L68: =(L67/L53-1)*100 -> 1.079622132 | N68: =(N67/N53-1)*100 -> 0 | O68: =(O67/O53-1)*100 -> 0 | P68: =(P67/P53-1)*100 -> 0 | Q68: =(Q67/Q53-1)*100 -> 0.1597444089 | S68: =(S67/S53-1)*100 -> 0 | T68: =(T67/T53-1)*100 -> 1.298701299 | U68: =(U67/U53-1)*100 -> 0.8771929825 | V68: =(V67/V53-1)*100 -> 1.833392666 | W68: 0 | X68: =(X67/X53-1)*100 -> 1.021073213 | Y68: =(Y67/Y53-1)*100 -> 5.517241379
B69: Transformadores | C69: 14420 | D69: 4674 | E69: 1299.2 | F69: 3273 | G69: 8200 | H69: 2560 | I69: 2100 | J69: 1200 | K69: 6131 | L69: 11650 | N69: 2398.875 | O69: 5700 | P69: 600 | Q69: 11548.4 | S69: 3150 | T69: 1600 | U69: 4850 | V69: =SUM(C69:U69)+W69 -> 86254.475 | W69: 900 | X69: =V69-Y69 -> 80421.475 | Y69: =F69+H69 -> 5833
B70: =CONCATENATE("Δ" & $B$57 & "/" & $B$57-1) -> Δ2017/2016 | C70: =(C69/C55-1)*100 -> 0 | D70: =(D69/D55-1)*100 -> 0 | E70: 0 | F70: 0 | G70: 0 | H70: 28 | I70: 0 | J70: 0 | K70: 0 | L70: 0 | N70: 0 | O70: 0 | P70: 0 | Q70: 0 | S70: 0 | T70: 0 | U70: 12.79069767 | V70: 1.303666503 | W70: 0 | X70: 0.688606289 | Y70: 10.62014034
B71: 2018
B72: CCAA | C72: Andalucía | D72: Aragón | E72: Asturias | F72: Baleares | G72: C. Valenciana | H72: Canarias | I72: Cantabria | J72: Castilla-La Mancha | K72: Castilla y León | L72: Cataluña | M72: Ceuta | N72: Extremadura | O72: Galicia | P72: La Rioja | Q72: Madrid | R72: Melilla | S72: Murcia | T72: Navarra | U72: País Vasco | V72: TOTAL | W72: MÓVILES | X72: PENINSULAR | Y72: NO PENINSULAR
B73: km líneas 400 kV | C73: =C59 -> 2769.149578 | D73: =D59 -> 1520.63494 | E73: 529.2951643 | F73: 0 | G73: 1100.562472 | H73: 0 | I73: 240.5127043 | J73: 2612.814496 | K73: =K59+0.76 -> 4620.938032 | L73: =L59+1 -> 2186.665192 | N73: 2285.508458 | O73: 1326.937727 | P73: 114.9490595 | Q73: 942.1000257 | S73: 708.1121371 | T73: 175.9700702 | U73: 595.7783434 | V73: =SUM(C73:U73) -> 21729.9284 | X73: =V73-Y73 -> 21729.9284 | Y73: =F73+H73 -> 0
B74: km líneas 220 kV | C74: =C60+16.026 -> 3242.02 | D74: =D60+18.027 -> 1876.547 | E74: =E60 -> 420.226 | F74: 432.224 | G74: =G60+26.544 -> 1334.146 | H74: =H60+17.791 -> 238.034 | I74: 293.087 | J74: 1496.73 | K74: =K60+29.715 -> 3236.073862 | L74: =L60+3.98 -> 2506.09 | N74: 861.24 | O74: 1325.219 | P74: 156.3322424 | Q74: 1177.38 | S74: 123.86974 | T74: 318.82 | U74: 690.423 | V74: =SUM(C74:U74) -> 19728.46184 | X74: =V74-Y74 -> 19058.20384 | Y74: =F74+H74 -> 670.258
B75: km líneas <220 kV | F75: =F61+45.303 -> 1421.395 | H75: =H61+117.671 -> 1252.525 | L75: 39.44 | N75: 23 | O75: 12.3 | V75: 2748.66 | X75: 74.74 | Y75: 2673.92
B76: Total km líneas | C76: =SUM(C73:C75) -> 6011.169578 | D76: 3397.18194 | E76: 949.5211643 | F76: 1853.619 | G76: 2434.708472 | H76: 1490.559 | I76: 533.5997043 | J76: 4109.544496 | K76: 7857.011894 | L76: 4732.195192 | M76: 0 | N76: 3169.748458 | O76: 2664.456727 | P76: 271.2813019 | Q76: 2119.480026 | R76: 0 | S76: 831.9818771 | T76: 494.7900702 | U76: 1286.201343 | V76: 44207.05024 | X76: =SUM(X73:X75) -> 40862.87224 | Y76: =SUM(Y73:Y75) -> 3344.178
B77: =CONCATENATE("Δ" & $B$71 & "/" & $B$71-1) -> Δ2018/2017 | C77: =(C76/C62-1)*100 -> 0.2673163668 | D77: =(D76/D62-1)*100 -> 0.5334765738 | E77: 0 | F77: 2.505259037 | G77: 1.102250295 | H77: 9.996479957 | I77: 0 | J77: 0 | K77: 0.3893803915 | L77: 0.105347436 | N77: 0 | O77: 0 | P77: 0 | Q77: 0 | S77: 0 | T77: 0 | U77: 0 | V77: =(V76/V62-1)*100 -> 0.6301286826 | X77: =(X76/X62-1)*100 -> 0.2356131762 | Y77: 5.714239652
B78: Posiciones 400 kV | C78: =C64+2 -> 198 | D78: =D64 -> 99 | E78: =E64+1 -> 53 | G78: =G64 -> 171 | I78: =I64 -> 15 | J78: =J64+1 -> 114 | K78: =K64+9 -> 242 | L78: =L64+8 -> 150 | M78: =M64 -> 0 | N78: =N64+1 -> 104 | O78: 71 | P78: 8 | Q78: 104 | S78: 69 | T78: 28 | U78: 80 | V78: =SUM(C78:U78)+W78 -> 1506 | X78: =V78-F78-H78-M78-R78 -> 1506 | Y78: =F78+H78+M78+R78 -> 0
B79: Posiciones 220 kV | C79: =C65+11 -> 449 | D79: =D65+6 -> 221 | E79: 45 | F79: =F65+1 -> 77 | G79: =G65+5 -> 315 | H79: =H65+14 -> 69 | I79: =I65 -> 50 | J79: =J65 -> 139 | K79: =K65+5 -> 248 | L79: =L65+13 -> 617 | M79: 0 | N79: 88 | O79: 222 | P79: 30 | Q79: 523 | S79: 48 | T79: 50 | U79: =U65+1 -> 151 | V79: =SUM(C79:U79)+W79 -> 3349 | W79: 7 | X79: =V79-F79-H79-M79-R79 -> 3203 | Y79: =F79+H79+M79+R79 -> 146
B80: Posiciones <220 kV | F80: =F66+17 -> 518 | H80: =H66+54 -> 493 | L80: 3 | O80: 1 | V80: 1015 | X80: =V80-F80-H80-M80-R80 -> 4 | Y80: =F80+H80+M80+R80 -> 1011
B81: Total posiciones | C81: =SUM(C78:C80) -> 647 | D81: =SUM(D78:D80) -> 320 | E81: 98 | F81: 595 | G81: 486 | H81: 562 | I81: 65 | J81: 253 | K81: 490 | L81: 770 | M81: 0 | N81: 192 | O81: 294 | P81: 38 | Q81: 627 | R81: 0 | S81: 117 | T81: 78 | U81: 231 | V81: =SUM(V78:V80) -> 5870 | W81: =SUM(W78:W80) -> 7 | X81: =SUM(X78:X80) -> 4713 | Y81: 1157
B82: =CONCATENATE("Δ" & $B$71 & "/" & $B$71-1) -> Δ2018/2017 | C82: =(C81/C67-1)*100 -> 2.050473186 | D82: =(D81/D67-1)*100 -> 1.910828025 | E82: 1.030927835 | F82: 3.119584055 | G82: 1.03950104 | H82: 13.76518219 | I82: 0 | J82: 0.3968253968 | K82: 2.941176471 | L82: 2.803738318 | N82: 0.5235602094 | O82: 0 | P82: 0 | Q82: 0 | S82: 0 | T82: 0 | U82: 0.4347826087 | V82: =(V81/V67-1)*100 -> 2.604439783 | W82: 0 | X82: 1.35483871 | Y82: 8.029878618
B83: Transformadores | C83: =C69 -> 14420 | D83: =D69+582 -> 5256 | E83: =E69 -> 1299.2 | F83: =F69+160 -> 3433 | G83: 8200 | H83: =H69+750 -> 3310 | I83: 2100 | J83: 1200 | K83: =K69+200 -> 6331 | L83: =L69+700 -> 12350 | N83: 2398.875 | O83: 5700 | P83: 600 | Q83: 11548.4 | S83: 3150 | T83: 1600 | U83: =U69+200 -> 5050 | V83: =SUM(C83:U83)+W83 -> 88846.475 | W83: 900 | X83: =V83-F83-H83-M83-R83 -> 82103.475 | Y83: =F83+H83+M83+R83 -> 6743
B84: =CONCATENATE("Δ" & $B$71 & "/" & $B$71-1) -> Δ2018/2017 | C84: =(C83/C69-1)*100 -> 0 | D84: =(D83/D69-1)*100 -> 12.45186136 | E84: 0 | F84: 4.888481515 | G84: 0 | H84: 29.296875 | I84: 0 | J84: 0 | K84: 3.262110586 | L84: 6.008583691 | N84: 0 | O84: 0 | P84: 0 | Q84: 0 | S84: 0 | T84: 0 | U84: 4.12371134 | V84: =(V83/V69-1)*100 -> 3.005061477 | W84: 0 | X84: 2.091481162 | Y84: 15.60089148

Sheet EVOLUCION_RdT (hidden)
B2: evolución líneas | C2: Andalucía | D2: Aragón | E2: Asturias | F2: Baleares | G2: C. Valenciana | H2: Canarias | I2: Cantabria | J2: Castilla-La Mancha | K2: Castilla y León | L2: Cataluña | M2: Ceuta | N2: Extremadura | O2: Galicia | P2: La Rioja | Q2: Madrid | R2: Melilla | S2: Murcia | T2: Navarra | U2: País Vasco | V2: TOTAL | W2: MÓVILES | X2: Resto nacional
A3: 2013 | B3: líneas | C3: =datos_RdT!C6 -> 5831.566873 | D3: =datos_RdT!D6 -> 3136.988758 | E3: =datos_RdT!E6 -> 911.9019845 | F3: =datos_RdT!F6 -> 1543.531 | G3: =datos_RdT!G6 -> 2233.090732 | H3: =datos_RdT!H6 -> 1289.05 | I3: =datos_RdT!I6 -> 515.4004973 | J3: =datos_RdT!J6 -> 4035.015136 | K3: =datos_RdT!K6 -> 7777.431894 | L3: =datos_RdT!L6 -> 4536.130446 | M3: =datos_RdT!M6 -> 0 | N3: =datos_RdT!N6 -> 2858.709825 | O3: =datos_RdT!O6 -> 2531.455727 | P3: =datos_RdT!P6 -> 271.2813019 | Q3: =datos_RdT!Q6 -> 2086.012577 | R3: =datos_RdT!R6 -> 0 | S3: =datos_RdT!S6 -> 815.3858771 | T3: =datos_RdT!T6 -> 494.7990904 | U3: =datos_RdT!U6 -> 1250.162022 | V3: =SUM(C3:U3) -> 42117.91374 | X3: =V3-Q3 -> 40031.90116
A4: 2013 | B4: posiciones | C4: =datos_RdT!C11 -> 607 | D4: =datos_RdT!D11 -> 302 | E4: =datos_RdT!E11 -> 97 | F4: =datos_RdT!F11 -> 506 | G4: =datos_RdT!G11 -> 414 | H4: =datos_RdT!H11 -> 403 | I4: =datos_RdT!I11 -> 56 | J4: =datos_RdT!J11 -> 243 | K4: =datos_RdT!K11 -> 433 | L4: =datos_RdT!L11 -> 715 | M4: =datos_RdT!M11 -> 0 | N4: =datos_RdT!N11 -> 190 | O4: =datos_RdT!O11 -> 285 | P4: =datos_RdT!P11 -> 38 | Q4: =datos_RdT!Q11 -> 620 | R4: =datos_RdT!R11 -> 0 | S4: =datos_RdT!S11 -> 107 | T4: =datos_RdT!T11 -> 77 | U4: =datos_RdT!U11 -> 224 | V4: =SUM(C4:U4)+W4 -> 5324 | W4: =datos_RdT!W11 -> 7 | X4: =V4-Q4 -> 4704
A5: 2013 | B5: transformadores | C5: =datos_RdT!C13 -> 14420 | D5: =datos_RdT!D13 -> 4674 | E5: =datos_RdT!E13 -> 1299.2 | F5: =datos_RdT!F13 -> 2793 | G5: =datos_RdT!G13 -> 7600 | H5: =datos_RdT!H13 -> 1625 | I5: =datos_RdT!I13 -> 2100 | J5: =datos_RdT!J13 -> 1200 | K5: =datos_RdT!K13 -> 6131 | L5: =datos_RdT!L13 -> 10450 | M5: =datos_RdT!M13 -> 0 | N5: =datos_RdT!N13 -> 2398.875 | O5: =datos_RdT!O13 -> 5700 | P5: =datos_RdT!P13 -> 600 | Q5: =datos_RdT!Q13 -> 10348.4 | R5: =datos_RdT!R13 -> 0 | S5: =datos_RdT!S13 -> 3150 | T5: =datos_RdT!T13 -> 1600 | U5: =datos_RdT!U13 -> 4300 | V5: =SUM(C5:U5) -> 80389.475 | W5: =datos_RdT!W13 -> 900 | X5: =V5-Q5 -> 70041.075
A6: 2013 | B6: líneas | C6: =datos_RdT!C7/100 -> 0.02801924356 | D6: =datos_RdT!D7/100 -> 0.0001913028156 | E6: =datos_RdT!E7/100 -> 0.08078811344 | F6: =datos_RdT!F7/100 -> 0 | G6: =datos_RdT!G7/100 -> 0.05008410838 | H6: =datos_RdT!H7/100 -> 0 | I6: =datos_RdT!I7/100 -> 0 | J6: =datos_RdT!J7/100 -> 0 | K6: =datos_RdT!K7/100 -> 0 | L6: =datos_RdT!L7/100 -> 0.0006397204013 | M6: =datos_RdT!M7/100 -> 0 | N6: =datos_RdT!N7/100 -> 0.1716591335 | O6: =datos_RdT!O7/100 -> -2.220446049e-16 | P6: =datos_RdT!P7/100 -> 0 | Q6: =datos_RdT!Q7/100 -> 0.003311967668 | R6: =datos_RdT!R7/100 -> 0 | S6: =datos_RdT!S7/100 -> 0 | T6: =datos_RdT!T7/100 -> 0 | U6: =datos_RdT!U7/100 -> 0.03644840996 | V6: =datos_RdT!V7/100 -> 0.01952967188
A7: 2013 | B7: posiciones | C7: =datos_RdT!C12/100 -> 0.04116638079 | D7: =datos_RdT!D12/100 -> 0.02372881356 | E7: =datos_RdT!E12/100 -> 0.1022727273 | F7: =datos_RdT!F12/100 -> 0.003968253968 | G7: =datos_RdT!G12/100 -> 0.06701030928 | H7: =datos_RdT!H12/100 -> 0 | I7: =datos_RdT!I12/100 -> 0 | J7: =datos_RdT!J12/100 -> 0.0125 | K7: =datos_RdT!K12/100 -> 0 | L7: =datos_RdT!L12/100 -> 0.01131541726 | M7: =datos_RdT!M12/100 -> 0 | N7: =datos_RdT!N12/100 -> 0.1585365854 | O7: =datos_RdT!O12/100 -> 0.04779411765 | P7: =datos_RdT!P12/100 -> 0 | Q7: =datos_RdT!Q12/100 -> 0.03505843072 | R7: =datos_RdT!R12/100 -> 0 | S7: =datos_RdT!S12/100 -> 0.05940594059 | T7: =datos_RdT!T12/100 -> 0.02666666667 | U7: =datos_RdT!U12/100 -> 0 | V7: =datos_RdT!V12/100 -> 0.02839482326
A8: 2013 | B8: transformadores | C8: =datos_RdT!C14/100 -> 0 | D8: =datos_RdT!D14/100 -> 0 | E8: =datos_RdT!E14/100 -> 0 | F8: =datos_RdT!F14/100 -> 0.1598837209 | G8: =datos_RdT!G14/100 -> 0.009966777409 | H8: =datos_RdT!H14/100 -> 0 | I8: =datos_RdT!I14/100 -> 0.4 | J8: =datos_RdT!J14/100 -> 0 | K8: =datos_RdT!K14/100 -> 0 | L8: =datos_RdT!L14/100 -> 0 | M8: =datos_RdT!M14/100 -> 0 | N8: =datos_RdT!N14/100 -> 0.333541797 | O8: =datos_RdT!O14/100 -> 0 | P8: =datos_RdT!P14/100 -> 0 | Q8: =datos_RdT!Q14/100 -> 0 | R8: =datos_RdT!R14/100 -> 0 | S8: =datos_RdT!S14/100 -> 0 | T8: =datos_RdT!T14/100 -> 0.6 | U8: =datos_RdT!U14/100 -> 0 | V8: =datos_RdT!V14/100 -> 0.0338295531
A9: 2014 | B9: líneas | C9: =datos_RdT!C20 -> 5938.107373 | D9: =datos_RdT!D20 -> 3136.988758 | E9: =datos_RdT!E20 -> 911.9019845 | F9: =datos_RdT!F20 -> 1544.982 | G9: =datos_RdT!G20 -> 2274.018732 | H9: =datos_RdT!H20 -> 1289.135 | I9: =datos_RdT!I20 -> 515.4004973 | J9: =datos_RdT!J20 -> 4075.265136 | K9: =datos_RdT!K20 -> 7777.431894 | L9: =datos_RdT!L20 -> 4691.229446 | M9: =datos_RdT!M20 -> 0 | N9: =datos_RdT!N20 -> 3095.882325 | O9: =datos_RdT!O20 -> 2537.884727 | P9: =datos_RdT!P20 -> 271.2813019 | Q9: =datos_RdT!Q20 -> 2092.705577 | R9: =datos_RdT!R20 -> 0 | S9: =datos_RdT!S20 -> 815.3858771 | T9: =datos_RdT!T20 -> 494.7990904 | U9: =datos_RdT!U20 -> 1250.162022 | V9: =SUM(C9:U9) -> 42712.56174 | X9: =V9-Q9 -> 40619.85616
A10: 2014 | B10: posiciones | C10: =datos_RdT!C25 -> 611 | D10: =datos_RdT!D25 -> 302 | E10: =datos_RdT!E25 -> 97 | F10: =datos_RdT!F25 -> 530 | G10: =datos_RdT!G25 -> 434 | H10: =datos_RdT!H25 -> 409 | I10: =datos_RdT!I25 -> 56 | J10: =datos_RdT!J25 -> 249 | K10: =datos_RdT!K25 -> 434 | L10: =datos_RdT!L25 -> 732 | M10: =datos_RdT!M25 -> 0 | N10: =datos_RdT!N25 -> 191 | O10: =datos_RdT!O25 -> 288 | P10: =datos_RdT!P25 -> 38 | Q10: =datos_RdT!Q25 -> 624 | R10: =datos_RdT!R25 -> 0 | S10: =datos_RdT!S25 -> 115 | T10: =datos_RdT!T25 -> 77 | U10: =datos_RdT!U25 -> 225 | V10: =SUM(C10:U10)+W10 -> 5419 | W10: =datos_RdT!W25 -> 7 | X10: =V10-Q10 -> 4795
A11: 2014 | B11: transformadores | C11: =datos_RdT!C27 -> 14420 | D11: =datos_RdT!D27 -> 4674 | E11: =datos_RdT!E27 -> 1299.2 | F11: =datos_RdT!F27 -> 2793 | G11: =datos_RdT!G27 -> 7600 | H11: =datos_RdT!H27 -> 1875 | I11: =datos_RdT!I27 -> 2100 | J11: =datos_RdT!J27 -> 1200 | K11: =datos_RdT!K27 -> 6131 | L11: =datos_RdT!L27 -> 11650 | M11: =datos_RdT!M27 -> 0 | N11: =datos_RdT!N27 -> 2398.875 | O11: =datos_RdT!O27 -> 5700 | P11: =datos_RdT!P27 -> 600 | Q11: =datos_RdT!Q27 -> 11548.4 | R11: =datos_RdT!R27 -> 0 | S11: =datos_RdT!S27 -> 3150 | T11: =datos_RdT!T27 -> 1600 | U11: =datos_RdT!U27 -> 4300 | V11: =SUM(C11:U11) -> 83039.475 | W11: =datos_RdT!W27 -> 900 | X11: =V11-Q11 -> 71491.075
A12: 2014 | B12: líneas | C12: =(C9/C3-1) -> 0.01826961815 | D12: =(D9/D3-1) -> 0 | E12: =(E9/E3-1) -> 0 | F12: =(F9/F3-1) -> 0.0009400523864 | G12: 0.01832796107 | H12: 6.594003336e-05 | I12: 0 | J12: 0.009975179435 | K12: 0 | L12: 0.03419191795 | N12: 0.08296487383 | O12: 0.002539645442 | P12: 0 | Q12: 0.003208513734 | S12: 0 | T12: 0 | U12: 0 | V12: 0.01411864803
A13: 2014 | B13: posiciones | C13: =(C10/C4-1) -> 0.006589785832 | D13: =(D10/D4-1) -> 0 | E13: 0 | F13: 0.04743083004 | G13: 0.04830917874 | H13: 0.01488833747 | I13: 0 | J13: 0.02469135802 | K13: 0.002309468822 | L13: 0.02377622378 | N13: 0.005263157895 | O13: 0.01052631579 | P13: 0 | Q13: 0.006451612903 | S13: 0.07476635514 | T13: 0 | U13: 0.004464285714 | V13: 0.01784372652
A14: 2014 | B14: transformadores | C14: =(C11/C5-1) -> 0 | D14: =(D11/D5-1) -> 0 | E14: 0 | F14: 0 | G14: 0 | H14: 0.1538461538 | I14: 0 | K14: 0 | L14: 0.1148325359 | N14: 0 | O14: 0 | Q14: 0.1159599552 | S14: 0 | T14: 0 | U14: 0 | V14: 0.03296451432
A15: 2015 | B15: líneas | C15: =datos_RdT!C34 -> 5970.197373 | D15: =datos_RdT!D34 -> 3180.338758 | E15: =datos_RdT!E34 -> 911.9019845 | F15: =datos_RdT!F34 -> 1673.694 | G15: =datos_RdT!G34 -> 2282.157732 | H15: =datos_RdT!H34 -> 1346.959 | I15: =datos_RdT!I34 -> 533.6004973 | J15: =datos_RdT!J34 -> 4075.265136 | K15: =datos_RdT!K34 -> 7778.842894 | L15: =datos_RdT!L34 -> 4708.889446 | M15: =datos_RdT!M34 -> 0 | N15: =datos_RdT!N34 -> 3169.752325 | O15: =datos_RdT!O34 -> 2537.884727 | P15: =datos_RdT!P34 -> 271.2813019 | Q15: =datos_RdT!Q34 -> 2092.705577 | R15: =datos_RdT!R34 -> 0 | S15: =datos_RdT!S34 -> 815.3858771 | T15: =datos_RdT!T34 -> 494.7990904 | U15: =datos_RdT!U34 -> 1286.058022 | V15: =SUM(C15:U15) -> 43129.71374 | X15: =V15-Q15 -> 41037.00816
A16: 2015 | B16: posiciones | C16: =datos_RdT!C39 -> 631 | D16: =datos_RdT!D39 -> 312 | E16: =datos_RdT!E39 -> 97 | F16: =datos_RdT!F39 -> 563 | G16: =datos_RdT!G39 -> 444 | H16: =datos_RdT!H39 -> 424 | I16: =datos_RdT!I39 -> 65 | J16: =datos_RdT!J39 -> 249 | K16: =datos_RdT!K39 -> 461 | L16: =datos_RdT!L39 -> 741 | M16: =datos_RdT!M39 -> 0 | N16: =datos_RdT!N39 -> 191 | O16: =datos_RdT!O39 -> 288 | P16: =datos_RdT!P39 -> 38 | Q16: =datos_RdT!Q39 -> 624 | R16: =datos_RdT!R39 -> 0 | S16: =datos_RdT!S39 -> 117 | T16: =datos_RdT!T39 -> 77 | U16: =datos_RdT!U39 -> 226 | V16: =SUM(C16:U16)+W16 -> 5555 | W16: =datos_RdT!W39 -> 7 | X16: =V16-Q16 -> 4931
A17: 2015 | B17: transformadores | C17: =datos_RdT!C41 -> 14420 | D17: =datos_RdT!D41 -> 4674 | E17: =datos_RdT!E41 -> 1299.2 | F17: =datos_RdT!F41 -> 3273 | G17: =datos_RdT!G41 -> 7600 | H17: =datos_RdT!H41 -> 2000 | I17: =datos_RdT!I41 -> 2100 | J17: =datos_RdT!J41 -> 1200 | K17: =datos_RdT!K41 -> 6131 | L17: =datos_RdT!L41 -> 11650 | M17: =datos_RdT!M41 -> 0 | N17: =datos_RdT!N41 -> 2398.875 | O17: =datos_RdT!O41 -> 5700 | P17: =datos_RdT!P41 -> 600 | Q17: =datos_RdT!Q41 -> 11548.4 | R17: =datos_RdT!R41 -> 0 | S17: =datos_RdT!S41 -> 3150 | T17: =datos_RdT!T41 -> 1600 | U17: =datos_RdT!U41 -> 4300 | V17: =SUM(C17:U17) -> 83644.475 | W17: =datos_RdT!W41 -> 900 | X17: =V17-Q17 -> 72096.075
A18: 2015 | B18: líneas | C18: =(C15/C9-1) -> 0.005404078772 | D18: =(D15/D9-1) -> 0.01381898481 | E18: 0 | F18: 0.08330970846 | G18: 0.003579126191 | H18: 0.04485488331 | I18: 0.03531234467 | J18: 0 | K18: 0.0001814223537 | L18: 0.003764471596 | N18: 0.02386072603 | O18: 0 | P18: 0 | Q18: 0 | S18: 0 | T18: 0 | U18: 0.02871307828 | V18: 0.009766494516
A19: 2015 | B19: posiciones | C19: =(C16/C10-1) -> 0.03273322422 | D19: =(D16/D10-1) -> 0.03311258278 | E19: 0 | F19: 0.06226415094 | G19: 0.02304147465 | H19: 0.03667481663 | I19: 0.1607142857 | J19: 0 | K19: 0.06221198157 | L19: 0.01229508197 | N19: 0 | O19: 0 | P19: 0 | Q19: 0 | S19: 0.01739130435 | T19: 0 | U19: 0.004444444444 | V19: 0.02509688134
A20: 2015 | B20: transformadores | C20: =(C17/C11-1) -> 0 | D20: =(D17/D11-1) -> 0 | E20: 0 | F20: 0.171858217 | G20: 0 | H20: 0.06666666667 | I20: 0 | J20: =(J17/J11-1) -> 0 | K20: 0 | L20: 0 | N20: 0 | O20: 0 | Q20: 0 | S20: 0 | T20: 0 | U20: 0 | V20: 0.007285691534
A21: 2016 | B21: líneas | C21: =datos_RdT!C48 -> 5995.144373 | D21: =datos_RdT!D48 -> 3369.475758 | E21: =datos_RdT!E48 -> 949.5219845 | F21: =datos_RdT!F48 -> 1800.048 | G21: =datos_RdT!G48 -> 2392.545732 | H21: =datos_RdT!H48 -> 1354.165 | I21: =datos_RdT!I48 -> 533.6004973 | J21: =datos_RdT!J48 -> 4075.265136 | K21: =datos_RdT!K48 -> 7778.842894 | L21: =datos_RdT!L48 -> 4726.749446 | M21: =datos_RdT!M48 -> 0 | N21: =datos_RdT!N48 -> 3169.752325 | O21: =datos_RdT!O48 -> 2664.416727 | P21: =datos_RdT!P48 -> 271.2813019 | Q21: =datos_RdT!Q48 -> 2092.705577 | R21: =datos_RdT!R48 -> 0 | S21: =datos_RdT!S48 -> 831.9818771 | T21: =datos_RdT!T48 -> 494.7990904 | U21: =datos_RdT!U48 -> 1286.097022 | V21: =SUM(C21:U21) -> 43786.39274 | X21: =V21-Q21 -> 41693.68716
A22: 2016 | B22: posiciones | C22: =datos_RdT!C53 -> 634 | D22: =datos_RdT!D53 -> 312 | E22: =datos_RdT!E53 -> 97 | F22: =datos_RdT!F53 -> 571 | G22: =datos_RdT!G53 -> 464 | H22: =datos_RdT!H53 -> 444 | I22: =datos_RdT!I53 -> 65 | J22: =datos_RdT!J53 -> 250 | K22: =datos_RdT!K53 -> 462 | L22: =datos_RdT!L53 -> 741 | M22: =datos_RdT!M53 -> 0 | N22: =datos_RdT!N53 -> 191 | O22: =datos_RdT!O53 -> 294 | P22: =datos_RdT!P53 -> 38 | Q22: =datos_RdT!Q53 -> 626 | R22: =datos_RdT!R53 -> 0 | S22: =datos_RdT!S53 -> 117 | T22: =datos_RdT!T53 -> 77 | U22: =datos_RdT!U53 -> 228 | V22: =SUM(C22:U22)+W22 -> 5618 | W22: =datos_RdT!W53 -> 7 | X22: =V22-Q22 -> 4992
A23: 2016 | B23: transformadores | C23: =datos_RdT!C55 -> 14420 | D23: =datos_RdT!D55 -> 4674 | E23: =datos_RdT!E55 -> 1299.2 | F23: =datos_RdT!F55 -> 3273 | G23: =datos_RdT!G55 -> 8200 | H23: =datos_RdT!H55 -> 2000 | I23: =datos_RdT!I55 -> 2100 | J23: =datos_RdT!J55 -> 1200 | K23: =datos_RdT!K55 -> 6131 | L23: =datos_RdT!L55 -> 11650 | M23: =datos_RdT!M55 -> 0 | N23: =datos_RdT!N55 -> 2398.875 | O23: =datos_RdT!O55 -> 5700 | P23: =datos_RdT!P55 -> 600 | Q23: =datos_RdT!Q55 -> 11548.4 | R23: =datos_RdT!R55 -> 0 | S23: =datos_RdT!S55 -> 3150 | T23: =datos_RdT!T55 -> 1600 | U23: =datos_RdT!U55 -> 4300 | V23: =SUM(C23:U23) -> 84244.475 | W23: =datos_RdT!W55 -> 900 | X23: =V23-Q23 -> 72696.075
A24: 2016 | B24: líneas | C24: =(C21/C15-1) -> 0.00417858882 | D24: =(D21/D15-1) -> 0.05947070876 | E24: 0.04125443375 | F24: 0.07549408673 | G24: 0.04837001338 | H24: 0.005349828762 | I24: 0 | J24: 0 | K24: 0 | L24: 0.003792826356 | N24: 0 | O24: 0.04985726839 | P24: 0 | Q24: 0 | S24: 0.02035355341 | T24: 0 | U24: 3.032522587e-05 | V24: 0.0152256749
A25: 2016 | B25: posiciones | C25: =(C22/C16-1) -> 0.004754358162 | D25: =(D22/D16-1) -> 0 | E25: 0 | F25: 0.01420959147 | G25: 0.04504504505 | H25: 0.04716981132 | I25: 0 | J25: 0.004016064257 | K25: 0.002169197397 | L25: 0 | N25: 0 | O25: 0.02083333333 | P25: 0 | Q25: 0.003205128205 | S25: 0 | T25: 0 | U25: 0.008849557522 | V25: 0.01134113411
A26: 2016 | B26: transformadores | C26: =(C23/C17-1) -> 0 | D26: =(D23/D17-1) -> 0 | E26: 0 | F26: 0 | G26: 0.07894736842 | H26: 0 | I26: 0 | J26: 0 | K26: 0 | L26: 0 | N26: 0 | O26: 0 | P26: 0 | Q26: 0 | S26: 0 | T26: 0 | U26: 0 | V26: 0.007173217358
A27: 2017 | B27: líneas | C27: =datos_RdT!C62 -> 5995.143578 | D27: =datos_RdT!D62 -> 3379.15494 | E27: =datos_RdT!E62 -> 949.5211643 | F27: =datos_RdT!F62 -> 1808.316 | G27: =datos_RdT!G62 -> 2408.164472 | H27: =datos_RdT!H62 -> 1355.097 | I27: =datos_RdT!I62 -> 533.5997043 | J27: =datos_RdT!J62 -> 4109.544496 | K27: =datos_RdT!K62 -> 7826.536894 | L27: =datos_RdT!L62 -> 4727.215192 | M27: =datos_RdT!M62 -> 0 | N27: =datos_RdT!N62 -> 3169.748458 | O27: =datos_RdT!O62 -> 2664.456727 | P27: =datos_RdT!P62 -> 271.2813019 | Q27: =datos_RdT!Q62 -> 2119.480026 | R27: =datos_RdT!R62 -> 0 | S27: =datos_RdT!S62 -> 831.9818771 | T27: =datos_RdT!T62 -> 494.7900702 | U27: =datos_RdT!U62 -> 1286.201343 | V27: 43930.23324 | X27: =V27-Q27 -> 41810.75322
A28: 2017 | B28: posiciones | C28: =datos_RdT!C67 -> 634 | D28: =datos_RdT!D67 -> 314 | E28: =datos_RdT!E67 -> 97 | F28: =datos_RdT!F67 -> 577 | G28: =datos_RdT!G67 -> 481 | H28: =datos_RdT!H67 -> 494 | I28: =datos_RdT!I67 -> 65 | J28: =datos_RdT!J67 -> 252 | K28: =datos_RdT!K67 -> 476 | L28: =datos_RdT!L67 -> 749 | M28: =datos_RdT!M67 -> 0 | N28: =datos_RdT!N67 -> 191 | O28: =datos_RdT!O67 -> 294 | P28: =datos_RdT!P67 -> 38 | Q28: =datos_RdT!Q67 -> 627 | R28: =datos_RdT!R67 -> 0 | S28: =datos_RdT!S67 -> 117 | T28: =datos_RdT!T67 -> 78 | U28: =datos_RdT!U67 -> 230 | V28: =SUM(C28:U28)+W28 -> 5721 | W28: =datos_RdT!W67 -> 7 | X28: =V28-Q28 -> 5094
A29: 2017 | B29: transformadores | C29: =datos_RdT!C69 -> 14420 | D29: =datos_RdT!D69 -> 4674 | E29: =datos_RdT!E69 -> 1299.2 | F29: =datos_RdT!F69 -> 3273 | G29: =datos_RdT!G69 -> 8200 | H29: =datos_RdT!H69 -> 2560 | I29: =datos_RdT!I69 -> 2100 | J29: =datos_RdT!J69 -> 1200 | K29: =datos_RdT!K69 -> 6131 | L29: =datos_RdT!L69 -> 11650 | M29: =datos_RdT!M69 -> 0 | N29: =datos_RdT!N69 -> 2398.875 | O29: =datos_RdT!O69 -> 5700 | P29: =datos_RdT!P69 -> 600 | Q29: =datos_RdT!Q69 -> 11548.4 | R29: =datos_RdT!R69 -> 0 | S29: =datos_RdT!S69 -> 3150 | T29: =datos_RdT!T69 -> 1600 | U29: =datos_RdT!U69 -> 4850 | V29: =SUM(C29:U29) -> 85354.475 | W29: =datos_RdT!W69 -> 900 | X29: =V29-Q29 -> 73806.075
A30: 2017 | B30: líneas | C30: =(C27/C21-1) -> -1.325988916e-07 | D30: =(D27/D21-1) -> 0.002872607985 | E30: -8.63805192e-07 | F30: 0.004593210848 | G30: 0.006528084205 | H30: 0.0006882470009 | I30: -1.48599804e-06 | J30: 0.008411565717 | K30: 0.00613124608 | L30: 9.853408293e-05 | N30: -1.220102962e-06 | O30: 1.50126666e-05 | P30: 0 | Q30: 0.01279417872 | S30: 0 | T30: -1.823002951e-05 | U30: 8.11147275e-05 | V30: 0.003285050337
A31: 2017 | B31: posiciones | C31: =(C28/C22-1) -> 0 | D31: =(D28/D22-1) -> 0.00641025641 | E31: 0 | F31: 0.01050788091 | G31: 0.03663793103 | H31: 0.1126126126 | I31: 0 | J31: 0.008 | K31: 0.0303030303 | L31: 0.01079622132 | N31: 0 | O31: 0 | P31: 0 | Q31: 0.001597444089 | S31: 0 | T31: 0.01298701299 | U31: 0.008771929825 | V31: 0.01833392666
A32: 2017 | B32: transformadores | C32: =(C29/C23-1) -> 0 | D32: =(D29/D23-1) -> 0 | E32: 0 | F32: 0 | G32: 0 | H32: 0.28 | I32: 0 | J32: 0 | K32: 0 | L32: 0 | N32: 0 | O32: 0 | P32: 0 | Q32: 0 | S32: 0 | T32: 0 | U32: 0.1279069767 | V32: 0.01317593824
A33: 2018 | B33: líneas | C33: =datos_RdT!C76 -> 6011.169578 | D33: =datos_RdT!D76 -> 3397.18194 | E33: =datos_RdT!E76 -> 949.5211643 | F33: =datos_RdT!F76 -> 1853.619 | G33: =datos_RdT!G76 -> 2434.708472 | H33: =datos_RdT!H76 -> 1490.559 | I33: =datos_RdT!I76 -> 533.5997043 | J33: =datos_RdT!J76 -> 4109.544496 | K33: =datos_RdT!K76 -> 7857.011894 | L33: =datos_RdT!L76 -> 4732.195192 | M33: =datos_RdT!M76 -> 0 | N33: =datos_RdT!N76 -> 3169.748458 | O33: =datos_RdT!O76 -> 2664.456727 | P33: =datos_RdT!P76 -> 271.2813019 | Q33: =datos_RdT!Q76 -> 2119.480026 | R33: =datos_RdT!R76 -> 0 | S33: =datos_RdT!S76 -> 831.9818771 | T33: =datos_RdT!T76 -> 494.7900702 | U33: =datos_RdT!U76 -> 1286.201343 | V33: =datos_RdT!V76 -> 44207.05024 | X33: =V33-Q33 -> 42087.57022
A34: 2018 | B34: posiciones | C34: =datos_RdT!C81 -> 647 | D34: =datos_RdT!D81 -> 320 | E34: =datos_RdT!E81 -> 98 | F34: =datos_RdT!F81 -> 595 | G34: =datos_RdT!G81 -> 486 | H34: =datos_RdT!H81 -> 562 | I34: =datos_RdT!I81 -> 65 | J34: =datos_RdT!J81 -> 253 | K34: =datos_RdT!K81 -> 490 | L34: =datos_RdT!L81 -> 770 | M34: =datos_RdT!M81 -> 0 | N34: =datos_RdT!N81 -> 192 | O34: =datos_RdT!O81 -> 294 | P34: =datos_RdT!P81 -> 38 | Q34: =datos_RdT!Q81 -> 627 | R34: =datos_RdT!R81 -> 0 | S34: =datos_RdT!S81 -> 117 | T34: =datos_RdT!T81 -> 78 | U34: =datos_RdT!U81 -> 231 | V34: =datos_RdT!V81 -> 5870 | W34: =datos_RdT!W81 -> 7 | X34: =V34-Q34 -> 5243
A35: 2018 | B35: transformadores | C35: =datos_RdT!C83 -> 14420 | D35: =datos_RdT!D83 -> 5256 | E35: =datos_RdT!E83 -> 1299.2 | F35: =datos_RdT!F83 -> 3433 | G35: =datos_RdT!G83 -> 8200 | H35: =datos_RdT!H83 -> 3310 | I35: =datos_RdT!I83 -> 2100 | J35: =datos_RdT!J83 -> 1200 | K35: =datos_RdT!K83 -> 6331 | L35: =datos_RdT!L83 -> 12350 | M35: =datos_RdT!M83 -> 0 | N35: =datos_RdT!N83 -> 2398.875 | O35: =datos_RdT!O83 -> 5700 | P35: =datos_RdT!P83 -> 600 | Q35: =datos_RdT!Q83 -> 11548.4 | R35: =datos_RdT!R83 -> 0 | S35: =datos_RdT!S83 -> 3150 | T35: =datos_RdT!T83 -> 1600 | U35: =datos_RdT!U83 -> 5050 | V35: =datos_RdT!V83 -> 88846.475 | W35: =datos_RdT!W83 -> 900 | X35: =V35-Q35 -> 77298.075
A36: 2018 | B36: líneas | C36: =(C33/C27-1) -> 0.002673163668 | D36: =(D33/D27-1) -> 0.005334765738 | E36: 0 | F36: 0.02505259037 | G36: 0.01102250295 | H36: 0.09996479957 | I36: 0 | J36: 0 | K36: 0.003893803915 | L36: 0.00105347436 | N36: 0 | O36: 0 | P36: 0 | Q36: 0 | S36: 0 | T36: 0 | U36: 0 | V36: 0.006301286826
A37: 2018 | B37: posiciones | C37: =(C34/C28-1) -> 0.02050473186 | D37: =(D34/D28-1) -> 0.01910828025 | E37: 0.01030927835 | F37: 0.03119584055 | G37: 0.0103950104 | H37: 0.1376518219 | I37: 0 | J37: 0.003968253968 | K37: 0.02941176471 | L37: 0.02803738318 | N37: 0.005235602094 | O37: 0 | P37: 0 | Q37: 0 | S37: 0 | T37: 0 | U37: 0.004347826087 | V37: 0.02604439783
A38: 2018 | B38: transformadores | C38: =(C35/C29-1) -> 0 | D38: =(D35/D29-1) -> 0.1245186136 | E38: 0 | F38: 0.04888481515 | G38: 0 | H38: 0.29296875 | I38: 0 | J38: 0 | K38: 0.03262110586 | L38: 0.06008583691 | N38: 0 | O38: 0 | P38: 0 | Q38: 0 | S38: 0 | T38: 0 | U38: 0.0412371134 | V38: 0.04091173896

Sheet Año (hidden)
B2: 2013
B3: 2014
B4: 2015
B5: 2016
B6: 2017
B7: 2018

Sheet datos_anual (hidden)
B2: CCAA | C2: Andalucía | D2: Aragón | E2: Asturias | F2: Baleares | G2: C. Valenciana | H2: Canarias | I2: Cantabria | J2: Castilla-La Mancha | K2: Castilla y León | L2: Cataluña | M2: Ceuta | N2: Extremadura | O2: Galicia | P2: La Rioja | Q2: Madrid | R2: Melilla | S2: Murcia | T2: Navarra | U2: País Vasco | V2: España
A3: 2013 | B3: Generación neta | C3: =generacion_bruta!C18 -> 34621.18401 | D3: =generacion_bruta!D18 -> 16875.06943 | E3: =generacion_bruta!E18 -> 13608.40251 | F3: =generacion_bruta!F18 -> 4398.363982 | G3: =generacion_bruta!G18 -> 18723.79135 | H3: =generacion_bruta!H18 -> 8506.317959 | I3: =generacion_bruta!I18 -> 2257.428497 | J3: =generacion_bruta!J18 -> 22786.10431 | K3: =generacion_bruta!K18 -> 31193.67338 | L3: =generacion_bruta!L18 -> 45029.32999 | M3: =generacion_bruta!M18 -> 201.964935 | N3: =generacion_bruta!N18 -> 20877.62769 | O3: =generacion_bruta!O18 -> 32832.33883 | P3: =generacion_bruta!P18 -> 1931.703163 | Q3: =generacion_bruta!Q18 -> 1630.35455 | R3: =generacion_bruta!R18 -> 209.6708 | S3: =generacion_bruta!S18 -> 5844.44607 | T3: =generacion_bruta!T18 -> 5216.369808 | U3: =generacion_bruta!U18 -> 6448.919046 | V3: =SUM(C3:U3) -> 273193.0603
B4: Consumos en bombeo | C4: =generacion_bruta!C19 -> -478.113175 | D4: =generacion_bruta!D19 -> -367.894372 | E4: =generacion_bruta!E19 -> -77.286096 | F4: =generacion_bruta!F19 -> 0 | G4: =generacion_bruta!G19 -> -1518.666956 | H4: =generacion_bruta!H19 -> 0 | I4: =generacion_bruta!I19 -> -762.32974 | J4: =generacion_bruta!J19 -> -186.0701388 | K4: =generacion_bruta!K19 -> -1729.745 | L4: =generacion_bruta!L19 -> -341.581207 | M4: =generacion_bruta!M19 -> 0 | N4: =generacion_bruta!N19 -> -57.9631 | O4: =generacion_bruta!O19 -> -436.126307 | P4: =generacion_bruta!P19 -> 0 | Q4: =generacion_bruta!Q19 -> 0 | R4: =generacion_bruta!R19 -> 0 | S4: =generacion_bruta!S19 -> 0 | T4: =generacion_bruta!T19 -> 0 | U4: =generacion_bruta!U19 -> 0 | V4: =SUM(C4:U4) -> -5955.776092
B5: Saldo Intercambios | C5: =generacion_bruta!C20 -> 3927.759415 | D5: =generacion_bruta!D20 -> -6403.434694 | E5: =generacion_bruta!E20 -> -3117.617399 | F5: =generacion_bruta!F20 -> 1268.5086 | G5: =generacion_bruta!G20 -> 8623.685528 | H5: =generacion_bruta!H20 -> 0 | I5: =generacion_bruta!I20 -> 2892.042836 | J5: =generacion_bruta!J20 -> -10970.41155 | K5: =generacion_bruta!K20 -> -15818.31497 | L5: =generacion_bruta!L20 -> 1498.967266 | M5: =generacion_bruta!M20 -> 0 | N5: =generacion_bruta!N20 -> -15968.10176 | O5: =generacion_bruta!O20 -> -12525.21546 | P5: =generacion_bruta!P20 -> -232.825232 | Q5: =generacion_bruta!Q20 -> 27965.82232 | R5: =generacion_bruta!R20 -> 0 | S5: =generacion_bruta!S20 -> 2456.329603 | T5: =generacion_bruta!T20 -> -439.785081 | U5: =generacion_bruta!U20 -> 10110.45813 | V5: -6732.132457
B6: Demanda B.C | C6: =generacion_bruta!C21 -> 38070.83025 | D6: =generacion_bruta!D21 -> 10103.74036 | E6: =generacion_bruta!E21 -> 10413.49901 | F6: =generacion_bruta!F21 -> 5666.872582 | G6: =generacion_bruta!G21 -> 25828.80993 | H6: =generacion_bruta!H21 -> 8506.317959 | I6: =generacion_bruta!I21 -> 4387.141593 | J6: =generacion_bruta!J21 -> 11629.62262 | K6: =generacion_bruta!K21 -> 13645.61341 | L6: =generacion_bruta!L21 -> 46186.71605 | M6: =generacion_bruta!M21 -> 201.964935 | N6: =generacion_bruta!N21 -> 4851.562823 | O6: =generacion_bruta!O21 -> 19870.99706 | P6: =generacion_bruta!P21 -> 1698.877931 | Q6: =generacion_bruta!Q21 -> 29596.17687 | R6: =generacion_bruta!R21 -> 209.6708 | S6: =generacion_bruta!S21 -> 8300.775673 | T6: =generacion_bruta!T21 -> 4776.584727 | U6: =generacion_bruta!U21 -> 16559.37718 | V6: 260505.1518
B7: Renovable | C7: =generacion_bruta!C50 -> 12567.98208 | D7: =generacion_bruta!D23 -> 9624.363909 | E7: =generacion_bruta!E23 -> 3862.952969 | F7: =generacion_bruta!F23 -> 241.844608 | G7: =generacion_bruta!G23 -> 3618.235888 | H7: =generacion_bruta!H23 -> 660.970673 | I7: =generacion_bruta!I23 -> 499.866067 | J7: =generacion_bruta!J23 -> 12184.52813 | K7: =generacion_bruta!K23 -> 22068.49357 | L7: =generacion_bruta!L23 -> 9488.285502 | M7: =generacion_bruta!M23 -> 0 | N7: =generacion_bruta!N23 -> 5709.589646 | O7: =generacion_bruta!O23 -> 19572.48952 | P7: =generacion_bruta!P23 -> 1400.988931 | Q7: =generacion_bruta!Q23 -> 530.5223165 | R7: =generacion_bruta!R23 -> 4.1012215 | S7: =generacion_bruta!S23 -> 1556.672784 | T7: =generacion_bruta!T23 -> 3881.29248 | U7: =generacion_bruta!U23 -> 1214.279755 | V7: =SUM(C7:U7) -> 108687.46
B8: No renovable | C8: =generacion_bruta!C51 -> 19370.86984 | D8: =generacion_bruta!D24 -> 7250.705519 | E8: =generacion_bruta!E24 -> 9745.449541 | F8: =generacion_bruta!F24 -> 4156.519374 | G8: =generacion_bruta!G24 -> 15105.55547 | H8: =generacion_bruta!H24 -> 7845.347286 | I8: =generacion_bruta!I24 -> 1757.56243 | J8: =generacion_bruta!J24 -> 10601.57618 | K8: =generacion_bruta!K24 -> 9125.179811 | L8: =generacion_bruta!L24 -> 35541.04449 | M8: =generacion_bruta!M24 -> 201.964935 | N8: =generacion_bruta!N24 -> 15168.03804 | O8: =generacion_bruta!O24 -> 13259.84931 | P8: =generacion_bruta!P24 -> 530.714232 | Q8: =generacion_bruta!Q24 -> 1099.832234 | R8: =generacion_bruta!R24 -> 205.5695785 | S8: =generacion_bruta!S24 -> 4287.773286 | T8: =generacion_bruta!T24 -> 1335.077328 | U8: =generacion_bruta!U24 -> 5234.639291 | V8: =SUM(C8:U8) -> 161823.2682
A9: 2014 | B9: Generación neta | C9: =generacion_bruta!C45 -> 31938.85192 | D9: =generacion_bruta!D45 -> 16675.20011 | E9: =generacion_bruta!E45 -> 13201.28459 | F9: =generacion_bruta!F45 -> 4279.218551 | G9: =generacion_bruta!G45 -> 19873.5567 | H9: =generacion_bruta!H45 -> 8495.116826 | I9: =generacion_bruta!I45 -> 1859.295568 | J9: =generacion_bruta!J45 -> 22506.92896 | K9: =generacion_bruta!K45 -> 34241.20126 | L9: =generacion_bruta!L45 -> 41533.43377 | M9: =generacion_bruta!M45 -> 212.245157 | N9: =generacion_bruta!N45 -> 21503.36986 | O9: =generacion_bruta!O45 -> 31029.18376 | P9: =generacion_bruta!P45 -> 1457.562657 | Q9: =generacion_bruta!Q45 -> 1301.858185 | R9: =generacion_bruta!R45 -> 209.798915 | S9: =generacion_bruta!S45 -> 5330.276776 | T9: =generacion_bruta!T45 -> 4623.157756 | U9: =generacion_bruta!U45 -> 6189.442034 | V9: 266460.9834
B10: Consumos en bombeo | C10: =generacion_bruta!C46 -> -492.779935 | D10: =generacion_bruta!D46 -> -443.065487 | E10: =generacion_bruta!E46 -> -78.996821 | F10: =generacion_bruta!F46 -> 0 | G10: =generacion_bruta!G46 -> -1574.859955 | H10: =generacion_bruta!H46 -> 0 | I10: =generacion_bruta!I46 -> -854.983244 | J10: =generacion_bruta!J46 -> -131.8589256 | K10: =generacion_bruta!K46 -> -1107.752459 | L10: =generacion_bruta!L46 -> -367.452015 | M10: =generacion_bruta!M46 -> 0 | N10: =generacion_bruta!N46 -> -72.2704 | O10: =generacion_bruta!O46 -> -261.749618 | P10: =generacion_bruta!P46 -> 0 | Q10: =generacion_bruta!Q46 -> 0 | R10: =generacion_bruta!R46 -> 0 | S10: =generacion_bruta!S46 -> 0 | T10: =generacion_bruta!T46 -> 0 | U10: =generacion_bruta!U46 -> 0 | V10: -5385.76886
B11: Saldo Intercambios | C11: =generacion_bruta!C47 -> 5997.304559 | D11: =generacion_bruta!D47 -> -6143.801954 | E11: =generacion_bruta!E47 -> -2797.14079 | F11: =generacion_bruta!F47 -> 1298.258934 | G11: =generacion_bruta!G47 -> 7524.506808 | H11: =generacion_bruta!H47 -> 0 | I11: =generacion_bruta!I47 -> 3320.107306 | J11: =generacion_bruta!J47 -> -10768.52955 | K11: =generacion_bruta!K47 -> -19602.37979 | L11: =generacion_bruta!L47 -> 4399.03406 | M11: =generacion_bruta!M47 -> 0 | N11: =generacion_bruta!N47 -> -16807.29257 | O11: =generacion_bruta!O47 -> -11010.994 | P11: =generacion_bruta!P47 -> 228.095478 | Q11: =generacion_bruta!Q47 -> 27060.08167 | R11: =generacion_bruta!R47 -> 0 | S11: =generacion_bruta!S47 -> 3123.632276 | T11: =generacion_bruta!T47 -> 157.976093 | U11: =generacion_bruta!U47 -> 10615.01744 | V11: -3406.124022
B12: Demanda B.C | C12: =generacion_bruta!C48 -> 37443.37655 | D12: =generacion_bruta!D48 -> 10088.33267 | E12: =generacion_bruta!E48 -> 10325.14698 | F12: =generacion_bruta!F48 -> 5577.477485 | G12: =generacion_bruta!G48 -> 25823.20355 | H12: =generacion_bruta!H48 -> 8495.116826 | I12: =generacion_bruta!I48 -> 4324.41963 | J12: =generacion_bruta!J48 -> 11606.54049 | K12: =generacion_bruta!K48 -> 13531.06902 | L12: =generacion_bruta!L48 -> 45565.01581 | M12: =generacion_bruta!M48 -> 212.245157 | N12: =generacion_bruta!N48 -> 4623.806886 | O12: =generacion_bruta!O48 -> 19756.44015 | P12: =generacion_bruta!P48 -> 1685.658135 | Q12: =generacion_bruta!Q48 -> 28361.93986 | R12: =generacion_bruta!R48 -> 209.798915 | S12: =generacion_bruta!S48 -> 8453.909052 | T12: =generacion_bruta!T48 -> 4781.133849 | U12: =generacion_bruta!U48 -> 16804.45947 | V12: 257669.0905
B13: Renovable | C13: =generacion_bruta!C50 -> 12567.98208 | D13: =generacion_bruta!D50 -> 8859.638074 | E13: =generacion_bruta!E50 -> 3534.284173 | F13: =generacion_bruta!F50 -> 258.6352555 | G13: =generacion_bruta!G50 -> 3804.298038 | H13: =generacion_bruta!H50 -> 684.810972 | I13: =generacion_bruta!I50 -> 420.591029 | J13: =generacion_bruta!J50 -> 12048.38688 | K13: =generacion_bruta!K50 -> 24100.59989 | L13: =generacion_bruta!L50 -> 8845.303024 | M13: =generacion_bruta!M50 -> 0 | N13: =generacion_bruta!N50 -> 6245.746419 | O13: =generacion_bruta!O50 -> 18586.73687 | P13: =generacion_bruta!P50 -> 1252.221341 | Q13: =generacion_bruta!Q50 -> 532.919519 | R13: =generacion_bruta!R50 -> 4.53299 | S13: =generacion_bruta!S50 -> 1515.185564 | T13: =generacion_bruta!T50 -> 3552.596116 | U13: =generacion_bruta!U50 -> 1061.505019 | V13: =generacion_bruta!V50 -> 107875.9732
B14: No renovable | C14: =generacion_bruta!C51 -> 19370.86984 | D14: =generacion_bruta!D51 -> 7815.562035 | E14: =generacion_bruta!E51 -> 9667.000415 | F14: =generacion_bruta!F51 -> 4020.583296 | G14: =generacion_bruta!G51 -> 16069.25866 | H14: =generacion_bruta!H51 -> 7810.305854 | I14: =generacion_bruta!I51 -> 1438.704539 | J14: =generacion_bruta!J51 -> 10458.54209 | K14: =generacion_bruta!K51 -> 10140.60138 | L14: =generacion_bruta!L51 -> 32688.13074 | M14: =generacion_bruta!M51 -> 212.245157 | N14: =generacion_bruta!N51 -> 15257.62344 | O14: =generacion_bruta!O51 -> 12442.44689 | P14: =generacion_bruta!P51 -> 205.341316 | Q14: =generacion_bruta!Q51 -> 768.938666 | R14: =generacion_bruta!R51 -> 205.265925 | S14: =generacion_bruta!S51 -> 3815.091212 | T14: =generacion_bruta!T51 -> 1070.56164 | U14: =generacion_bruta!U51 -> 5127.937015 | V14: =generacion_bruta!V51 -> 158585.0101
A15: 2015 | B15: Generación neta | C15: =generacion_bruta!C72 -> 35738.72487 | D15: =generacion_bruta!D72 -> 15592.9436 | E15: =generacion_bruta!E72 -> 16810.052 | F15: =generacion_bruta!F72 -> 4452.176599 | G15: =generacion_bruta!G72 -> 18627.55724 | H15: =generacion_bruta!H72 -> 8633.213339 | I15: =generacion_bruta!I72 -> 1701.611012 | J15: =generacion_bruta!J72 -> 21586.75331 | K15: =generacion_bruta!K72 -> 31448.07886 | L15: =generacion_bruta!L72 -> 43014.51073 | M15: =generacion_bruta!M72 -> 204.02309 | N15: =generacion_bruta!N72 -> 21085.46797 | O15: =generacion_bruta!O72 -> 29349.83793 | P15: =generacion_bruta!P72 -> 1870.581479 | Q15: =generacion_bruta!Q72 -> 1201.927754 | R15: =generacion_bruta!R72 -> 213.201556 | S15: =generacion_bruta!S72 -> 4843.348896 | T15: =generacion_bruta!T72 -> 5113.785131 | U15: =generacion_bruta!U72 -> 5966.053761 | V15: 267453.8491
B16: Consumos en bombeo | C16: =generacion_bruta!C73 -> -381.995167 | D16: =generacion_bruta!D73 -> -402.655158 | E16: =generacion_bruta!E73 -> -41.476484 | F16: =generacion_bruta!F73 -> 0 | G16: =generacion_bruta!G73 -> -1382.261101 | H16: =generacion_bruta!H73 -> 0 | I16: =generacion_bruta!I73 -> -687.886179 | J16: =generacion_bruta!J73 -> -46.26100061 | K16: =generacion_bruta!K73 -> -855.200483 | L16: =generacion_bruta!L73 -> -433.787466 | M16: =generacion_bruta!M73 -> 0 | N16: =generacion_bruta!N73 -> -44.75897 | O16: =generacion_bruta!O73 -> -235.969422 | P16: =generacion_bruta!P73 -> 0 | Q16: =generacion_bruta!Q73 -> 0 | R16: =generacion_bruta!R73 -> 0 | S16: =generacion_bruta!S73 -> 0 | T16: =generacion_bruta!T73 -> 0 | U16: =generacion_bruta!U73 -> 0 | V16: -4512.251431
B17: Saldo Intercambios | C17: =generacion_bruta!C74 -> 3182.750362 | D17: =generacion_bruta!D74 -> -4892.455363 | E17: =generacion_bruta!E74 -> -6279.547751 | F17: =generacion_bruta!F74 -> 1335.792544 | G17: =generacion_bruta!G74 -> 9423.605945 | H17: =generacion_bruta!H74 -> 0 | I17: =generacion_bruta!I74 -> 3235.767672 | J17: =generacion_bruta!J74 -> -9995.480721 | K17: =generacion_bruta!K74 -> -16758.83451 | L17: =generacion_bruta!L74 -> 3989.204134 | M17: =generacion_bruta!M74 -> 0 | N17: =generacion_bruta!N74 -> -16222.17903 | O17: =generacion_bruta!O74 -> -9396.078717 | P17: =generacion_bruta!P74 -> -150.529544 | Q17: =generacion_bruta!Q74 -> 27584.40764 | R17: =generacion_bruta!R74 -> 0 | S17: =generacion_bruta!S74 -> 4059.84572 | T17: =generacion_bruta!T74 -> -270.25732 | U17: =generacion_bruta!U74 -> 11020.82576 | V17: -133.163171
B18: Demanda B.C | C18: =generacion_bruta!C75 -> 38539.48007 | D18: =generacion_bruta!D75 -> 10297.83308 | E18: =generacion_bruta!E75 -> 10489.02777 | F18: =generacion_bruta!F75 -> 5787.969143 | G18: =generacion_bruta!G75 -> 26668.90208 | H18: =generacion_bruta!H75 -> 8633.213339 | I18: =generacion_bruta!I75 -> 4249.492505 | J18: =generacion_bruta!J75 -> 11545.01159 | K18: =generacion_bruta!K75 -> 13834.04387 | L18: =generacion_bruta!L75 -> 46569.9274 | M18: =generacion_bruta!M75 -> 204.02309 | N18: =generacion_bruta!N75 -> 4818.529973 | O18: =generacion_bruta!O75 -> 19717.78979 | P18: =generacion_bruta!P75 -> 1720.051935 | Q18: =generacion_bruta!Q75 -> 28786.3354 | R18: =generacion_bruta!R75 -> 213.201556 | S18: =generacion_bruta!S75 -> 8903.194616 | T18: =generacion_bruta!T75 -> 4843.527811 | U18: =generacion_bruta!U75 -> 16986.87952 | V18: 262808.4345
B19: Renovable | C19: =generacion_bruta!C77 -> 12069.47419 | D19: =generacion_bruta!D77 -> 7905.377806 | E19: =generacion_bruta!E77 -> 2887.908956 | F19: =generacion_bruta!F77 -> 281.0073095 | G19: =generacion_bruta!G77 -> 3454.71155 | H19: =generacion_bruta!H77 -> 692.06319 | I19: =generacion_bruta!I77 -> 474.792813 | J19: =generacion_bruta!J77 -> 10698.20348 | K19: =generacion_bruta!K77 -> 19984.01212 | L19: =generacion_bruta!L77 -> 7809.907469 | M19: =generacion_bruta!M77 -> 0 | N19: =generacion_bruta!N77 -> 4958.687728 | O19: =generacion_bruta!O77 -> 15138.87437 | P19: =generacion_bruta!P77 -> 1218.520611 | Q19: =generacion_bruta!Q77 -> 445.035928 | R19: =generacion_bruta!R77 -> 4.376458 | S19: =generacion_bruta!S77 -> 1376.129405 | T19: =generacion_bruta!T77 -> 3638.098588 | U19: =generacion_bruta!U77 -> 1050.930974 | V19: 94088.11295
B20: No renovable | C20: =generacion_bruta!C78 -> 23669.25068 | D20: =generacion_bruta!D78 -> 7687.565798 | E20: =generacion_bruta!E78 -> 13922.14305 | F20: =generacion_bruta!F78 -> 4171.16929 | G20: =generacion_bruta!G78 -> 15172.84569 | H20: =generacion_bruta!H78 -> 7941.150149 | I20: =generacion_bruta!I78 -> 1226.818199 | J20: =generacion_bruta!J78 -> 10888.54983 | K20: =generacion_bruta!K78 -> 11464.06674 | L20: =generacion_bruta!L78 -> 35204.60326 | M20: =generacion_bruta!M78 -> 204.02309 | N20: =generacion_bruta!N78 -> 16126.78024 | O20: =generacion_bruta!O78 -> 14210.96356 | P20: =generacion_bruta!P78 -> 652.060868 | Q20: =generacion_bruta!Q78 -> 756.891826 | R20: =generacion_bruta!R78 -> 208.825098 | S20: =generacion_bruta!S78 -> 3467.219491 | T20: =generacion_bruta!T78 -> 1475.686543 | U20: =generacion_bruta!U78 -> 4915.122788 | V20: 173365.7362
A21: 2016 | B21: Generación neta | C21: =generacion_bruta!C99 -> 32800.38927 | D21: =generacion_bruta!D99 -> 14405.97219 | E21: =generacion_bruta!E99 -> 12112.92932 | F21: =generacion_bruta!F99 -> 4572.606723 | G21: =generacion_bruta!G99 -> 20617.06517 | H21: =generacion_bruta!H99 -> 8744.102509 | I21: =generacion_bruta!I99 -> 1740.73478 | J21: =generacion_bruta!J99 -> 21280.24316 | K21: =generacion_bruta!K99 -> 32216.294 | L21: =generacion_bruta!L99 -> 43116.76805 | M21: =generacion_bruta!M99 -> 210.680936 | N21: =generacion_bruta!N99 -> 21002.10414 | O21: =generacion_bruta!O99 -> 30303.39807 | P21: =generacion_bruta!P99 -> 2294.250909 | Q21: =generacion_bruta!Q99 -> 1225.386841 | R21: =generacion_bruta!R99 -> 208.28599 | S21: =generacion_bruta!S99 -> 3925.915066 | T21: =generacion_bruta!T99 -> 5631.608555 | U21: =generacion_bruta!U99 -> 5426.955809 | V21: 261835.6915
B22: Consumos en bombeo | C22: =generacion_bruta!C100 -> -370.585741 | D22: =generacion_bruta!D100 -> -425.494509 | E22: =generacion_bruta!E100 -> -38.75029 | F22: =generacion_bruta!F100 -> 0 | G22: =generacion_bruta!G100 -> -1830.034618 | H22: =generacion_bruta!H100 -> 0 | I22: =generacion_bruta!I100 -> -614.63017 | J22: =generacion_bruta!J100 -> -65.81258467 | K22: =generacion_bruta!K100 -> -920.199487 | L22: =generacion_bruta!L100 -> -303.602328 | M22: =generacion_bruta!M100 -> 0 | N22: =generacion_bruta!N100 -> -85.22237 | O22: =generacion_bruta!O100 -> -173.25297 | P22: =generacion_bruta!P100 -> 0 | Q22: =generacion_bruta!Q100 -> 0 | R22: =generacion_bruta!R100 -> 0 | S22: =generacion_bruta!S100 -> 0 | T22: =generacion_bruta!T100 -> 0 | U22: =generacion_bruta!U100 -> 0 | V22: -4827.585068
B23: Saldo Intercambios | C23: =generacion_bruta!C101 -> 7060.606797 | D23: =generacion_bruta!D101 -> -3545.737962 | E23: =generacion_bruta!E101 -> -1548.534664 | F23: =generacion_bruta!F101 -> 1250.583968 | G23: =generacion_bruta!G101 -> 7997.213819 | H23: =generacion_bruta!H101 -> 0 | I23: =generacion_bruta!I101 -> 3078.945329 | J23: =generacion_bruta!J101 -> -9526.472186 | K23: =generacion_bruta!K101 -> -17298.01001 | L23: =generacion_bruta!L101 -> 4015.063827 | M23: =generacion_bruta!M101 -> 0 | N23: =generacion_bruta!N101 -> -15964.53404 | O23: =generacion_bruta!O101 -> -10169.32934 | P23: =generacion_bruta!P101 -> -566.820404 | Q23: =generacion_bruta!Q101 -> 27661.33191 | R23: =generacion_bruta!R101 -> 0 | S23: =generacion_bruta!S101 -> 5111.457609 | T23: =generacion_bruta!T101 -> -682.951774 | U23: =generacion_bruta!U101 -> 10785.23081 | V23: 7658.043687
B24: Demanda B.C | C24: =generacion_bruta!C102 -> 39490.41033 | D24: =generacion_bruta!D102 -> 10434.73972 | E24: =generacion_bruta!E102 -> 10525.64437 | F24: =generacion_bruta!F102 -> 5823.190691 | G24: =generacion_bruta!G102 -> 26784.24437 | H24: =generacion_bruta!H102 -> 8744.102509 | I24: =generacion_bruta!I102 -> 4205.049939 | J24: =generacion_bruta!J102 -> 11687.95839 | K24: =generacion_bruta!K102 -> 13998.0845 | L24: =generacion_bruta!L102 -> 46828.22955 | M24: =generacion_bruta!M102 -> 210.680936 | N24: =generacion_bruta!N102 -> 4952.347727 | O24: =generacion_bruta!O102 -> 19960.81576 | P24: =generacion_bruta!P102 -> 1727.430505 | Q24: =generacion_bruta!Q102 -> 28886.71875 | R24: =generacion_bruta!R102 -> 208.28599 | S24: =generacion_bruta!S102 -> 9037.372675 | T24: =generacion_bruta!T102 -> 4948.656781 | U24: =generacion_bruta!U102 -> 16212.18662 | V24: 264666.1501
B25: Renovable | C25: =generacion_bruta!C104 -> 12837.72986 | D25: =generacion_bruta!D104 -> 7812.69143 | E25: =generacion_bruta!E104 -> 3103.755606 | F25: =generacion_bruta!F104 -> 258.0383695 | G25: =generacion_bruta!G104 -> 3437.041985 | H25: =generacion_bruta!H104 -> 701.423598 | I25: =generacion_bruta!I104 -> 442.2680135 | J25: =generacion_bruta!J104 -> 10997.52903 | K25: =generacion_bruta!K104 -> 23527.71616 | L25: =generacion_bruta!L104 -> 7414.90052 | M25: =generacion_bruta!M104 -> 0 | N25: =generacion_bruta!N104 -> 5747.22559 | O25: =generacion_bruta!O104 -> 17208.15931 | P25: =generacion_bruta!P104 -> 1226.47246 | Q25: =generacion_bruta!Q104 -> 448.336304 | R25: =generacion_bruta!R104 -> 4.9301525 | S25: =generacion_bruta!S104 -> 1404.733542 | T25: =generacion_bruta!T104 -> 3501.041908 | U25: =generacion_bruta!U104 -> 1015.17546 | V25: =generacion_bruta!V104 -> 101089.1693
B26: No renovable | C26: =generacion_bruta!C105 -> 19962.65941 | D26: =generacion_bruta!D105 -> 6593.280761 | E26: =generacion_bruta!E105 -> 9009.173718 | F26: =generacion_bruta!F105 -> 4314.568353 | G26: =generacion_bruta!G105 -> 17180.02318 | H26: =generacion_bruta!H105 -> 8042.678911 | I26: =generacion_bruta!I105 -> 1298.466766 | J26: =generacion_bruta!J105 -> 10282.71412 | K26: =generacion_bruta!K105 -> 8688.577835 | L26: =generacion_bruta!L105 -> 35701.86753 | M26: =generacion_bruta!M105 -> 210.680936 | N26: =generacion_bruta!N105 -> 15254.87855 | O26: =generacion_bruta!O105 -> 13095.23876 | P26: =generacion_bruta!P105 -> 1067.778449 | Q26: =generacion_bruta!Q105 -> 777.050537 | R26: =generacion_bruta!R105 -> 203.3558375 | S26: =generacion_bruta!S105 -> 2521.181524 | T26: =generacion_bruta!T105 -> 2130.566647 | U26: =generacion_bruta!U105 -> 4411.780349 | V26: =generacion_bruta!V105 -> 160746.5222
A27: 2017 | B27: Generación neta | C27: =generacion_bruta!C126 -> 36993.02016 | D27: =generacion_bruta!D126 -> 16734.14085 | E27: =generacion_bruta!E126 -> 14085.67999 | F27: =generacion_bruta!F126 -> 4837.109374 | G27: =generacion_bruta!G126 -> 17060.93482 | H27: =generacion_bruta!H126 -> 8931.063025 | I27: =generacion_bruta!I126 -> 1964.184339 | J27: =generacion_bruta!J126 -> 21429.23218 | K27: =generacion_bruta!K126 -> 25335.92699 | L27: =generacion_bruta!L126 -> 44806.15875 | M27: =generacion_bruta!M126 -> 202.86083 | N27: =generacion_bruta!N126 -> 21171.64476 | O27: =generacion_bruta!O126 -> 26201.09048 | P27: =generacion_bruta!P126 -> 2963.260608 | Q27: =generacion_bruta!Q126 -> 1226.592168 | R27: =generacion_bruta!R126 -> 210.425078 | S27: =generacion_bruta!S126 -> 6469.160616 | T27: =generacion_bruta!T126 -> 5886.393807 | U27: =generacion_bruta!U126 -> 5796.879282 | V27: 262305.7581
B28: Consumos en bombeo | C28: =generacion_bruta!C127 -> -224.009543 | D28: =generacion_bruta!D127 -> -212.354739 | E28: =generacion_bruta!E127 -> -21.576768 | F28: =generacion_bruta!F127 -> 0 | G28: =generacion_bruta!G127 -> -1344.875346 | H28: =generacion_bruta!H127 -> 0 | I28: =generacion_bruta!I127 -> -591.899897 | J28: =generacion_bruta!J127 -> -65.74822666 | K28: =generacion_bruta!K127 -> -749.072524 | L28: =generacion_bruta!L127 -> -165.275819 | M28: =generacion_bruta!M127 -> 0 | N28: =generacion_bruta!N127 -> -36.97136 | O28: =generacion_bruta!O127 -> -195.796765 | P28: =generacion_bruta!P127 -> 0 | Q28: =generacion_bruta!Q127 -> 0 | R28: =generacion_bruta!R127 -> 0 | S28: =generacion_bruta!S127 -> 0 | T28: =generacion_bruta!T127 -> 0 | U28: =generacion_bruta!U127 -> 0 | V28: -3607.580988
B29: Saldo Intercambios | C29: =generacion_bruta!C128 -> 3395.555074 | D29: =generacion_bruta!D128 -> -5856.014888 | E29: =generacion_bruta!E128 -> -3463.430224 | F29: =generacion_bruta!F128 -> 1179.306642 | G29: =generacion_bruta!G128 -> 11233.91109 | H29: =generacion_bruta!H128 -> 0 | I29: =generacion_bruta!I128 -> 2999.906663 | J29: =generacion_bruta!J128 -> -9648.445721 | K29: =generacion_bruta!K128 -> -10511.12154 | L29: =generacion_bruta!L128 -> 3158.985719 | M29: =generacion_bruta!M128 -> 0 | N29: =generacion_bruta!N128 -> -16112.35356 | O29: =generacion_bruta!O128 -> -6106.97978 | P29: =generacion_bruta!P128 -> -1259.140048 | Q29: =generacion_bruta!Q128 -> 27361.65519 | R29: =generacion_bruta!R128 -> 0 | S29: =generacion_bruta!S128 -> 2905.333563 | T29: =generacion_bruta!T128 -> -833.777027 | U29: =generacion_bruta!U128 -> 10725.60238 | V29: 9168.993534
B30: Demanda B.C | C30: =generacion_bruta!C129 -> 40164.56569 | D30: =generacion_bruta!D129 -> 10665.77123 | E30: =generacion_bruta!E129 -> 10600.67299 | F30: =generacion_bruta!F129 -> 6016.416016 | G30: =generacion_bruta!G129 -> 26949.97057 | H30: =generacion_bruta!H129 -> 8931.063025 | I30: =generacion_bruta!I129 -> 4372.191105 | J30: =generacion_bruta!J129 -> 11715.03823 | K30: =generacion_bruta!K129 -> 14075.73292 | L30: =generacion_bruta!L129 -> 47799.86865 | M30: =generacion_bruta!M129 -> 202.86083 | N30: =generacion_bruta!N129 -> 5022.31984 | O30: =generacion_bruta!O129 -> 19898.31394 | P30: =generacion_bruta!P129 -> 1704.12056 | Q30: =generacion_bruta!Q129 -> 28588.24736 | R30: =generacion_bruta!R129 -> 210.425078 | S30: =generacion_bruta!S129 -> 9374.494179 | T30: =generacion_bruta!T129 -> 5052.61678 | U30: =generacion_bruta!U129 -> 16522.48166 | V30: 267867.1706
B31: Renovable | C31: =generacion_bruta!C131 -> 13034.44798 | D31: =generacion_bruta!D131 -> 7462.986582 | E31: =generacion_bruta!E131 -> 2174.947189 | F31: =generacion_bruta!F131 -> 271.76668 | G31: =generacion_bruta!G131 -> 3224.920616 | H31: =generacion_bruta!H131 -> 702.622293 | I31: =generacion_bruta!I131 -> 361.9749465 | J31: =generacion_bruta!J131 -> 10670.2731 | K31: =generacion_bruta!K131 -> 16330.59761 | L31: =generacion_bruta!L131 -> 7359.629855 | M31: =generacion_bruta!M131 -> 0 | N31: =generacion_bruta!N131 -> 4764.185589 | O31: =generacion_bruta!O131 -> 10619.05078 | P31: =generacion_bruta!P131 -> 1211.44779 | Q31: =generacion_bruta!Q131 -> 451.6429085 | R31: =generacion_bruta!R131 -> 5.053855 | S31: =generacion_bruta!S131 -> 1380.801003 | T31: =generacion_bruta!T131 -> 3585.189718 | U31: =generacion_bruta!U131 -> 999.3280035 | V31: 84610.8665
B32: No renovable | C32: =generacion_bruta!C132 -> 23958.57218 | D32: =generacion_bruta!D132 -> 9271.15427 | E32: =generacion_bruta!E132 -> 11910.7328 | F32: =generacion_bruta!F132 -> 4565.342694 | G32: =generacion_bruta!G132 -> 13836.01421 | H32: =generacion_bruta!H132 -> 8228.440732 | I32: =generacion_bruta!I132 -> 1602.209393 | J32: =generacion_bruta!J132 -> 10758.95908 | K32: =generacion_bruta!K132 -> 9005.329373 | L32: =generacion_bruta!L132 -> 37446.52889 | M32: =generacion_bruta!M132 -> 202.86083 | N32: =generacion_bruta!N132 -> 16407.45917 | O32: =generacion_bruta!O132 -> 15582.03971 | P32: =generacion_bruta!P132 -> 1751.812818 | Q32: =generacion_bruta!Q132 -> 774.9492595 | R32: =generacion_bruta!R132 -> 205.371223 | S32: =generacion_bruta!S132 -> 5088.359613 | T32: =generacion_bruta!T132 -> 2301.204089 | U32: =generacion_bruta!U132 -> 4797.551279 | V32: 177694.8916
A33: 2018 | B33: Generación neta | C33: =generacion_bruta!C153 -> 34261.00975 | D33: =generacion_bruta!D153 -> 15199.01011 | E33: =generacion_bruta!E153 -> 12801.31222 | F33: =generacion_bruta!F153 -> 4818.893082 | G33: =generacion_bruta!G153 -> 19119.7926 | H33: =generacion_bruta!H153 -> 8840.018761 | I33: =generacion_bruta!I153 -> 2212.513378 | J33: =generacion_bruta!J153 -> 21662.19886 | K33: =generacion_bruta!K153 -> 26767.89554 | L33: =generacion_bruta!L153 -> 42464.83257 | M33: =generacion_bruta!M153 -> 207.356224 | N33: =generacion_bruta!N153 -> 20979.07175 | O33: =generacion_bruta!O153 -> 31306.93129 | P33: =generacion_bruta!P153 -> 2392.636686 | Q33: =generacion_bruta!Q153 -> 1250.712445 | R33: =generacion_bruta!R153 -> 212.949056 | S33: =generacion_bruta!S153 -> 6086.748777 | T33: =generacion_bruta!T153 -> 5179.625669 | U33: =generacion_bruta!U153 -> 5142.702616 | V33: =generacion_bruta!V153 -> 260906.2114
B34: Consumos en bombeo | C34: =generacion_bruta!C154 -> -156.510372 | D34: =generacion_bruta!D154 -> -158.032501 | E34: =generacion_bruta!E154 -> -11.269875 | F34: =generacion_bruta!F154 -> 0 | G34: =generacion_bruta!G154 -> -1273.30752 | H34: =generacion_bruta!H154 -> 0 | I34: =generacion_bruta!I154 -> -429.393574 | J34: =generacion_bruta!J154 -> -61.38666792 | K34: =generacion_bruta!K154 -> -753.950741 | L34: =generacion_bruta!L154 -> -81.406798 | M34: =generacion_bruta!M154 -> 0 | N34: =generacion_bruta!N154 -> -42.187336 | O34: =generacion_bruta!O154 -> -233.26469 | P34: =generacion_bruta!P154 -> 0 | Q34: =generacion_bruta!Q154 -> 0 | R34: =generacion_bruta!R154 -> 0 | S34: =generacion_bruta!S154 -> 0 | T34: =generacion_bruta!T154 -> 0 | U34: =generacion_bruta!U154 -> 0 | V34: =generacion_bruta!V154 -> -3200.710075
B35: Saldo Intercambios | C35: =generacion_bruta!C155 -> 6132.306092 | D35: =generacion_bruta!D155 -> -4310.407633 | E35: =generacion_bruta!E155 -> -2151.447773 | F35: =generacion_bruta!F155 -> 1233.358142 | G35: =generacion_bruta!G155 -> 9653.878198 | H35: =generacion_bruta!H155 -> 0 | I35: =generacion_bruta!I155 -> 2491.553357 | J35: =generacion_bruta!J155 -> -9852.736585 | K35: =generacion_bruta!K155 -> -11725.64982 | L35: =generacion_bruta!L155 -> 4939.075778 | M35: =generacion_bruta!M155 -> 0 | N35: =generacion_bruta!N155 -> -15882.24767 | O35: =generacion_bruta!O155 -> -11160.21608 | P35: =generacion_bruta!P155 -> -679.880856 | Q35: =generacion_bruta!Q155 -> 27373.66473 | R35: =generacion_bruta!R155 -> 0 | S35: =generacion_bruta!S155 -> 3526.178338 | T35: =generacion_bruta!T155 -> -53.78284 | U35: =generacion_bruta!U155 -> 11568.66577 | V35: =generacion_bruta!V155 -> 11102.31115
B36: Demanda B.C | C36: =generacion_bruta!C156 -> 40236.80547 | D36: =generacion_bruta!D156 -> 10730.56998 | E36: =generacion_bruta!E156 -> 10638.59458 | F36: =generacion_bruta!F156 -> 6052.251224 | G36: =generacion_bruta!G156 -> 27500.36328 | H36: =generacion_bruta!H156 -> 8840.018761 | I36: =generacion_bruta!I156 -> 4274.673161 | J36: =generacion_bruta!J156 -> 11748.07561 | K36: =generacion_bruta!K156 -> 14288.29498 | L36: =generacion_bruta!L156 -> 47322.50155 | M36: =generacion_bruta!M156 -> 207.356224 | N36: =generacion_bruta!N156 -> 5054.636744 | O36: =generacion_bruta!O156 -> 19913.45052 | P36: =generacion_bruta!P156 -> 1712.75583 | Q36: =generacion_bruta!Q156 -> 28624.37718 | R36: =generacion_bruta!R156 -> 212.949056 | S36: =generacion_bruta!S156 -> 9612.927115 | T36: =generacion_bruta!T156 -> 5125.842829 | U36: =generacion_bruta!U156 -> 16711.36838 | V36: =generacion_bruta!V156 -> 268807.8125
B37: Renovable | C37: =generacion_bruta!C158 -> 11746.07654 | D37: =generacion_bruta!D158 -> 8561.048103 | E37: =generacion_bruta!E158 -> 3596.577771 | F37: =generacion_bruta!F158 -> 253.0991525 | G37: =generacion_bruta!G158 -> 3530.674762 | H37: =generacion_bruta!H158 -> 928.046966 | I37: =generacion_bruta!I158 -> 504.7650175 | J37: =generacion_bruta!J158 -> 11332.07249 | K37: =generacion_bruta!K158 -> 20564.39914 | L37: =generacion_bruta!L158 -> 8831.268362 | M37: =generacion_bruta!M158 -> 0 | N37: =generacion_bruta!N158 -> 5200.603374 | O37: =generacion_bruta!O158 -> 17354.04116 | P37: =generacion_bruta!P158 -> 1214.422582 | Q37: =generacion_bruta!Q158 -> 440.7546935 | R37: =generacion_bruta!R158 -> 5.42145 | S37: =generacion_bruta!S158 -> 1402.030769 | T37: =generacion_bruta!T158 -> 3609.163018 | U37: =generacion_bruta!U158 -> 1176.788812 | V37: =generacion_bruta!V158 -> 100251.2542
B38: No renovable | C38: =generacion_bruta!C159 -> 22514.93321 | D38: =generacion_bruta!D159 -> 6637.962011 | E38: =generacion_bruta!E159 -> 9204.734454 | F38: =generacion_bruta!F159 -> 4565.79393 | G38: =generacion_bruta!G159 -> 15589.11784 | H38: =generacion_bruta!H159 -> 7911.971795 | I38: =generacion_bruta!I159 -> 1707.74836 | J38: =generacion_bruta!J159 -> 10330.12637 | K38: =generacion_bruta!K159 -> 6203.4964 | L38: =generacion_bruta!L159 -> 33633.56421 | M38: =generacion_bruta!M159 -> 207.356224 | N38: =generacion_bruta!N159 -> 15778.46837 | O38: =generacion_bruta!O159 -> 13952.89013 | P38: =generacion_bruta!P159 -> 1178.214104 | Q38: =generacion_bruta!Q159 -> 809.9577515 | R38: =generacion_bruta!R159 -> 207.527606 | S38: =generacion_bruta!S159 -> 4684.718008 | T38: =generacion_bruta!T159 -> 1570.462651 | U38: =generacion_bruta!U159 -> 3965.913804 | V38: =generacion_bruta!V159 -> 160654.9572
